Supplier ID,Invoice ID,Supplier Name,Paid Date,Subjective Code,Subjective Name,Service Area,Cost Centre Name,Invoiced
86130,3509529,Adoption Matters Northwest,24/08/2015,54102,54102 - Inter Agency Fees,Childrens Services,Child Prot CAHMS Grant,744.00
6467,3506506,Manchester City Council,20/08/2015,55001,55001 - AGMA Section 48 grants,Chief Executives, AGMA Payments,"641,998.00"
1603302,3506519,THE GREATER MANCHESTER COMBINED AUTHORITY,20/08/2015,55033,55033 - Other AGMA Investments,Chief Executives,AGMA Payments,"402,161.00"
125827,3514880,FACEBOOK QFN8686PE2 498750000011107 www.fb.me/ads,28/08/2015,48200,Advertising General,Development & Regeneration,D&R Directorate,568.51
2613325,3507358,Newsquest Media Group,20/08/2015,48200,Advertising General,Environmental Services,Highway Management,597.20
2613325,3507359,Newsquest Media Group,20/08/2015,48200,Advertising General,Environmental Services,Highway Management,597.20
2613325,3505080,Newsquest Media Group,17/08/2015,48200,Advertising General,Environmental Services,Highway Management,512.60
2613325,3511628,Newsquest Media Group,27/08/2015,48200,Advertising General,Development & Regeneration,Town Centre Development Fund,"1,200.00"
2457290,3507622,AXCIS EDUCATION RECRUITMENT,24/08/2015,53100,Agency Staff  Fulltime,Childrens Services,Early Intervention Team,685.50
2457290,3506060,AXCIS EDUCATION RECRUITMENT,20/08/2015,53100,Agency Staff  Fulltime,Childrens Services,Early Intervention Team,684.25
2457290,3502263,AXCIS EDUCATION RECRUITMENT,10/08/2015,53100,Agency Staff  Fulltime,Childrens Services,Early Intervention Team,691.00
204318,3504235,WILDE CONSULTANTS LTD,17/08/2015,53100,Agency Staff  Fulltime,Environmental Services,Highway Management,"4,887.73"
867656,3506997,HAYS SPECIALIST RECRUITMENT,20/08/2015,53102,Agency Staff  Other,Adult Services, Admissions Avoidance,743.36
867656,3503728,HAYS SPECIALIST RECRUITMENT,13/08/2015,53102,Agency Staff  Other,Adult Services, Admissions Avoidance,767.27
867656,3506997,HAYS SPECIALIST RECRUITMENT,20/08/2015,53102,Agency Staff  Other,Adult Services, Darley Court,"1,551.78"
867656,3503728,HAYS SPECIALIST RECRUITMENT,13/08/2015,53102,Agency Staff  Other,Chief Executives, HR - Corporate,720.38
867656,3503728,HAYS SPECIALIST RECRUITMENT,13/08/2015,53102,Agency Staff  Other,Adult Services, MH Early Intervention Team,"1,920.25"
867656,3500852,HAYS SPECIALIST RECRUITMENT,06/08/2015,53102,Agency Staff  Other,Adult Services, MH Early Intervention Team,"3,366.85"
867656,3500852,HAYS SPECIALIST RECRUITMENT,06/08/2015,53102,Agency Staff  Other,Adult Services, Wilfred Geere (2),"6,585.17"
867656,3506997,HAYS SPECIALIST RECRUITMENT,20/08/2015,53102,Agency Staff  Other,Housing GRF,Access & Advice Admin.,"2,187.57"
867656,3500852,HAYS SPECIALIST RECRUITMENT,06/08/2015,53102,Agency Staff  Other,Housing GRF,Access & Advice Admin.,"1,277.23"
867656,3503728,HAYS SPECIALIST RECRUITMENT,13/08/2015,53102,Agency Staff  Other,Housing GRF,Access & Advice Caravan Sites,666.00
867656,3500852,HAYS SPECIALIST RECRUITMENT,06/08/2015,53102,Agency Staff  Other,Housing GRF,Access & Advice Caravan Sites,"1,332.00"
867656,3506997,HAYS SPECIALIST RECRUITMENT,20/08/2015,53102,Agency Staff  Other,Chief Executives,Accounts Payable Shared Service Centre,773.50
867656,3503728,HAYS SPECIALIST RECRUITMENT,13/08/2015,53102,Agency Staff  Other,Chief Executives,Accounts Payable Shared Service Centre,"1,082.90"
867656,3500852,HAYS SPECIALIST RECRUITMENT,06/08/2015,53102,Agency Staff  Other,Chief Executives,Accounts Payable Shared Service Centre,773.50
2832299,3512791,Orchard Medical Recruitment,27/08/2015,53102,Agency Staff  Other,Adult Services,ACM  Management,547.65
2832299,3512802,Orchard Medical Recruitment,27/08/2015,53102,Agency Staff  Other,Adult Services,ACM  Management,555.45
2832299,3512798,Orchard Medical Recruitment,27/08/2015,53102,Agency Staff  Other,Adult Services,ACM  Management,554.85
867656,3506997,HAYS SPECIALIST RECRUITMENT,20/08/2015,53102,Agency Staff  Other,Adult Services,ACM  South,942.29
867656,3503728,HAYS SPECIALIST RECRUITMENT,13/08/2015,53102,Agency Staff  Other,Adult Services,ACM  South,940.69
867656,3500852,HAYS SPECIALIST RECRUITMENT,06/08/2015,53102,Agency Staff  Other,Adult Services,ACM  South,"1,836.98"
867656,3506997,HAYS SPECIALIST RECRUITMENT,20/08/2015,53102,Agency Staff  Other,Environmental Services,Activities and Operations,"10,552.57"
867656,3503728,HAYS SPECIALIST RECRUITMENT,13/08/2015,53102,Agency Staff  Other,Environmental Services,Activities and Operations,"10,672.31"
867656,3500852,HAYS SPECIALIST RECRUITMENT,06/08/2015,53102,Agency Staff  Other,Environmental Services,Activities and Operations,"1,751.93"
867656,3503728,HAYS SPECIALIST RECRUITMENT,13/08/2015,53102,Agency Staff  Other,Chief Executives,AGMA Procurement & Recruitment,859.59
867656,3506997,HAYS SPECIALIST RECRUITMENT,20/08/2015,53102,Agency Staff  Other,Environmental Services,Bereavement Services,"3,343.82"
867656,3500852,HAYS SPECIALIST RECRUITMENT,06/08/2015,53102,Agency Staff  Other,Environmental Services,Bereavement Services,"2,381.63"
867656,3506997,HAYS SPECIALIST RECRUITMENT,20/08/2015,53102,Agency Staff  Other,Childrens Services,Business Support    South District,"3,269.18"
867656,3503728,HAYS SPECIALIST RECRUITMENT,13/08/2015,53102,Agency Staff  Other,Childrens Services,Business Support    South District,"3,711.60"
867656,3500852,HAYS SPECIALIST RECRUITMENT,06/08/2015,53102,Agency Staff  Other,Childrens Services,Business Support    South District,"2,714.27"
867656,3506997,HAYS SPECIALIST RECRUITMENT,20/08/2015,53102,Agency Staff  Other,Childrens Services,Business Support    West District,"2,348.23"
867656,3503728,HAYS SPECIALIST RECRUITMENT,13/08/2015,53102,Agency Staff  Other,Childrens Services,Business Support    West District,"2,967.76"
867656,3500852,HAYS SPECIALIST RECRUITMENT,06/08/2015,53102,Agency Staff  Other,Childrens Services,Business Support    West District,"2,983.88"
867656,3506997,HAYS SPECIALIST RECRUITMENT,20/08/2015,53102,Agency Staff  Other,Childrens Services,Business Support  Children Social Care,"2,685.43"
867656,3503728,HAYS SPECIALIST RECRUITMENT,13/08/2015,53102,Agency Staff  Other,Childrens Services,Business Support  Children Social Care,"4,045.84"
867656,3500852,HAYS SPECIALIST RECRUITMENT,06/08/2015,53102,Agency Staff  Other,Childrens Services,Business Support  Children Social Care,"2,913.45"
867656,3506997,HAYS SPECIALIST RECRUITMENT,20/08/2015,53102,Agency Staff  Other,Childrens Services,Business Support  Directorate,734.78
867656,3503728,HAYS SPECIALIST RECRUITMENT,13/08/2015,53102,Agency Staff  Other,Childrens Services,Business Support  Directorate,"1,480.90"
867656,3500852,HAYS SPECIALIST RECRUITMENT,06/08/2015,53102,Agency Staff  Other,Childrens Services,Business Support  Directorate,"1,852.67"
867656,3500852,HAYS SPECIALIST RECRUITMENT,06/08/2015,53102,Agency Staff  Other,Childrens Services,Business Support  Education Services,"1,025.05"
867656,3506997,HAYS SPECIALIST RECRUITMENT,20/08/2015,53102,Agency Staff  Other,Childrens Services,Business Support - Provider Services,"1,457.77"
867656,3503728,HAYS SPECIALIST RECRUITMENT,13/08/2015,53102,Agency Staff  Other,Childrens Services,Business Support - Provider Services,"1,515.55"
867656,3500852,HAYS SPECIALIST RECRUITMENT,06/08/2015,53102,Agency Staff  Other,Childrens Services,Business Support - Provider Services,"2,785.72"
867656,3506997,HAYS SPECIALIST RECRUITMENT,20/08/2015,53102,Agency Staff  Other,Chief Executives,C.R.M. Operations,"3,510.51"
867656,3503728,HAYS SPECIALIST RECRUITMENT,13/08/2015,53102,Agency Staff  Other,Chief Executives,C.R.M. Operations,"5,240.04"
867656,3500852,HAYS SPECIALIST RECRUITMENT,06/08/2015,53102,Agency Staff  Other,Chief Executives,C.R.M. Operations,"4,632.31"
867656,3503728,HAYS SPECIALIST RECRUITMENT,13/08/2015,53102,Agency Staff  Other,Childrens Services,Child Prot CAHMS Grant,872.10
867656,3500852,HAYS SPECIALIST RECRUITMENT,06/08/2015,53102,Agency Staff  Other,Childrens Services,Child Prot CAHMS Grant,872.11
867656,3506997,HAYS SPECIALIST RECRUITMENT,20/08/2015,53102,Agency Staff  Other,Childrens Services,Children and Family Supp Svs North,"1,399.96"
867656,3503728,HAYS SPECIALIST RECRUITMENT,13/08/2015,53102,Agency Staff  Other,Childrens Services,Children and Family Supp Svs North,"1,776.81"
867656,3500852,HAYS SPECIALIST RECRUITMENT,06/08/2015,53102,Agency Staff  Other,Childrens Services,Children and Family Supp Svs North,"1,386.76"
867656,3506997,HAYS SPECIALIST RECRUITMENT,20/08/2015,53102,Agency Staff  Other,Childrens Services,Children and Family Supp Svs South,"2,849.36"
867656,3503728,HAYS SPECIALIST RECRUITMENT,13/08/2015,53102,Agency Staff  Other,Childrens Services,Children and Family Supp Svs South,"1,821.23"
867656,3500852,HAYS SPECIALIST RECRUITMENT,06/08/2015,53102,Agency Staff  Other,Childrens Services,Children and Family Supp Svs South,"2,369.94"
867656,3506997,HAYS SPECIALIST RECRUITMENT,20/08/2015,53102,Agency Staff  Other,Childrens Services,Children and Family Supp Svs West,"4,177.30"
867656,3503728,HAYS SPECIALIST RECRUITMENT,13/08/2015,53102,Agency Staff  Other,Childrens Services,Children and Family Supp Svs West,"2,443.36"
867656,3500852,HAYS SPECIALIST RECRUITMENT,06/08/2015,53102,Agency Staff  Other,Childrens Services,Children and Family Supp Svs West,"2,120.54"
867656,3506997,HAYS SPECIALIST RECRUITMENT,20/08/2015,53102,Agency Staff  Other,Environmental Services,Civic Cleaning,"2,937.08"
867656,3503728,HAYS SPECIALIST RECRUITMENT,13/08/2015,53102,Agency Staff  Other,Environmental Services,Civic Cleaning,"1,153.44"
867656,3500852,HAYS SPECIALIST RECRUITMENT,06/08/2015,53102,Agency Staff  Other,Environmental Services,Civic Cleaning,963.51
867656,3503728,HAYS SPECIALIST RECRUITMENT,13/08/2015,53102,Agency Staff  Other,Childrens Services,Conference and Reviewing,"1,364.16"
867656,3500852,HAYS SPECIALIST RECRUITMENT,06/08/2015,53102,Agency Staff  Other,Childrens Services,Conference and Reviewing,"4,787.93"
867656,3500852,HAYS SPECIALIST RECRUITMENT,06/08/2015,53102,Agency Staff  Other,Childrens Services,Connexions PAs,"1,021.09"
867656,3503728,HAYS SPECIALIST RECRUITMENT,13/08/2015,53102,Agency Staff  Other,Chief Executives,Corporate I.C.T.,508.89
867656,3500852,HAYS SPECIALIST RECRUITMENT,06/08/2015,53102,Agency Staff  Other,Chief Executives,Corporate I.C.T.,"1,017.77"
867656,3500852,HAYS SPECIALIST RECRUITMENT,06/08/2015,53102,Agency Staff  Other,Chief Executives,Council Tax,"1,144.43"
867656,3503728,HAYS SPECIALIST RECRUITMENT,13/08/2015,53102,Agency Staff  Other,Chief Executives,CPS Shared Costs,843.11
867656,3506997,HAYS SPECIALIST RECRUITMENT,20/08/2015,53102,Agency Staff  Other,Development & Regeneration,Customer Services,"1,030.57"
867656,3503728,HAYS SPECIALIST RECRUITMENT,13/08/2015,53102,Agency Staff  Other,Development & Regeneration,Customer Services,"1,261.67"
867656,3503728,HAYS SPECIALIST RECRUITMENT,13/08/2015,53102,Agency Staff  Other,Adult Services,Darley Court,698.94
867656,3503728,HAYS SPECIALIST RECRUITMENT,13/08/2015,53102,Agency Staff  Other,Childrens Services,Direct Payments,670.18
867656,3506997,HAYS SPECIALIST RECRUITMENT,20/08/2015,53102,Agency Staff  Other,Childrens Services,Disability Serv Fieldwork Team,"1,865.02"
867656,3503728,HAYS SPECIALIST RECRUITMENT,13/08/2015,53102,Agency Staff  Other,Childrens Services,Disability Serv Fieldwork Team,"1,783.96"
867656,3500852,HAYS SPECIALIST RECRUITMENT,06/08/2015,53102,Agency Staff  Other,Childrens Services,Disability Serv Fieldwork Team,"1,878.84"
867656,3506997,HAYS SPECIALIST RECRUITMENT,20/08/2015,53102,Agency Staff  Other,Development & Regeneration,Divisional Development,695.81
867656,3500852,HAYS SPECIALIST RECRUITMENT,06/08/2015,53102,Agency Staff  Other,Development & Regeneration,Divisional Development,"1,722.00"
203434,3508902,NORTHERN EDUCATION,24/08/2015,53102,Agency Staff  Other,Childrens Services,Educational Improvement - Sec,"2,897.50"
867656,3506997,HAYS SPECIALIST RECRUITMENT,20/08/2015,53102,Agency Staff  Other,Chief Executives,Estates & Property Management,743.42
867656,3503728,HAYS SPECIALIST RECRUITMENT,13/08/2015,53102,Agency Staff  Other,Chief Executives,Estates & Property Management,738.15
867656,3500852,HAYS SPECIALIST RECRUITMENT,06/08/2015,53102,Agency Staff  Other,Chief Executives,Estates & Property Management,738.15
867656,3503728,HAYS SPECIALIST RECRUITMENT,13/08/2015,53102,Agency Staff  Other,Childrens Services,FIAT,"1,579.18"
867656,3500852,HAYS SPECIALIST RECRUITMENT,06/08/2015,53102,Agency Staff  Other,Childrens Services,FIAT,525.09
867656,3506997,HAYS SPECIALIST RECRUITMENT,20/08/2015,53102,Agency Staff  Other,Chief Executives,Finance Dept Procurement Team,"1,950.49"
867656,3503728,HAYS SPECIALIST RECRUITMENT,13/08/2015,53102,Agency Staff  Other,Chief Executives,Finance Dept Procurement Team,"1,338.87"
867656,3500852,HAYS SPECIALIST RECRUITMENT,06/08/2015,53102,Agency Staff  Other,Chief Executives,Finance Dept Procurement Team,"1,356.55"
867656,3506997,HAYS SPECIALIST RECRUITMENT,20/08/2015,53102,Agency Staff  Other,Chief Executives,Financial Management,754.05
867656,3503728,HAYS SPECIALIST RECRUITMENT,13/08/2015,53102,Agency Staff  Other,Chief Executives,Financial Management,754.05
867656,3500852,HAYS SPECIALIST RECRUITMENT,06/08/2015,53102,Agency Staff  Other,Chief Executives,Financial Management,754.05
867656,3500852,HAYS SPECIALIST RECRUITMENT,06/08/2015,53102,Agency Staff  Other,Housing GRF,Homes for You,"1,808.05"
867656,3503728,HAYS SPECIALIST RECRUITMENT,13/08/2015,53102,Agency Staff  Other,Adult Services,ICES,"2,613.24"
867656,3503728,HAYS SPECIALIST RECRUITMENT,13/08/2015,53102,Agency Staff  Other,Adult Services,Independent,"1,626.22"
867656,3503728,HAYS SPECIALIST RECRUITMENT,13/08/2015,53102,Agency Staff  Other,Childrens Services,Integrated Commissioning,"1,022.94"
867656,3500852,HAYS SPECIALIST RECRUITMENT,06/08/2015,53102,Agency Staff  Other,Childrens Services,Integrated Commissioning,"1,101.40"
867656,3506997,HAYS SPECIALIST RECRUITMENT,20/08/2015,53102,Agency Staff  Other,Adult Services,Laburnum Lodge,"1,261.17"
867656,3503728,HAYS SPECIALIST RECRUITMENT,13/08/2015,53102,Agency Staff  Other,Adult Services,Laburnum Lodge,500.00
867656,3500852,HAYS SPECIALIST RECRUITMENT,06/08/2015,53102,Agency Staff  Other,Adult Services,Laburnum Lodge,"2,641.04"
867656,3506997,HAYS SPECIALIST RECRUITMENT,20/08/2015,53102,Agency Staff  Other,Adult Services,LD Provider  Supported Housing,"1,153.42"
867656,3503728,HAYS SPECIALIST RECRUITMENT,13/08/2015,53102,Agency Staff  Other,Adult Services,LD Provider  Supported Housing,"2,493.24"
867656,3500852,HAYS SPECIALIST RECRUITMENT,06/08/2015,53102,Agency Staff  Other,Adult Services,LD Provider  Supported Housing,801.84
867656,3506997,HAYS SPECIALIST RECRUITMENT,20/08/2015,53102,Agency Staff  Other,Chief Executives,Legal Services Trading Account,"5,965.28"
867656,3503728,HAYS SPECIALIST RECRUITMENT,13/08/2015,53102,Agency Staff  Other,Chief Executives,Legal Services Trading Account,"10,390.38"
867656,3500852,HAYS SPECIALIST RECRUITMENT,06/08/2015,53102,Agency Staff  Other,Chief Executives,Legal Services Trading Account,"9,826.00"
867656,3506997,HAYS SPECIALIST RECRUITMENT,20/08/2015,53102,Agency Staff  Other,Environmental Services,Markets  Rent Account,"1,565.45"
867656,3500852,HAYS SPECIALIST RECRUITMENT,06/08/2015,53102,Agency Staff  Other,Environmental Services,Markets  Rent Account,"3,281.95"
867656,3506997,HAYS SPECIALIST RECRUITMENT,20/08/2015,53102,Agency Staff  Other,Housing GRF,Mediation,597.46
867656,3506997,HAYS SPECIALIST RECRUITMENT,20/08/2015,53102,Agency Staff  Other,Adult Services,MH Early Intervention Team,"3,014.92"
867656,3506997,HAYS SPECIALIST RECRUITMENT,20/08/2015,53102,Agency Staff  Other,Adult Services,MH North Fieldwork Team,"1,031.25"
867656,3503728,HAYS SPECIALIST RECRUITMENT,13/08/2015,53102,Agency Staff  Other,Adult Services,MH North Fieldwork Team,925.72
867656,3500852,HAYS SPECIALIST RECRUITMENT,06/08/2015,53102,Agency Staff  Other,Adult Services,MH North Fieldwork Team,"1,161.65"
867656,3506997,HAYS SPECIALIST RECRUITMENT,20/08/2015,53102,Agency Staff  Other,Environmental Services,Neighbourhood Management Support,"1,171.29"
867656,3500852,HAYS SPECIALIST RECRUITMENT,06/08/2015,53102,Agency Staff  Other,Environmental Services,Neighbourhood Management Support,"1,944.80"
867656,3506997,HAYS SPECIALIST RECRUITMENT,20/08/2015,53102,Agency Staff  Other,Adult Services,OA  Management Team,567.12
867656,3503728,HAYS SPECIALIST RECRUITMENT,13/08/2015,53102,Agency Staff  Other,Adult Services,OA  Management Team,567.12
867656,3500852,HAYS SPECIALIST RECRUITMENT,06/08/2015,53102,Agency Staff  Other,Adult Services,OA  Management Team,882.71
867656,3506997,HAYS SPECIALIST RECRUITMENT,20/08/2015,53102,Agency Staff  Other,Adult Services,OA  Wilfred Geere  Residential,509.38
867656,3500852,HAYS SPECIALIST RECRUITMENT,06/08/2015,53102,Agency Staff  Other,Adult Services,OA  Wilfred Geere  Residential,"1,993.77"
867656,3506997,HAYS SPECIALIST RECRUITMENT,20/08/2015,53102,Agency Staff  Other,Chief Executives,Occupational Health Unit,839.57
867656,3506997,HAYS SPECIALIST RECRUITMENT,20/08/2015,53102,Agency Staff  Other,Chief Executives,Operational Facilities Management,691.10
867656,3503728,HAYS SPECIALIST RECRUITMENT,13/08/2015,53102,Agency Staff  Other,Chief Executives,Operational Facilities Management,"1,373.00"
867656,3500852,HAYS SPECIALIST RECRUITMENT,06/08/2015,53102,Agency Staff  Other,Chief Executives,Operational Facilities Management,"1,396.05"
867656,3506997,HAYS SPECIALIST RECRUITMENT,20/08/2015,53102,Agency Staff  Other,Chief Executives,Projects,829.65
867656,3503728,HAYS SPECIALIST RECRUITMENT,13/08/2015,53102,Agency Staff  Other,Chief Executives,Projects,836.85
867656,3500852,HAYS SPECIALIST RECRUITMENT,06/08/2015,53102,Agency Staff  Other,Chief Executives,Projects,838.45
867656,3506997,HAYS SPECIALIST RECRUITMENT,20/08/2015,53102,Agency Staff  Other,Childrens Services,Quality & inclusion,774.00
867656,3506997,HAYS SPECIALIST RECRUITMENT,20/08/2015,53102,Agency Staff  Other,Childrens Services,Referral & Assmt Team North,825.30
867656,3503728,HAYS SPECIALIST RECRUITMENT,13/08/2015,53102,Agency Staff  Other,Childrens Services,Referral & Assmt Team North,768.65
867656,3500852,HAYS SPECIALIST RECRUITMENT,06/08/2015,53102,Agency Staff  Other,Childrens Services,Referral & Assmt Team North,651.00
867656,3506997,HAYS SPECIALIST RECRUITMENT,20/08/2015,53102,Agency Staff  Other,Childrens Services,Referral & Assmt Team South,"1,795.95"
867656,3500852,HAYS SPECIALIST RECRUITMENT,06/08/2015,53102,Agency Staff  Other,Childrens Services,Referral & Assmt Team South,"1,060.71"
867656,3500852,HAYS SPECIALIST RECRUITMENT,06/08/2015,53102,Agency Staff  Other,Environmental Services,Regulatory Services,760.32
867656,3506997,HAYS SPECIALIST RECRUITMENT,20/08/2015,53102,Agency Staff  Other,Childrens Services,Safeguarding Team North,"3,047.22"
867656,3503728,HAYS SPECIALIST RECRUITMENT,13/08/2015,53102,Agency Staff  Other,Childrens Services,Safeguarding Team North,"3,073.67"
867656,3500852,HAYS SPECIALIST RECRUITMENT,06/08/2015,53102,Agency Staff  Other,Childrens Services,Safeguarding Team North,"2,087.22"
867656,3506997,HAYS SPECIALIST RECRUITMENT,20/08/2015,53102,Agency Staff  Other,Childrens Services,Safeguarding Team South,"2,400.71"
867656,3503728,HAYS SPECIALIST RECRUITMENT,13/08/2015,53102,Agency Staff  Other,Childrens Services,Safeguarding Team South,"1,366.42"
867656,3500852,HAYS SPECIALIST RECRUITMENT,06/08/2015,53102,Agency Staff  Other,Childrens Services,Safeguarding Team South,"2,212.10"
867656,3506997,HAYS SPECIALIST RECRUITMENT,20/08/2015,53102,Agency Staff  Other,Childrens Services,Safeguarding Team West,"2,148.95"
867656,3503728,HAYS SPECIALIST RECRUITMENT,13/08/2015,53102,Agency Staff  Other,Childrens Services,Safeguarding Team West,"2,390.24"
867656,3500852,HAYS SPECIALIST RECRUITMENT,06/08/2015,53102,Agency Staff  Other,Childrens Services,Safeguarding Team West,"1,929.19"
867656,3503728,HAYS SPECIALIST RECRUITMENT,13/08/2015,53102,Agency Staff  Other,Chief Executives,Savings and Efficiencies Team,710.26
867656,3500852,HAYS SPECIALIST RECRUITMENT,06/08/2015,53102,Agency Staff  Other,Chief Executives,Savings and Efficiencies Team,787.20
2613299,3506023,Sector Security Services Limited,20/08/2015,53102,Agency Staff  Other,Environmental Services,Security Services,"1,123.33"
2613299,3506126,Sector Security Services Limited,20/08/2015,53102,Agency Staff  Other,Environmental Services,Security Services,"1,412.18"
2613299,3506129,Sector Security Services Limited,20/08/2015,53102,Agency Staff  Other,Environmental Services,Security Services,"1,247.12"
2613299,3506132,Sector Security Services Limited,20/08/2015,53102,Agency Staff  Other,Environmental Services,Security Services,825.30
2613299,3506167,Sector Security Services Limited,20/08/2015,53102,Agency Staff  Other,Environmental Services,Security Services,835.80
2613299,3506171,Sector Security Services Limited,20/08/2015,53102,Agency Staff  Other,Environmental Services,Security Services,586.88
2613299,3506135,Sector Security Services Limited,20/08/2015,53102,Agency Staff  Other,Environmental Services,Security Services,596.05
2613299,3506117,Sector Security Services Limited,20/08/2015,53102,Agency Staff  Other,Environmental Services,Security Services,"1,412.18"
2613299,3506125,Sector Security Services Limited,20/08/2015,53102,Agency Staff  Other,Environmental Services,Security Services,"1,247.12"
2613299,3506130,Sector Security Services Limited,20/08/2015,53102,Agency Staff  Other,Environmental Services,Security Services,788.62
2613299,3506142,Sector Security Services Limited,20/08/2015,53102,Agency Staff  Other,Environmental Services,Security Services,517.40
2613299,3506164,Sector Security Services Limited,20/08/2015,53102,Agency Staff  Other,Environmental Services,Security Services,990.36
867656,3506997,HAYS SPECIALIST RECRUITMENT,20/08/2015,53102,Agency Staff  Other,Environmental Services,Strategy & Service Development,"1,185.10"
867656,3503728,HAYS SPECIALIST RECRUITMENT,13/08/2015,53102,Agency Staff  Other,Environmental Services,Strategy & Service Development,"1,941.00"
867656,3500852,HAYS SPECIALIST RECRUITMENT,06/08/2015,53102,Agency Staff  Other,Environmental Services,Strategy & Service Development,"1,942.85"
867656,3506997,HAYS SPECIALIST RECRUITMENT,20/08/2015,53102,Agency Staff  Other,Childrens Services,Substance Misuse,675.75
867656,3503728,HAYS SPECIALIST RECRUITMENT,13/08/2015,53102,Agency Staff  Other,Childrens Services,Substance Misuse,673.75
867656,3500852,HAYS SPECIALIST RECRUITMENT,06/08/2015,53102,Agency Staff  Other,Childrens Services,Substance Misuse,678.95
867656,3506997,HAYS SPECIALIST RECRUITMENT,20/08/2015,53102,Agency Staff  Other,Childrens Services,Targeted Youth Support,"1,313.87"
867656,3503728,HAYS SPECIALIST RECRUITMENT,13/08/2015,53102,Agency Staff  Other,Childrens Services,Targeted Youth Support,725.58
867656,3500852,HAYS SPECIALIST RECRUITMENT,06/08/2015,53102,Agency Staff  Other,Childrens Services,Targeted Youth Support,"2,059.05"
2070,3506688,CASH FRIDAY,20/08/2015,53102,Agency Staff  Other,Development & Regeneration,The Work Programme,"1,369.00"
2070,3506690,CASH FRIDAY,20/08/2015,53102,Agency Staff  Other,Development & Regeneration,The Work Programme,"1,232.10"
2773316,3503535,Genie Personnel Ltd,13/08/2015,53102,Agency Staff  Other,Development & Regeneration,The Work Programme,"1,369.00"
2729460,3513734,Proactive Personnel Ltd,27/08/2015,53102,Agency Staff  Other,Environmental Services,Transport Support Service,846.19
2729460,3509291,Proactive Personnel Ltd,24/08/2015,53102,Agency Staff  Other,Environmental Services,Transport Support Service,846.19
2729460,3509303,Proactive Personnel Ltd,24/08/2015,53102,Agency Staff  Other,Environmental Services,Transport Support Service,674.67
2729460,3503721,Proactive Personnel Ltd,13/08/2015,53102,Agency Staff  Other,Environmental Services,Transport Support Service,846.20
2729460,3498065,Proactive Personnel Ltd,06/08/2015,53102,Agency Staff  Other,Environmental Services,Transport Support Service,846.19
867656,3506997,HAYS SPECIALIST RECRUITMENT,20/08/2015,53102,Agency Staff  Other,Environmental Services,Waste,"19,681.83"
867656,3503728,HAYS SPECIALIST RECRUITMENT,13/08/2015,53102,Agency Staff  Other,Environmental Services,Waste,"15,380.94"
867656,3500852,HAYS SPECIALIST RECRUITMENT,06/08/2015,53102,Agency Staff  Other,Environmental Services,Waste,"14,768.40"
867656,3506997,HAYS SPECIALIST RECRUITMENT,20/08/2015,53102,Agency Staff  Other,Adult Services,Wilfred Geere (2),"3,998.48"
867656,3503728,HAYS SPECIALIST RECRUITMENT,13/08/2015,53102,Agency Staff  Other,Adult Services,Wilfred Geere (2),"3,478.83"
867656,3506997,HAYS SPECIALIST RECRUITMENT,20/08/2015,53102,Agency Staff  Other,Childrens Services,Youth Offending Team,"2,035.20"
867656,3503728,HAYS SPECIALIST RECRUITMENT,13/08/2015,53102,Agency Staff  Other,Childrens Services,Youth Offending Team,954.60
867656,3500852,HAYS SPECIALIST RECRUITMENT,06/08/2015,53102,Agency Staff  Other,Childrens Services,Youth Offending Team,"1,393.20"
1727291,3503547,LIVE NATION (MUSIC) UK LTD,13/08/2015,48501,Artistes Fees,Environmental Services,Albert Halls Entertainment,"3,313.16"
2908299,3506300,Northgate Public Services (UK) Ltd,20/08/2015,43031,Blue Badge Stationery,Chief Executives, C.R.M. Operations,"2,819.80"
2615382,3513890,Askews & Holts Library Services Ltd,27/08/2015,40753,Book Fund Expenditure,Development & Regeneration, Libraries Info. Services,"1,550.39"
2615382,3509528,Askews & Holts Library Services Ltd,24/08/2015,40753,Book Fund Expenditure,Development & Regeneration, Libraries Info. Services,"1,116.70"
6742,3506869,ULVERSCROFT LARGE PRINT BOOKS LIMITED,20/08/2015,40753,Book Fund Expenditure,Development & Regeneration, Libraries Info. Services,649.60
10544,3500583,W F HOWES LTD,13/08/2015,40753,Book Fund Expenditure,Development & Regeneration, Libraries Info. Services,"4,896.00"
2615382,3506850,Askews & Holts Library Services Ltd,20/08/2015,40753,Book Fund Expenditure,Development & Regeneration,Libraries Info. Services,"1,471.51"
2655298,3509526,Bolinda UK Limited,24/08/2015,40753,Book Fund Expenditure,Development & Regeneration,Libraries Info. Services,559.30
362467,3504276,ERIC WRIGHT FACILITIES MANAGEMENT,17/08/2015,22001,Buildings Service Charge,Development & Regeneration, Libraries - Breightmet,"7,323.03"
39350,3502266,UNIQUE INTEGRATED SYSTEMS,10/08/2015,25106,C.C.T.V.,Environmental Services,Security Services,"1,409.00"
9982,3509467,NATIONAL CAR PARKS LTD#NCP,24/08/2015,37100,Car Parking,Chief Executives,Car Parking,"1,381.13"
9982,3507468,NATIONAL CAR PARKS LTD#NCP,24/08/2015,37100,Car Parking,Chief Executives,Car Parking,"29,664.87"
9982,3506657,NATIONAL CAR PARKS LTD#NCP,27/08/2015,37100,Car Parking,Development & Regeneration,D&R Departmental Account,"23,184.27"
146502,3507285,ALLIANCE DISPOSABLES LTD,20/08/2015,40108,Caretaking/Cleaning Equipment,Environmental Services,Civic Cleaning,562.65
6558,3507605,PHS GROUP PLC,24/08/2015,40108,Caretaking/Cleaning Equipment,Environmental Services,Civic Cleaning,842.50
125827,3515784,YORKSHIRE PURCHASING O 94211802 WAKEFIELD,28/08/2015,41101,Catering ProvisionsFood,Environmental Services,#NAME?,580.26
2112387,3500964,J W YOUNG (BUTCHERS) LIMITED,06/08/2015,41101,Catering ProvisionsFood,Environmental Services,Catering,694.76
1861291,3503477,HULLEYS GROUP,13/08/2015,41101,Catering ProvisionsFood,Environmental Services,Moss Bank Park Pavilion,536.98
8407,3512844,APETITO LTD,27/08/2015,41101,Catering ProvisionsFood,Adult Services,OA  Community Meals,913.88
8407,3512849,APETITO LTD,27/08/2015,41101,Catering ProvisionsFood,Adult Services,OA  Community Meals,"1,169.29"
8407,3507703,APETITO LTD,24/08/2015,41101,Catering ProvisionsFood,Adult Services,OA  Community Meals,"1,116.71"
8407,3510899,APETITO LTD,24/08/2015,41101,Catering ProvisionsFood,Adult Services,OA  Community Meals,"1,103.29"
8407,3506460,APETITO LTD,20/08/2015,41101,Catering ProvisionsFood,Adult Services,OA  Community Meals,904.53
8407,3506150,APETITO LTD,20/08/2015,41101,Catering ProvisionsFood,Adult Services,OA  Community Meals,812.95
8407,3506730,APETITO LTD,20/08/2015,41101,Catering ProvisionsFood,Adult Services,OA  Community Meals,"1,173.76"
8407,3500784,APETITO LTD,17/08/2015,41101,Catering ProvisionsFood,Adult Services,OA  Community Meals,"1,105.37"
8407,3504297,APETITO LTD,17/08/2015,41101,Catering ProvisionsFood,Adult Services,OA  Community Meals,841.38
8407,3504279,APETITO LTD,17/08/2015,41101,Catering ProvisionsFood,Adult Services,OA  Community Meals,903.38
8407,3503685,APETITO LTD,13/08/2015,41101,Catering ProvisionsFood,Adult Services,OA  Community Meals,"1,201.79"
8407,3502253,APETITO LTD,10/08/2015,41101,Catering ProvisionsFood,Adult Services,OA  Community Meals,992.85
8407,3497886,APETITO LTD,06/08/2015,41101,Catering ProvisionsFood,Adult Services,OA  Community Meals,828.89
125827,3515075,BRAKE BROS LTD 47758352 EAST ASHFORD,28/08/2015,41101,Catering ProvisionsFood,Environmental Services,Pavillion Cafe,525.45
1861291,3503475,HULLEYS GROUP,13/08/2015,41101,Catering ProvisionsFood,Environmental Services,Pavillion Cafe,502.94
2655300,3503008,1env Solutions Ltd,13/08/2015,40605,Chemicals,Environmental Services,Activities and Operations,841.03
42691,3511186,WTP PYROTECHNICS,27/08/2015,46203,Civic Hospitality,Chief Executives,Mayoralty,"1,075.00"
6100,3510951,ASSOCIATED CLEANING CONTRACTORS,27/08/2015,26000,Cleaning Materials,Housing GRF,Access & Advice Housing Options Centre,854.00
6100,3500747,ASSOCIATED CLEANING CONTRACTORS,06/08/2015,26000,Cleaning Materials,Housing GRF,Access & Advice Housing Options Centre,751.60
146502,3511719,ALLIANCE DISPOSABLES LTD,27/08/2015,26000,Cleaning Materials,Environmental Services,Building Cleaning,"1,630.00"
146502,3511736,ALLIANCE DISPOSABLES LTD,27/08/2015,26000,Cleaning Materials,Environmental Services,Building Cleaning,"2,120.39"
2156362,3497902,FLOORSTOCK LTD,10/08/2015,26000,Cleaning Materials,Environmental Services,Building Cleaning,"1,496.80"
7864,3507592,RELPHS FUNERAL SERVICE,24/08/2015,52300,Client Support Costs,Adult Services,AD Overhead,"1,400.00"
54567,3505886,Liverpool Hope University,17/08/2015,52300,Client Support Costs,Childrens Services,Child Prot Leaving Care Team,"3,600.00"
54567,3505883,Liverpool Hope University,17/08/2015,52300,Client Support Costs,Childrens Services,Child Prot Leaving Care Team,"3,600.00"
88171,3510976,THE LEAVING CARE TEAM,27/08/2015,52300,Client Support Costs,Childrens Services,Child Prot Leaving Care Team,"1,567.06"
88171,3499331,THE LEAVING CARE TEAM,06/08/2015,52300,Client Support Costs,Childrens Services,Child Prot Leaving Care Team,"5,822.65"
1569347,3500740,D H Decorating,06/08/2015,52300,Client Support Costs,Adult Services,LD Provider  Supported Housing,"1,780.00"
58263,3501570,TOUGH FURNITURE LTD,10/08/2015,52300,Client Support Costs,Adult Services,LD Provider  Supported Housing,"1,126.00"
3430,3506890,FIRST MANCHESTER LTD & FIRST TRANSFORMING TRAVEL,20/08/2015,34401,Clients  Bus Fares,Childrens Services,Child Prot Leaving Care Team,864.50
3430,3506893,FIRST MANCHESTER LTD & FIRST TRANSFORMING TRAVEL,20/08/2015,34401,Clients  Bus Fares,Development & Regeneration,The Work Programme,598.50
3430,3501014,FIRST MANCHESTER LTD & FIRST TRANSFORMING TRAVEL,06/08/2015,34401,Clients  Bus Fares,Development & Regeneration,The Work Programme,598.50
3430,3516020,FIRST MANCHESTER LTD & FIRST TRANSFORMING TRAVEL,27/08/2015,34401,Clients  Bus Fares,Childrens Services,Youth Offending Team,665.00
6706,3507460,TELECARS BOLTON,24/08/2015,34402,Clients  Taxi Fares,Environmental Services,SNT Childrens Servs,"1,758.75"
1647552,3501460,BUDDI LTD,06/08/2015,44051,Clients Aids & Adaptations,Adult Services,ASC External Funded Schemes,559.00
183862,3500569,EASYLINK UK,06/08/2015,44051,Clients Aids & Adaptations,Adult Services,ASC External Funded Schemes,717.55
265081,3510772,TUNSTALL HEALTHCARE (UK)LTD,24/08/2015,44051,Clients Aids & Adaptations,Adult Services,ASC External Funded Schemes,816.00
265081,3502349,TUNSTALL HEALTHCARE (UK)LTD,10/08/2015,44051,Clients Aids & Adaptations,Adult Services,ASC External Funded Schemes,"1,125.00"
1196,3511049,TYNETEC LIMITED,27/08/2015,44051,Clients Aids & Adaptations,Adult Services,ASC External Funded Schemes,738.20
6960,3516026,AIDAPT BATHROOMS LTD,27/08/2015,44051,Clients Aids & Adaptations,Adult Services,ICES,"1,110.14"
6960,3500782,AIDAPT BATHROOMS LTD,13/08/2015,44051,Clients Aids & Adaptations,Adult Services,ICES,"1,604.40"
6960,3504084,AIDAPT BATHROOMS LTD,13/08/2015,44051,Clients Aids & Adaptations,Adult Services,ICES,"1,131.90"
6960,3500864,AIDAPT BATHROOMS LTD,06/08/2015,44051,Clients Aids & Adaptations,Adult Services,ICES,525.00
6082,3500851,Anthony Axford Ltd,06/08/2015,44051,Clients Aids & Adaptations,Adult Services,ICES,715.34
2515326,3504115,FRONTIER THERAPEUTICS,20/08/2015,44051,Clients Aids & Adaptations,Adult Services,ICES,"1,775.00"
3510,3499323,G & S SMIRTHWAITE LTD,06/08/2015,44051,Clients Aids & Adaptations,Adult Services,ICES,609.00
73073,3501514,HEARING PRODUCTS INTERNATIONAL LIMITED,10/08/2015,44051,Clients Aids & Adaptations,Adult Services,ICES,"2,724.00"
3786,3506780,HELPING HAND CO (LEDBURY) LTD,20/08/2015,44051,Clients Aids & Adaptations,Adult Services,ICES,835.25
166850,3511147,JCM SEATING SOLUTIONS,27/08/2015,44051,Clients Aids & Adaptations,Adult Services,ICES,"1,244.00"
18212,3511175,KAROMED LIMITED,27/08/2015,44051,Clients Aids & Adaptations,Adult Services,ICES,980.00
18212,3512889,KAROMED LIMITED,27/08/2015,44051,Clients Aids & Adaptations,Adult Services,ICES,"2,675.60"
2610298,3506428,NRS Healthcare#Nottingham Rehab Limited,20/08/2015,44051,Clients Aids & Adaptations,Adult Services,ICES,604.38
238617,3499462,NYMAS#NORTH YORKSHIRE MOBILITY & SAFETY,06/08/2015,44051,Clients Aids & Adaptations,Adult Services,ICES,"1,690.00"
34703,3506920,PARK HOUSE HEALTHCARE LTD,20/08/2015,44051,Clients Aids & Adaptations,Adult Services,ICES,"1,555.00"
34703,3500755,PARK HOUSE HEALTHCARE LTD,06/08/2015,44051,Clients Aids & Adaptations,Adult Services,ICES,"1,100.00"
34703,3500756,PARK HOUSE HEALTHCARE LTD,06/08/2015,44051,Clients Aids & Adaptations,Adult Services,ICES,"1,100.00"
739608,3511078,PRISM MEDICAL UK,27/08/2015,44051,Clients Aids & Adaptations,Adult Services,ICES,"1,023.72"
739608,3511079,PRISM MEDICAL UK,27/08/2015,44051,Clients Aids & Adaptations,Adult Services,ICES,565.65
739608,3506957,PRISM MEDICAL UK,20/08/2015,44051,Clients Aids & Adaptations,Adult Services,ICES,"1,620.05"
739608,3501068,PRISM MEDICAL UK,06/08/2015,44051,Clients Aids & Adaptations,Adult Services,ICES,789.75
73074,3506955,SARABEC LIMITED,20/08/2015,44051,Clients Aids & Adaptations,Adult Services,ICES,"1,413.35"
73074,3504452,SARABEC LIMITED,17/08/2015,44051,Clients Aids & Adaptations,Adult Services,ICES,848.85
1097786,3502675,SIMPLYMED LTD,10/08/2015,44051,Clients Aids & Adaptations,Adult Services,ICES,924.00
1097786,3502677,SIMPLYMED LTD,10/08/2015,44051,Clients Aids & Adaptations,Adult Services,ICES,"2,032.75"
1924294,3497869,SOCIAL CARE NETWORK SOLUTIONS LIMITED,06/08/2015,44051,Clients Aids & Adaptations,Adult Services,ICES,"1,125.50"
2225293,3503709,SU-MED INTERNATIONAL (UK) LTD,13/08/2015,44051,Clients Aids & Adaptations,Adult Services,ICES,"1,450.00"
2517298,3507400,The Key Safe Company#Supra UK Ltd,24/08/2015,44051,Clients Aids & Adaptations,Adult Services,ICES,"2,497.50"
6732,3501028,TOM GALLAGHER LTD,06/08/2015,44051,Clients Aids & Adaptations,Adult Services,ICES,998.44
6732,3501023,TOM GALLAGHER LTD,06/08/2015,44051,Clients Aids & Adaptations,Adult Services,ICES,956.56
6732,3501037,TOM GALLAGHER LTD,06/08/2015,44051,Clients Aids & Adaptations,Adult Services,ICES,900.66
6732,3501036,TOM GALLAGHER LTD,06/08/2015,44051,Clients Aids & Adaptations,Adult Services,ICES,848.59
2876340,3511876,Wealden Rehab,27/08/2015,44051,Clients Aids & Adaptations,Adult Services,ICES,"1,247.79"
3603,3506305,G-MAP SERVICES LTD,20/08/2015,44058,Clients Medical Fees,Childrens Services,Disability Serv Fieldwork Team,"3,025.00"
6350,3508725,GREENHAM,24/08/2015,42000,Clothing,Chief Executives, Handyman Service,650.75
1475113,3503484,BRIGHT DIRECTION TRAINING LIMITED,13/08/2015,45914,Commissioning Worklessness,Development & Regeneration,The Work Programme,800.00
1475113,3503485,BRIGHT DIRECTION TRAINING LIMITED,13/08/2015,45914,Commissioning Worklessness,Development & Regeneration,The Work Programme,800.00
2036308,3506065,GOVDELIVERY,20/08/2015,45401,Computer Maintenance,Chief Executives, Web Team,"1,932.00"
2036308,3506127,GOVDELIVERY,20/08/2015,45401,Computer Maintenance,Chief Executives,#NAME?,"1,932.00"
871655,3511248,AGILISYS LIMITED,27/08/2015,45401,Computer Maintenance,Chief Executives,Agilysis Transition,"15,285.33"
1293,3497762,VODAFONE LIMITED#1,06/08/2015,45401,Computer Maintenance,Chief Executives,Corporate IT Investment,"2,759.63"
126648,3503529,CIVICA UK LTD,13/08/2015,45401,Computer Maintenance,Environmental Services,Regulatory Services,"1,155.00"
2036308,3509494,GOVDELIVERY,24/08/2015,45401,Computer Maintenance,Chief Executives,Web Team,"1,932.00"
2036308,3509497,GOVDELIVERY,24/08/2015,45401,Computer Maintenance,Chief Executives,Web Team,"1,932.00"
2036308,3506137,GOVDELIVERY,20/08/2015,45401,Computer Maintenance,Chief Executives,Web Team,"1,932.00"
6259,3512765,DELL CORPORATION LTD,27/08/2015,45400,Computer Purchase,Childrens Services,Admin IT (Schools),"12,460.50"
6259,3503096,DELL CORPORATION LTD,13/08/2015,45400,Computer Purchase,Childrens Services,Admin IT (Schools),"2,357.55"
6259,3503097,DELL CORPORATION LTD,13/08/2015,45400,Computer Purchase,Childrens Services,Admin IT (Schools),"18,083.25"
3909,3503099,INFORMATION & DATA NETWORK SUPPLIES LTD#IDN,13/08/2015,45400,Computer Purchase,Childrens Services,Admin IT (Schools),"22,092.75"
871655,3511251,AGILISYS LIMITED,27/08/2015,45400,Computer Purchase,Chief Executives,Agilysis Refreshed Assets,"11,619.11"
871655,3506470,AGILISYS LIMITED,20/08/2015,45430,Computer Software,Chief Executives, Individual Electoral Registration,"7,523.14"
126648,3511098,CIVICA UK LTD,27/08/2015,45430,Computer Software,Environmental Services,Community Safety,645.00
19727,3504014,Q-MATIC LTD,13/08/2015,45430,Computer Software,Chief Executives,C.R.M. Operations,"6,000.00"
2932299,3504243,Signis Ltd,20/08/2015,45430,Computer Software,Adult Services,STARS & ILS  Management,"5,250.00"
1564046,3509355,OJT COMMUNICATIONS LTD,24/08/2015,45432,Computer Software Installation,Chief Executives, C.R.M. Operations,"1,495.00"
302829,3504432,IDOX SOFTWARE LTD,17/08/2015,45432,Computer Software Installation,Development & Regeneration,Divisional Development,"2,500.00"
871655,3511090,AGILISYS LIMITED,27/08/2015,45432,Computer Software Installation,Environmental Services,IT,"1,500.00"
243438,3507619,BRIGHT INTERACTIVE LTD,24/08/2015,45431,Computer Software Licences,Chief Executives, Marketing Agency,"1,095.00"
2648336,3507454,Orbis Protect Limited,24/08/2015,45431,Computer Software Licences,Environmental Services,Activities and Operations,992.00
229284,3511146,CAREERVISION LIMITED,27/08/2015,45431,Computer Software Licences,Childrens Services,Admin Info Mgemnt Unit,725.00
1293,3507275,VODAFONE LIMITED#1,20/08/2015,45431,Computer Software Licences,Chief Executives,Corporate IT Investment,"3,078.00"
1309926,3504316,PRS FOR MUSIC,17/08/2015,45431,Computer Software Licences,Childrens Services,Harvey CC,670.57
22994,3503520,IKEN BUSINESS LTD,13/08/2015,45431,Computer Software Licences,Chief Executives,Legal Services Trading Account,"1,900.00"
1309926,3504316,PRS FOR MUSIC,17/08/2015,45431,Computer Software Licences,Childrens Services,Lord Street and Grosvenor CC,"1,266.46"
1671326,3503432,PANACEA SOFTWARE LTD,13/08/2015,45431,Computer Software Licences,Chief Executives,Marketing Agency,621.00
1309926,3504316,PRS FOR MUSIC,17/08/2015,45431,Computer Software Licences,Childrens Services,Oldhams CC,"1,219.75"
1309926,3504316,PRS FOR MUSIC,17/08/2015,45431,Computer Software Licences,Childrens Services,Oxford Grove CC,726.67
91546,3502223,TRAPEZE GROUP (UK) LTD,13/08/2015,45431,Computer Software Licences,Environmental Services,SNT Other,"14,196.87"
1309926,3504316,PRS FOR MUSIC,17/08/2015,45431,Computer Software Licences,Childrens Services,Tonge CC,"1,124.16"
6265,3503107,DTZ DEBENHAM TIE LEUNG,13/08/2015,48510,Consultancy Fees,Chief Executives, Castle Hill,"4,484.04"
6191,3507451,CAPITA BUSINESS SERVICES LTD,24/08/2015,48510,Consultancy Fees,Chief Executives,Directorate,"4,305.00"
6191,3504268,CAPITA BUSINESS SERVICES LTD,17/08/2015,48510,Consultancy Fees,Chief Executives,Directorate,"12,915.00"
6100,3506491,ASSOCIATED CLEANING CONTRACTORS,20/08/2015,26101,Contract Cleaning,Childrens Services,Technical Innovation Centre,"2,128.75"
266933,3506407,NSL LIMITED#NSL SERVICES GROUP,20/08/2015,44202,Contract UnitNonLEA,Environmental Services,Parking Services  On Street,"33,275.57"
266933,3505834,NSL LIMITED#NSL SERVICES GROUP,17/08/2015,44202,Contract UnitNonLEA,Environmental Services,Parking Services  On Street,"3,956.51"
6104,3505806,AUTOMATIC ALARMS LIMITED,17/08/2015,52200,Contracted Services,Chief Executives, Operational Facilities Management,"1,012.40"
3561,3505962,GEORGE HOUSE TRUST,17/08/2015,52200,Contracted Services,Public Health, PH Commissioning,"1,084.58"
6079,3506114,ANIMAL WARDENS,20/08/2015,52200,Contracted Services,Environmental Services,Activities and Operations,636.80
2096,3506161,CREST ENVIRONMENTAL LTD,20/08/2015,52200,Contracted Services,Environmental Services,Activities and Operations,"1,160.00"
2096,3498071,CREST ENVIRONMENTAL LTD,06/08/2015,52200,Contracted Services,Environmental Services,Activities and Operations,"1,715.00"
2610466,3509435,F Brewer & Son Ltd,24/08/2015,52200,Contracted Services,Environmental Services,Activities and Operations,882.00
2610466,3506111,F Brewer & Son Ltd,20/08/2015,52200,Contracted Services,Environmental Services,Activities and Operations,840.00
1604342,3501558,GROUNDWORKS & LEISURE SERVICES LTD,10/08/2015,52200,Contracted Services,Environmental Services,Activities and Operations,580.00
115484,3506115,KAYS TRAFFIC MANAGEMENT SYSTEMS LTD,20/08/2015,52200,Contracted Services,Environmental Services,Activities and Operations,"2,312.00"
115484,3506116,KAYS TRAFFIC MANAGEMENT SYSTEMS LTD,20/08/2015,52200,Contracted Services,Environmental Services,Activities and Operations,"3,746.20"
115484,3499298,KAYS TRAFFIC MANAGEMENT SYSTEMS LTD,06/08/2015,52200,Contracted Services,Environmental Services,Activities and Operations,"6,816.00"
115484,3497878,KAYS TRAFFIC MANAGEMENT SYSTEMS LTD,06/08/2015,52200,Contracted Services,Environmental Services,Activities and Operations,"3,834.60"
6538,3504037,P J CARNEY & CO LTD,13/08/2015,52200,Contracted Services,Environmental Services,Activities and Operations,"16,400.00"
6547,3502508,PEAK FABRICATIONS (BOLTON) LTD,10/08/2015,52200,Contracted Services,Environmental Services,Activities and Operations,"1,200.00"
7436,3513893,Bolton College#Was Community College,27/08/2015,52200,Contracted Services,Development & Regeneration,Adult Education,"178,120.00"
13252,3503434,CHALLENGER SITE SERVICES,13/08/2015,52200,Contracted Services,Environmental Services,Assets,"1,344.00"
155974,3507277,GEM ARBORICULTURAL SERVICES,20/08/2015,52200,Contracted Services,Environmental Services,Assets,650.00
155974,3504242,GEM ARBORICULTURAL SERVICES,17/08/2015,52200,Contracted Services,Environmental Services,Assets,"9,750.00"
155974,3504166,GEM ARBORICULTURAL SERVICES,13/08/2015,52200,Contracted Services,Environmental Services,Assets,"1,200.00"
1017,3497667,THE LANCASHIRE WILDLIFE TRUST,17/08/2015,52200,Contracted Services,Environmental Services,Assets,"5,000.00"
109359,3499283,The Midcounties Co-operative,06/08/2015,52200,Contracted Services,Chief Executives,Childcare Vouchers Admin,"3,689.40"
259116,3506411,ARCH INITIATIVES,20/08/2015,52200,Contracted Services,Adult Services,Drugs Pooled Treatment Budget,"55,750.00"
236866,3503256,ASDA PHARMACY,13/08/2015,52200,Contracted Services,Adult Services,Drugs Pooled Treatment Budget,666.60
236866,3503312,ASDA PHARMACY,13/08/2015,52200,Contracted Services,Adult Services,Drugs Pooled Treatment Budget,553.90
236866,3503313,ASDA PHARMACY,13/08/2015,52200,Contracted Services,Adult Services,Drugs Pooled Treatment Budget,991.60
236866,3503283,ASDA PHARMACY,13/08/2015,52200,Contracted Services,Adult Services,Drugs Pooled Treatment Budget,655.60
236866,3503357,ASDA PHARMACY,13/08/2015,52200,Contracted Services,Adult Services,Drugs Pooled Treatment Budget,984.30
2053,3503315,BOOTS THE CHEMIST,13/08/2015,52200,Contracted Services,Adult Services,Drugs Pooled Treatment Budget,867.40
2053,3503317,BOOTS THE CHEMIST,13/08/2015,52200,Contracted Services,Adult Services,Drugs Pooled Treatment Budget,602.10
2053,3503359,BOOTS THE CHEMIST,13/08/2015,52200,Contracted Services,Adult Services,Drugs Pooled Treatment Budget,"1,011.30"
2053,3503361,BOOTS THE CHEMIST,13/08/2015,52200,Contracted Services,Adult Services,Drugs Pooled Treatment Budget,591.60
130480,3503321,COHENS CHEMIST#GORGEMEAD LTD,13/08/2015,52200,Contracted Services,Adult Services,Drugs Pooled Treatment Budget,585.30
130480,3503363,COHENS CHEMIST#GORGEMEAD LTD,13/08/2015,52200,Contracted Services,Adult Services,Drugs Pooled Treatment Budget,582.30
130480,3503364,COHENS CHEMIST#GORGEMEAD LTD,13/08/2015,52200,Contracted Services,Adult Services,Drugs Pooled Treatment Budget,671.60
139082,3503326,DEANE PHARMACY#WILKINSON PHARMACY LTD,13/08/2015,52200,Contracted Services,Adult Services,Drugs Pooled Treatment Budget,574.40
139082,3503369,DEANE PHARMACY#WILKINSON PHARMACY LTD,13/08/2015,52200,Contracted Services,Adult Services,Drugs Pooled Treatment Budget,727.90
192525,3503327,DIAMOND HEALTHCARE (NW) LTD#DERBY STREET PHARMACY,13/08/2015,52200,Contracted Services,Adult Services,Drugs Pooled Treatment Budget,909.20
192525,3503370,DIAMOND HEALTHCARE (NW) LTD#DERBY STREET PHARMACY,13/08/2015,52200,Contracted Services,Adult Services,Drugs Pooled Treatment Budget,"1,370.60"
760627,3503354,HALLIWELL LATE NIGHT PHARMACY,13/08/2015,52200,Contracted Services,Adult Services,Drugs Pooled Treatment Budget,859.80
760627,3503371,HALLIWELL LATE NIGHT PHARMACY,13/08/2015,52200,Contracted Services,Adult Services,Drugs Pooled Treatment Budget,"1,604.70"
514522,3499314,LIFELINE PROJECT LTD,06/08/2015,52200,Contracted Services,Adult Services,Drugs Pooled Treatment Budget,"28,956.75"
514522,3499316,LIFELINE PROJECT LTD,06/08/2015,52200,Contracted Services,Adult Services,Drugs Pooled Treatment Budget,"70,631.75"
514522,3499313,LIFELINE PROJECT LTD,06/08/2015,52200,Contracted Services,Adult Services,Drugs Pooled Treatment Budget,"20,833.17"
514522,3499318,LIFELINE PROJECT LTD,06/08/2015,52200,Contracted Services,Adult Services,Drugs Pooled Treatment Budget,"66,460.42"
130483,3503332,LLOYDS PHARMACY,13/08/2015,52200,Contracted Services,Adult Services,Drugs Pooled Treatment Budget,641.90
130483,3503374,LLOYDS PHARMACY,13/08/2015,52200,Contracted Services,Adult Services,Drugs Pooled Treatment Budget,611.90
130485,3503334,MANOR PHARMACY#VARIOUS CHEMISTS,13/08/2015,52200,Contracted Services,Adult Services,Drugs Pooled Treatment Budget,951.50
130485,3503379,MANOR PHARMACY#VARIOUS CHEMISTS,13/08/2015,52200,Contracted Services,Adult Services,Drugs Pooled Treatment Budget,859.60
130486,3503335,MARKET PHARMACY#CLAMARY LTD,13/08/2015,52200,Contracted Services,Adult Services,Drugs Pooled Treatment Budget,585.20
130486,3503380,MARKET PHARMACY#CLAMARY LTD,13/08/2015,52200,Contracted Services,Adult Services,Drugs Pooled Treatment Budget,515.10
874657,3503322,MARSH (BOLTON) LTD T/A COHENS CHEMIST,13/08/2015,52200,Contracted Services,Adult Services,Drugs Pooled Treatment Budget,956.60
874657,3503324,MARSH (BOLTON) LTD T/A COHENS CHEMIST,13/08/2015,52200,Contracted Services,Adult Services,Drugs Pooled Treatment Budget,656.70
874657,3503365,MARSH (BOLTON) LTD T/A COHENS CHEMIST,13/08/2015,52200,Contracted Services,Adult Services,Drugs Pooled Treatment Budget,951.40
874657,3503367,MARSH (BOLTON) LTD T/A COHENS CHEMIST,13/08/2015,52200,Contracted Services,Adult Services,Drugs Pooled Treatment Budget,688.10
162251,3503338,ROWLANDS PHARMACY,13/08/2015,52200,Contracted Services,Adult Services,Drugs Pooled Treatment Budget,508.30
162251,3503383,ROWLANDS PHARMACY,13/08/2015,52200,Contracted Services,Adult Services,Drugs Pooled Treatment Budget,769.60
162251,3503384,ROWLANDS PHARMACY,13/08/2015,52200,Contracted Services,Adult Services,Drugs Pooled Treatment Budget,652.90
41646,3503270,SYKES CHEMIST LTD,13/08/2015,52200,Contracted Services,Adult Services,Drugs Pooled Treatment Budget,506.00
41646,3503271,SYKES CHEMIST LTD,13/08/2015,52200,Contracted Services,Adult Services,Drugs Pooled Treatment Budget,"1,867.80"
41646,3503347,SYKES CHEMIST LTD,13/08/2015,52200,Contracted Services,Adult Services,Drugs Pooled Treatment Budget,"1,074.40"
41646,3503348,SYKES CHEMIST LTD,13/08/2015,52200,Contracted Services,Adult Services,Drugs Pooled Treatment Budget,"2,591.90"
41646,3503349,SYKES CHEMIST LTD,13/08/2015,52200,Contracted Services,Adult Services,Drugs Pooled Treatment Budget,"1,547.10"
41646,3503300,SYKES CHEMIST LTD,13/08/2015,52200,Contracted Services,Adult Services,Drugs Pooled Treatment Budget,"1,977.80"
41646,3503392,SYKES CHEMIST LTD,13/08/2015,52200,Contracted Services,Adult Services,Drugs Pooled Treatment Budget,"1,313.70"
41646,3503393,SYKES CHEMIST LTD,13/08/2015,52200,Contracted Services,Adult Services,Drugs Pooled Treatment Budget,"2,449.80"
41646,3503394,SYKES CHEMIST LTD,13/08/2015,52200,Contracted Services,Adult Services,Drugs Pooled Treatment Budget,"1,991.30"
41646,3503395,SYKES CHEMIST LTD,13/08/2015,52200,Contracted Services,Adult Services,Drugs Pooled Treatment Budget,"1,111.60"
50111,3503328,WHITTLE PHARMACIES LTD,13/08/2015,52200,Contracted Services,Adult Services,Drugs Pooled Treatment Budget,693.00
50111,3503372,WHITTLE PHARMACIES LTD,13/08/2015,52200,Contracted Services,Adult Services,Drugs Pooled Treatment Budget,803.20
203434,3509269,NORTHERN EDUCATION,24/08/2015,52200,Contracted Services,Childrens Services,Educational Improvement - Sec,"1,730.00"
203434,3508904,NORTHERN EDUCATION,24/08/2015,52200,Contracted Services,Childrens Services,Educational Improvement - Sec,"1,425.00"
267311,3504399,MERITEC LIMITED,17/08/2015,52200,Contracted Services,Chief Executives,Housing Benefits,"7,211.25"
203373,3510948,SIGNHEALTH,27/08/2015,52200,Contracted Services,Adult Services,Independent,641.76
203373,3510949,SIGNHEALTH,27/08/2015,52200,Contracted Services,Adult Services,Independent,"1,327.20"
6169,3508993,BROTHERS OF CHARITY SERVICES,24/08/2015,52200,Contracted Services,Adult Services,LD Purchaser Domiciliary Care,"3,691.12"
156135,3504179,ACCESS TO CARE LTD,17/08/2015,52200,Contracted Services,Adult Services,LD Purchaser Supported Housing,"2,600.00"
156135,3504202,ACCESS TO CARE LTD,17/08/2015,52200,Contracted Services,Adult Services,LD Purchaser Supported Housing,850.00
156135,3504210,ACCESS TO CARE LTD,17/08/2015,52200,Contracted Services,Adult Services,LD Purchaser Supported Housing,850.00
156135,3504185,ACCESS TO CARE LTD,17/08/2015,52200,Contracted Services,Adult Services,LD Purchaser Supported Housing,850.00
156135,3504186,ACCESS TO CARE LTD,17/08/2015,52200,Contracted Services,Adult Services,LD Purchaser Supported Housing,"2,000.00"
156135,3504188,ACCESS TO CARE LTD,17/08/2015,52200,Contracted Services,Adult Services,LD Purchaser Supported Housing,"2,800.00"
156135,3504191,ACCESS TO CARE LTD,17/08/2015,52200,Contracted Services,Adult Services,LD Purchaser Supported Housing,"2,800.00"
156135,3504208,ACCESS TO CARE LTD,17/08/2015,52200,Contracted Services,Adult Services,LD Purchaser Supported Housing,850.00
156135,3504181,ACCESS TO CARE LTD,17/08/2015,52200,Contracted Services,Adult Services,LD Purchaser Supported Housing,"2,600.00"
156135,3504183,ACCESS TO CARE LTD,17/08/2015,52200,Contracted Services,Adult Services,LD Purchaser Supported Housing,"2,600.00"
156135,3504203,ACCESS TO CARE LTD,17/08/2015,52200,Contracted Services,Adult Services,LD Purchaser Supported Housing,850.00
156135,3504205,ACCESS TO CARE LTD,17/08/2015,52200,Contracted Services,Adult Services,LD Purchaser Supported Housing,850.00
156135,3504211,ACCESS TO CARE LTD,17/08/2015,52200,Contracted Services,Adult Services,LD Purchaser Supported Housing,850.00
156135,3504212,ACCESS TO CARE LTD,17/08/2015,52200,Contracted Services,Adult Services,LD Purchaser Supported Housing,850.00
6233,3507639,CREATIVE SUPPORT LTD#3,24/08/2015,52200,Contracted Services,Adult Services,LD Purchaser Supported Housing,"29,830.51"
6233,3507640,CREATIVE SUPPORT LTD#3,24/08/2015,52200,Contracted Services,Adult Services,LD Purchaser Supported Housing,"39,912.92"
6233,3507641,CREATIVE SUPPORT LTD#3,24/08/2015,52200,Contracted Services,Adult Services,LD Purchaser Supported Housing,"26,839.68"
6233,3507642,CREATIVE SUPPORT LTD#3,24/08/2015,52200,Contracted Services,Adult Services,LD Purchaser Supported Housing,"18,688.80"
6233,3507643,CREATIVE SUPPORT LTD#3,24/08/2015,52200,Contracted Services,Adult Services,LD Purchaser Supported Housing,"7,365.56"
2265300,3511310,NEXT STAGE A WAY FORWARD LIMITED,27/08/2015,52200,Contracted Services,Adult Services,LD Purchaser Supported Housing,"15,347.20"
2265300,3502236,NEXT STAGE A WAY FORWARD LIMITED,10/08/2015,52200,Contracted Services,Adult Services,LD Purchaser Supported Housing,"19,184.00"
2935539,3506638,Putting You First Ltd#Your Life Your Way,20/08/2015,52200,Contracted Services,Adult Services,LD Purchaser Supported Housing,"12,682.00"
6233,3506442,CREATIVE SUPPORT LTD#3,20/08/2015,52200,Contracted Services,Adult Services,MH Day Care External Provision,"10,920.50"
6233,3502291,CREATIVE SUPPORT LTD#3,10/08/2015,52200,Contracted Services,Adult Services,MH Day Care External Provision,"10,920.50"
566695,3511150,CARING ALTERNATIVES LIMITED,27/08/2015,52200,Contracted Services,Adult Services,MH Residential External Provision,"1,393.76"
566695,3511151,CARING ALTERNATIVES LIMITED,27/08/2015,52200,Contracted Services,Adult Services,MH Residential External Provision,"1,393.76"
566695,3506633,CARING ALTERNATIVES LIMITED,20/08/2015,52200,Contracted Services,Adult Services,MH Residential External Provision,"1,897.76"
566695,3506625,CARING ALTERNATIVES LIMITED,20/08/2015,52200,Contracted Services,Adult Services,MH Residential External Provision,"1,672.00"
566695,3506631,CARING ALTERNATIVES LIMITED,20/08/2015,52200,Contracted Services,Adult Services,MH Residential External Provision,"2,099.36"
566695,3506627,CARING ALTERNATIVES LIMITED,20/08/2015,52200,Contracted Services,Adult Services,MH Residential External Provision,"1,746.56"
566695,3506629,CARING ALTERNATIVES LIMITED,20/08/2015,52200,Contracted Services,Adult Services,MH Residential External Provision,"1,847.36"
566695,3506623,CARING ALTERNATIVES LIMITED,20/08/2015,52200,Contracted Services,Adult Services,MH Residential External Provision,"1,672.00"
6233,3507638,CREATIVE SUPPORT LTD#3,24/08/2015,52200,Contracted Services,Adult Services,MH Residential External Provision,"10,678.79"
6233,3504170,CREATIVE SUPPORT LTD#3,13/08/2015,52200,Contracted Services,Adult Services,MH Residential External Provision,"2,100.00"
2812308,3512688,Lifeways Paragon Limited,27/08/2015,52200,Contracted Services,Adult Services,MH Residential External Provision,"1,029.60"
6504,3497831,NAS SERVICES LTD,06/08/2015,52200,Contracted Services,Adult Services,MH Residential External Provision,685.11
203373,3511145,SIGNHEALTH,27/08/2015,52200,Contracted Services,Adult Services,MH Residential External Provision,689.57
203373,3511142,SIGNHEALTH,27/08/2015,52200,Contracted Services,Adult Services,MH Residential External Provision,"1,511.48"
7434,3503147,BOLTON CARERS SUPPORT,13/08/2015,52200,Contracted Services,Adult Services,OA  Carers Grant,"1,833.33"
2576377,3511696,Bolton Hindus' Age Inspiration Ltd#BHAI,27/08/2015,52200,Contracted Services,Adult Services,OA  Carers Grant,"2,000.00"
63390,3502286,CARE UK HOMECARE#CARE UK (BOLTON),10/08/2015,52200,Contracted Services,Adult Services,OA  Home Care Services external provision,"3,248.92"
63390,3497669,CARE UK HOMECARE#CARE UK (BOLTON),03/08/2015,52200,Contracted Services,Adult Services,OA  Home Care Services external provision,"58,638.54"
2511617,3506634,CRG Limited#Homecare,20/08/2015,52200,Contracted Services,Adult Services,OA  Home Care Services external provision,"21,761.62"
1617292,3506165,HOMECARE SUPPORT,20/08/2015,52200,Contracted Services,Adult Services,OA  Home Care Services external provision,"3,972.84"
101173,3497671,KEYMEN ASSOCIATES LTD#MAYDAY,03/08/2015,52200,Contracted Services,Adult Services,OA  Home Care Services external provision,"38,034.55"
101173,3497670,KEYMEN ASSOCIATES LTD#MAYDAY,03/08/2015,52200,Contracted Services,Adult Services,OA  Home Care Services external provision,"42,198.43"
1598332,3504033,MEARS CARE LTD,13/08/2015,52200,Contracted Services,Adult Services,OA  Home Care Services external provision,"10,178.58"
35473,3506624,PREMIER CARE LTD#BOLTON CARE SERVICES,20/08/2015,52200,Contracted Services,Adult Services,OA  Home Care Services external provision,"9,739.62"
2205290,3509180,SAFEHANDS CARE LTD#SAFEHANDS GROUP,24/08/2015,52200,Contracted Services,Adult Services,OA  Home Care Services external provision,613.88
1609312,3504035,SEVACARE UK LTD,13/08/2015,52200,Contracted Services,Adult Services,OA  Home Care Services external provision,"36,688.26"
6233,3507455,CREATIVE SUPPORT LTD#3,24/08/2015,52200,Contracted Services,Adult Services,OA Extra Care Housing External Provision,"30,006.50"
6233,3507611,CREATIVE SUPPORT LTD#3,24/08/2015,52200,Contracted Services,Adult Services,OA Extra Care Housing External Provision,"9,530.12"
6233,3507612,CREATIVE SUPPORT LTD#3,24/08/2015,52200,Contracted Services,Adult Services,OA Extra Care Housing External Provision,"11,376.49"
6233,3507613,CREATIVE SUPPORT LTD#3,24/08/2015,52200,Contracted Services,Adult Services,OA Extra Care Housing External Provision,"10,868.77"
6233,3507614,CREATIVE SUPPORT LTD#3,24/08/2015,52200,Contracted Services,Adult Services,OA Extra Care Housing External Provision,"10,837.84"
6233,3507615,CREATIVE SUPPORT LTD#3,24/08/2015,52200,Contracted Services,Adult Services,OA Extra Care Housing External Provision,"13,185.96"
6233,3507616,CREATIVE SUPPORT LTD#3,24/08/2015,52200,Contracted Services,Adult Services,OA Extra Care Housing External Provision,"8,332.59"
6233,3500562,CREATIVE SUPPORT LTD#3,06/08/2015,52200,Contracted Services,Adult Services,OA Extra Care Housing External Provision,"8,582.49"
6233,3500564,CREATIVE SUPPORT LTD#3,06/08/2015,52200,Contracted Services,Adult Services,OA Extra Care Housing External Provision,"10,560.53"
6233,3500563,CREATIVE SUPPORT LTD#3,06/08/2015,52200,Contracted Services,Adult Services,OA Extra Care Housing External Provision,"11,420.38"
6233,3500565,CREATIVE SUPPORT LTD#3,06/08/2015,52200,Contracted Services,Adult Services,OA Extra Care Housing External Provision,"10,953.55"
6233,3500566,CREATIVE SUPPORT LTD#3,06/08/2015,52200,Contracted Services,Adult Services,OA Extra Care Housing External Provision,"12,721.12"
6233,3500567,CREATIVE SUPPORT LTD#3,06/08/2015,52200,Contracted Services,Adult Services,OA Extra Care Housing External Provision,"8,610.24"
2427317,3505137,DRS HENDY & RIZWAN#P82022,17/08/2015,52200,Contracted Services,Public Health,PH Commissioning,834.00
130483,3508969,LLOYDS PHARMACY,24/08/2015,52200,Contracted Services,Public Health,Tobacco Control,656.10
2318333,3508979,QUICKSECURE LTD,24/08/2015,52200,Contracted Services,Public Health, Tobacco Control,904.27
162251,3508973,ROWLANDS PHARMACY,24/08/2015,52200,Contracted Services,Public Health, Tobacco Control,944.78
151938,3508972,THE NEWPORT PHARMACY LIMITED,24/08/2015,52200,Contracted Services,Public Health, Tobacco Control,655.76
2053,3508954,BOOTS THE CHEMIST,24/08/2015,52200,Contracted Services,Public Health,Sexual Health Improvement,542.93
2053,3508955,BOOTS THE CHEMIST,24/08/2015,52200,Contracted Services,Public Health,Sexual Health Improvement,685.86
1115807,3505215,DALEFIELD SURGERY#P82010,17/08/2015,52200,Contracted Services,Public Health,Sexual Health Improvement,520.00
1115807,3505216,DALEFIELD SURGERY#P82010,17/08/2015,52200,Contracted Services,Public Health,Sexual Health Improvement,781.00
801,3502258,STONEHILL MEDICAL CENTRE#P82008,10/08/2015,52200,Contracted Services,Public Health,Sexual Health Improvement,"5,756.00"
6077,3503673,ANCHOR TRUST#2,13/08/2015,52200,Contracted Services,Adult Services,Supporting People  Capital Financing,"9,215.70"
6077,3503674,ANCHOR TRUST#2,13/08/2015,52200,Contracted Services,Adult Services,Supporting People  Capital Financing,"6,625.58"
400011,3507462,CDP SOFT LIMITED,24/08/2015,52200,Contracted Services,Adult Services,Supporting People  Capital Financing,"11,810.00"
261782,3506433,FORTALICE LTD#BOLTON WOMENS AID,20/08/2015,52200,Contracted Services,Adult Services,Supporting People  Capital Financing,"56,229.75"
178961,3511359,GREAT PLACES HOUSING ASSOCIATION,27/08/2015,52200,Contracted Services,Adult Services,Supporting People  Capital Financing,"36,044.25"
178961,3511362,GREAT PLACES HOUSING ASSOCIATION,27/08/2015,52200,Contracted Services,Adult Services,Supporting People  Capital Financing,"10,251.68"
178961,3503672,GREAT PLACES HOUSING ASSOCIATION,13/08/2015,52200,Contracted Services,Adult Services,Supporting People  Capital Financing,"43,886.69"
3715,3503664,HANOVER HOUSING ASSOCIATION#2,13/08/2015,52200,Contracted Services,Adult Services,Supporting People  Capital Financing,"6,644.51"
3969,3507230,IRWELL VALLEY HOUSING ASSOCIATION,20/08/2015,52200,Contracted Services,Adult Services,Supporting People  Capital Financing,"2,896.65"
3969,3503658,IRWELL VALLEY HOUSING ASSOCIATION,13/08/2015,52200,Contracted Services,Adult Services,Supporting People  Capital Financing,"53,353.23"
6464,3506540,MAKING SPACE#4,20/08/2015,52200,Contracted Services,Adult Services,Supporting People  Capital Financing,"5,395.39"
1569311,3506561,SANCTUARY CARR-GOMM#THE SANCTUARY GROUP,20/08/2015,52200,Contracted Services,Adult Services,Supporting People  Capital Financing,"20,101.00"
6682,3503660,ST VINCENTS HOUSING ASSOCIATION LTD,13/08/2015,52200,Contracted Services,Adult Services,Supporting People  Capital Financing,"9,909.16"
2090290,3499251,The Riverside Group Ltd,06/08/2015,52200,Contracted Services,Adult Services,Supporting People  Capital Financing,"23,682.50"
6151,3507448,URBAN OUTREACH (BOLTON),24/08/2015,52200,Contracted Services,Adult Services,Supporting People  Capital Financing,"7,500.00"
43551,3516795,BOLTON COMMUNITY LEISURE LTD,28/08/2015,52200,Contracted Services,Development & Regeneration,The Leisure Trust,"197,412.69"
269110,3501457,SIGNAGE SYSTEMS LIMITED,06/08/2015,52200,Contracted Services,Development & Regeneration,The Leisure Trust,702.50
43551,3499338,BOLTON COMMUNITY LEISURE LTD,05/08/2015,52200,Contracted Services,Development & Regeneration,The Leverhulme Centre,"197,412.69"
2813341,3508949,Bestway National Chemist Limited#Well,24/08/2015,52200,Contracted Services,Public Health,Tobacco Control,705.07
130480,3508958,COHENS CHEMIST#GORGEMEAD LTD,24/08/2015,52200,Contracted Services,Public Health,Tobacco Control,"1,302.74"
239811,3506358,A1 STEAM CLEANING & RECOVERY,20/08/2015,52200,Contracted Services,Environmental Services,Transport Support Service,520.00
14146,3513771,APPROVED HYDRAULICS,27/08/2015,52200,Contracted Services,Environmental Services,Transport Support Service,785.40
14146,3506475,APPROVED HYDRAULICS,20/08/2015,52200,Contracted Services,Environmental Services,Transport Support Service,575.80
14146,3503723,APPROVED HYDRAULICS,13/08/2015,52200,Contracted Services,Environmental Services,Transport Support Service,959.19
14146,3503724,APPROVED HYDRAULICS,13/08/2015,52200,Contracted Services,Environmental Services,Transport Support Service,663.16
6205,3509207,CHASSIS & CAB SPECIALISTS,24/08/2015,52200,Contracted Services,Environmental Services,Transport Support Service,"1,036.00"
1555984,3512751,FAUN ZOELLER (UK) LTD,27/08/2015,52200,Contracted Services,Environmental Services,Transport Support Service,514.00
93292,3506355,J CHARLTON (BOLTON) LTD,20/08/2015,52200,Contracted Services,Environmental Services,Transport Support Service,575.00
7915,3508999,W & S C JOBSON,24/08/2015,52200,Contracted Services,Environmental Services,Transport Support Service,500.32
7915,3508991,W & S C JOBSON,24/08/2015,52200,Contracted Services,Environmental Services,Transport Support Service,926.03
7915,3509005,W & S C JOBSON,24/08/2015,52200,Contracted Services,Environmental Services,Transport Support Service,"1,074.89"
43938,3499237,BOLTON AT HOME#137,06/08/2015,52200,Contracted Services,Housing GRF,Urban Renewal Regeneration,"456,400.00"
16302,3499249,BOLTON COMMUNITY TRANSPORT & FURNITURE SERVICES#BCT & FS,06/08/2015,52200,Contracted Services,Environmental Services,Waste,"4,240.00"
2118292,3508799,BS SUPPORT SERVICES LIMITED,24/08/2015,52200,Contracted Services,Childrens Services,Youth Offending Team,"2,110.75"
2118292,3508873,BS SUPPORT SERVICES LIMITED,24/08/2015,52200,Contracted Services,Childrens Services,Youth Offending Team,"2,060.45"
2118292,3508877,BS SUPPORT SERVICES LIMITED,24/08/2015,52200,Contracted Services,Childrens Services,Youth Offending Team,"2,111.95"
6131,3508797,CHILD ACTION NORTHWEST,24/08/2015,52200,Contracted Services,Childrens Services,Youth Offending Team,"2,045.00"
146379,3511252,HEARTLIFT#ANDREA WOOD,27/08/2015,52200,Contracted Services,Childrens Services,Youth Offending Team,"1,440.00"
1569294,3511260,RAISE THE YOUTH FOUNDATION LTD,27/08/2015,52200,Contracted Services,Childrens Services,Youth Offending Team,"5,750.00"
1993290,3503139,MOUNTAINEXPLOITS#CHRISTOPHER KIRKHAM,13/08/2015,52200,Contracted Services,Childrens Services,Youth Service Outdoor Education,"2,205.00"
2876374,3511034,REDACTED - PERSONAL DATA,27/08/2015,52200,Contracted Services,Childrens Services,Youth Service Outdoor Education,746.25
2876374,3503237,REDACTED - PERSONAL DATA,13/08/2015,52200,Contracted Services,Childrens Services,Youth Service Outdoor Education,"1,125.00"
1147813,3497808,ECM EDUCATION CONSULTANTS LTD,06/08/2015,52200,Contracted Services,Childrens Services,,"1,980.00"
116750,3508998,PLACES FOR PEOPLE INDIVIDUAL SUPPORT,24/08/2015,52210,Contracted Services  Rental Voids,Adult Services,LD Provider  Supported Housing,"1,697.58"
43938,3509188,BOLTON AT HOME#137,24/08/2015,52210,Contracted Services  Rental Voids,Adult Services,LD Purchaser Supported Housing,553.00
2048428,3511875,CONTOUR HOMES#73,27/08/2015,52210,Contracted Services  Rental Voids,Adult Services,LD Purchaser Supported Housing,908.88
2048428,3511873,CONTOUR HOMES#73,27/08/2015,52210,Contracted Services  Rental Voids,Adult Services,LD Purchaser Supported Housing,"1,428.48"
2048428,3511869,CONTOUR HOMES#73,27/08/2015,52210,Contracted Services  Rental Voids,Adult Services,LD Purchaser Supported Housing,"1,429.56"
2048428,3506661,CONTOUR HOMES#73,20/08/2015,52210,Contracted Services  Rental Voids,Adult Services,LD Purchaser Supported Housing,"1,977.00"
178961,3509003,GREAT PLACES HOUSING ASSOCIATION,24/08/2015,52210,Contracted Services  Rental Voids,Adult Services,LD Purchaser Supported Housing,557.90
178961,3504173,GREAT PLACES HOUSING ASSOCIATION,13/08/2015,52210,Contracted Services  Rental Voids,Adult Services,LD Purchaser Supported Housing,628.40
49008,3504159,PROGRESS CARE HOUSING ASSOCIATION,13/08/2015,52210,Contracted Services  Rental Voids,Adult Services,LD Purchaser Supported Housing,"1,819.04"
6682,3504162,ST VINCENTS HOUSING ASSOCIATION LTD,13/08/2015,52210,Contracted Services  Rental Voids,Adult Services,LD Purchaser Supported Housing,650.76
6682,3504164,ST VINCENTS HOUSING ASSOCIATION LTD,13/08/2015,52210,Contracted Services  Rental Voids,Adult Services,LD Purchaser Supported Housing,547.36
2048428,3511866,CONTOUR HOMES#73,27/08/2015,52210,Contracted Services  Rental Voids,Adult Services,MH Residential Network,"1,722.12"
2218304,3506976,DISCLOSURE AND BARRING SERVICE,20/08/2015,48528,CRB Checks  External,Environmental Services,Regulatory Services Licensing,"2,816.00"
242608,3503961,CYCLESCHEME.CO.UK,12/08/2015,31150,Cycle Purchase,Chief Executives, Cycle to Work Scheme,843.29
242608,3503963,CYCLESCHEME.CO.UK,12/08/2015,31150,Cycle Purchase,Chief Executives,Cycle to Work Scheme,749.10
245759,3511707,ADVANCED BUILDING (NW) LTD,27/08/2015,20100,Day To Day Maintenance,Property Services,Admin Buildings  General,725.00
6675,3502226,SPECTRA SECURITY LTD,24/08/2015,20100,Day To Day Maintenance,Chief Executives, Accomm Rationalisation Strategy,"13,128.50"
3674,3507238,H & C (Plant Hire) Ltd,20/08/2015,20100,Day To Day Maintenance,Environmental Services,Depots,"1,058.00"
814638,3506107,BIRKDALE DESIGN LTD,20/08/2015,20100,Day To Day Maintenance,Housing GRF,Dispersed Properties,640.00
6182,3505995,C HORROCKS & SONS LTD,20/08/2015,20100,Day To Day Maintenance,Environmental Services,Markets  Rent Account,762.76
43839,3510812,J Wells Decorators Ltd,24/08/2015,20100,Day To Day Maintenance,Childrens Services,Res Serv Maintenance,"1,650.00"
1548466,3506024,S&S DECORATORS,20/08/2015,20100,Day To Day Maintenance,Childrens Services,Res Serv Maintenance,500.00
7481,3506458,BRADSHAW SHEET METAL WORKS LTD,20/08/2015,20100,Day To Day Maintenance,Environmental Services,Transport Support Service,597.00
7481,3506461,BRADSHAW SHEET METAL WORKS LTD,20/08/2015,20100,Day To Day Maintenance,Environmental Services,Transport Support Service,594.50
6149,3506602,BOLTON STONE RESTORATION LTD,20/08/2015,20103,Day To Day Maintenance Structural,Environmental Services,Assets,"6,105.00"
6149,3504278,BOLTON STONE RESTORATION LTD,17/08/2015,20103,Day To Day Maintenance Structural,Environmental Services,Assets,"6,226.00"
419294,3500704,CRAVEN ROOFING CONTRACTORS,06/08/2015,20103,Day To Day Maintenance Structural,Environmental Services,Assets,"4,380.00"
423333,3502890,W CRAVEN & SON,13/08/2015,20103,Day To Day Maintenance Structural,Environmental Services,Assets,960.00
125827,3515686,CURRYS ONLINE 61494462 HEMEL HEMPSTE,28/08/2015,40610,Direct Materials,Childrens Services, Financial Admin,549.99
88184,3509287,THE COLUMBARIA COMPANY,24/08/2015,40610,Direct Materials,Environmental Services,Bereavement Services,840.00
88184,3505863,THE COLUMBARIA COMPANY,17/08/2015,40610,Direct Materials,Environmental Services,Bereavement Services,"1,268.50"
6399,3507391,J DICKINSON & SONS (HORWICH) LTD#2,24/08/2015,40610,Direct Materials,Environmental Services,Highway Services,"2,738.62"
6399,3507382,J DICKINSON & SONS (HORWICH) LTD#2,24/08/2015,40610,Direct Materials,Environmental Services,Highway Services,"1,770.23"
6399,3507376,J DICKINSON & SONS (HORWICH) LTD#2,24/08/2015,40610,Direct Materials,Environmental Services,Highway Services,"1,237.96"
6399,3507368,J DICKINSON & SONS (HORWICH) LTD#2,20/08/2015,40610,Direct Materials,Environmental Services,Highway Services,"2,086.16"
6399,3507363,J DICKINSON & SONS (HORWICH) LTD#2,20/08/2015,40610,Direct Materials,Environmental Services,Highway Services,"1,170.99"
6465,3507599,MALLATITE LTD,24/08/2015,40610,Direct Materials,Environmental Services,Lighting / Stores Billable Costs,"28,065.00"
6433,3507452,ASD METAL SERVICES#KLOCKNER METAL SVS LTD,24/08/2015,40610,Direct Materials,Environmental Services,Sign Shop,"2,125.00"
6433,3507450,ASD METAL SERVICES#KLOCKNER METAL SVS LTD,24/08/2015,40610,Direct Materials,Environmental Services,Sign Shop,720.00
6782,3511194,WM SMITH & SONS (BARNARD CASTLE) LTD,27/08/2015,40610,Direct Materials,Environmental Services,Sign Shop,"1,259.60"
2218304,3507457,DISCLOSURE AND BARRING SERVICE,24/08/2015,19400,Disclosure Monitoring,Chief Executives, HR - Corporate,"16,412.00"
2643324,3504415,Complete Background Screening Ltd#CBS,17/08/2015,19400,Disclosure Monitoring,Chief Executives,HR - Corporate,555.00
47314,3502794,SHOWSEC INTERNATIONAL LIMITED,10/08/2015,79000,Election Expenses,Chief Executives,Elections,"1,090.45"
46513,3511702,SCOTTISH & SOUTHERN ENERGY PLC,27/08/2015,21100,Electricity  General,Housing GRF,Access & Advice Caravan Sites,"2,506.71"
46513,3511702,SCOTTISH & SOUTHERN ENERGY PLC,27/08/2015,21100,Electricity  General,Housing GRF,Access & Advice Housing Options Centre,593.48
46513,3511701,SCOTTISH & SOUTHERN ENERGY PLC,27/08/2015,21100,Electricity  General,Housing GRF,Accommodation Projects,937.28
46513,3511701,SCOTTISH & SOUTHERN ENERGY PLC,27/08/2015,21100,Electricity  General,Environmental Services,Assets,"11,941.60"
46513,3511701,SCOTTISH & SOUTHERN ENERGY PLC,27/08/2015,21100,Electricity  General,Environmental Services,Bereavement Services,"2,688.31"
46513,3511702,SCOTTISH & SOUTHERN ENERGY PLC,27/08/2015,21100,Electricity  General,Chief Executives,Land and Property Portfolios,"2,471.21"
46513,3511702,SCOTTISH & SOUTHERN ENERGY PLC,27/08/2015,21100,Electricity  General,Chief Executives,Admin Buildings Portfolio,"2,695.46"
46513,3511701,SCOTTISH & SOUTHERN ENERGY PLC,27/08/2015,21100,Electricity  General,Chief Executives,Adult Social Care Portfolio,"1,146.03"
46513,3511702,SCOTTISH & SOUTHERN ENERGY PLC,27/08/2015,21100,Electricity  General,Chief Executives,Adult Social Care Portfolio,"6,709.51"
46513,3511701,SCOTTISH & SOUTHERN ENERGY PLC,27/08/2015,21100,Electricity  General,Chief Executives,Energy Payments Account,"1,129.37"
46513,3511701,SCOTTISH & SOUTHERN ENERGY PLC,27/08/2015,21100,Electricity  General,Environmental Services,Depots,"2,313.69"
46513,3511702,SCOTTISH & SOUTHERN ENERGY PLC,27/08/2015,21100,Electricity  General,Environmental Services,Depots,"2,211.13"
46513,3511701,SCOTTISH & SOUTHERN ENERGY PLC,27/08/2015,21100,Electricity  General,Childrens Services,Disability Serv Avondale Street,635.96
46513,3511646,SCOTTISH & SOUTHERN ENERGY PLC,27/08/2015,21100,Electricity  General,Housing GRF,Dispersed Properties,"1,454.98"
46513,3511701,SCOTTISH & SOUTHERN ENERGY PLC,27/08/2015,21100,Electricity  General,Development & Regeneration, Libraries - Farnworth,573.87
46513,3511701,SCOTTISH & SOUTHERN ENERGY PLC,27/08/2015,21100,Electricity  General,Development & Regeneration, Libraries - High Street,"1,403.24"
46513,3511702,SCOTTISH & SOUTHERN ENERGY PLC,27/08/2015,21100,Electricity  General,Development & Regeneration,Smithills Hall Museum,899.07
46513,3511701,SCOTTISH & SOUTHERN ENERGY PLC,27/08/2015,21100,Electricity  General,Development & Regeneration,Schools Library Services,683.64
46513,3511701,SCOTTISH & SOUTHERN ENERGY PLC,27/08/2015,21100,Electricity  General,Childrens Services,Farnworth Youth Centre (Yth Srv),"1,501.63"
46513,3511701,SCOTTISH & SOUTHERN ENERGY PLC,27/08/2015,21100,Electricity  General,Childrens Services,Harvey CC,"2,163.98"
46513,3511701,SCOTTISH & SOUTHERN ENERGY PLC,27/08/2015,21100,Electricity  General,Environmental Services,Heaton Fold,"1,200.97"
46513,3511701,SCOTTISH & SOUTHERN ENERGY PLC,27/08/2015,21100,Electricity  General,Childrens Services,Heywood YP Centre,"2,324.41"
46513,3511701,SCOTTISH & SOUTHERN ENERGY PLC,27/08/2015,21100,Electricity  General,Childrens Services,Lord Street and Grosvenor CC,"1,552.92"
46513,3511702,SCOTTISH & SOUTHERN ENERGY PLC,27/08/2015,21100,Electricity  General,Environmental Services,Markets  Rent Account,"1,142.41"
46513,3511702,SCOTTISH & SOUTHERN ENERGY PLC,27/08/2015,21100,Electricity  General,Environmental Services,Mngmnt & Admin Overhead,513.88
46513,3511701,SCOTTISH & SOUTHERN ENERGY PLC,27/08/2015,21100,Electricity  General,Childrens Services,Oxford Grove CC,"3,161.44"
46513,3511702,SCOTTISH & SOUTHERN ENERGY PLC,27/08/2015,21100,Electricity  General,Development & Regeneration,The Leverhulme Centre,"1,589.10"
10259,3511278,Salford City Council,27/08/2015,20501,Engineering Work,Environmental Services,Highway Regulation & Inspection,"6,120.56"
2417,3511640,ELECTRICITY NORTH WEST LIMITED#UNITED UTILITIES ELECTRICITY SERVICES LTD,27/08/2015,20501,Engineering Work,Environmental Services,Highway Services,610.70
1122809,3513854,JONES LIGHTING LTD,27/08/2015,20501,Engineering Work,Environmental Services,Highway Services,500.53
1122809,3513869,JONES LIGHTING LTD,27/08/2015,20501,Engineering Work,Environmental Services,Highway Services,630.66
1122809,3513877,JONES LIGHTING LTD,27/08/2015,20501,Engineering Work,Environmental Services,Highway Services,549.87
1122809,3513868,JONES LIGHTING LTD,27/08/2015,20501,Engineering Work,Environmental Services,Lighting / Stores Billable Costs,500.11
1122809,3506575,JONES LIGHTING LTD,20/08/2015,20501,Engineering Work,Environmental Services,Lighting / Stores Billable Costs,"5,001.10"
1122809,3506581,JONES LIGHTING LTD,20/08/2015,20501,Engineering Work,Environmental Services,Lighting / Stores Billable Costs,"5,001.10"
1122809,3506572,JONES LIGHTING LTD,20/08/2015,20501,Engineering Work,Environmental Services,Lighting / Stores Billable Costs,"5,001.10"
1122809,3506570,JONES LIGHTING LTD,20/08/2015,20501,Engineering Work,Environmental Services,Lighting / Stores Billable Costs,"5,001.10"
1122809,3504304,JONES LIGHTING LTD,17/08/2015,20501,Engineering Work,Environmental Services,Lighting / Stores Billable Costs,"5,001.10"
1122809,3504305,JONES LIGHTING LTD,17/08/2015,20501,Engineering Work,Environmental Services,Lighting / Stores Billable Costs,"5,001.10"
1122809,3504308,JONES LIGHTING LTD,17/08/2015,20501,Engineering Work,Environmental Services,Lighting / Stores Billable Costs,"5,001.10"
1122809,3500600,JONES LIGHTING LTD,06/08/2015,20501,Engineering Work,Environmental Services,Lighting / Stores Billable Costs,"5,001.10"
1122809,3500599,JONES LIGHTING LTD,06/08/2015,20501,Engineering Work,Environmental Services,Lighting / Stores Billable Costs,"5,001.10"
1122809,3500603,JONES LIGHTING LTD,06/08/2015,20501,Engineering Work,Environmental Services,Lighting / Stores Billable Costs,"5,001.10"
1122809,3500601,JONES LIGHTING LTD,06/08/2015,20501,Engineering Work,Environmental Services,Lighting / Stores Billable Costs,"5,001.10"
1194842,3501399,IMPRESSION (BOLTON) LIMITED#1,17/08/2015,48602,Exhibit Hire,Development & Regeneration,Collections Access MUS,970.00
265470,3508728,AMIX RMC PLANT LTD,24/08/2015,Z6008,Expense AP Accrual,Bolton MBC Balance Sheet,Bolton MBC Balance Sheet,"1,955.50"
6100,3499243,ASSOCIATED CLEANING CONTRACTORS,06/08/2015,Z6008,Expense AP Accrual,Bolton MBC Balance Sheet,Bolton MBC Balance Sheet,"2,210.00"
6104,3511421,AUTOMATIC ALARMS LIMITED,27/08/2015,Z6008,Expense AP Accrual,Bolton MBC Balance Sheet,Bolton MBC Balance Sheet,802.16
6104,3509009,AUTOMATIC ALARMS LIMITED,24/08/2015,Z6008,Expense AP Accrual,Bolton MBC Balance Sheet,Bolton MBC Balance Sheet,"1,779.44"
6104,3506554,AUTOMATIC ALARMS LIMITED,20/08/2015,Z6008,Expense AP Accrual,Bolton MBC Balance Sheet,Bolton MBC Balance Sheet,"4,422.71"
6104,3506383,AUTOMATIC ALARMS LIMITED,20/08/2015,Z6008,Expense AP Accrual,Bolton MBC Balance Sheet,Bolton MBC Balance Sheet,"4,252.75"
185697,3509321,BELL GROUP UK,24/08/2015,Z6008,Expense AP Accrual,Bolton MBC Balance Sheet,Bolton MBC Balance Sheet,960.00
6126,3500709,BETHELL CONSTRUCTION LTD,10/08/2015,Z6008,Expense AP Accrual,Bolton MBC Balance Sheet,Bolton MBC Balance Sheet,"5,697.08"
482511,3506416,CATEREPAIR LTD,20/08/2015,Z6008,Expense AP Accrual,Bolton MBC Balance Sheet,Bolton MBC Balance Sheet,513.78
482511,3500724,CATEREPAIR LTD,06/08/2015,Z6008,Expense AP Accrual,Bolton MBC Balance Sheet,Bolton MBC Balance Sheet,"1,068.50"
482511,3500602,CATEREPAIR LTD,06/08/2015,Z6008,Expense AP Accrual,Bolton MBC Balance Sheet,Bolton MBC Balance Sheet,835.00
45654,3507429,Concrete Drilling Services Ltd,24/08/2015,Z6008,Expense AP Accrual,Bolton MBC Balance Sheet,Bolton MBC Balance Sheet,500.00
22434,3507394,DP COLD PLANING LIMITED,24/08/2015,Z6008,Expense AP Accrual,Bolton MBC Balance Sheet,Bolton MBC Balance Sheet,900.00
24798,3511662,DRAIN DOCTOR PLUMBING DRAINAGE INVESTIGATIONS & SOLUTIONS NW LTD,27/08/2015,Z6008,Expense AP Accrual,Bolton MBC Balance Sheet,Bolton MBC Balance Sheet,"2,070.00"
24798,3506777,DRAIN DOCTOR PLUMBING DRAINAGE INVESTIGATIONS & SOLUTIONS NW LTD,20/08/2015,Z6008,Expense AP Accrual,Bolton MBC Balance Sheet,Bolton MBC Balance Sheet,"1,495.00"
356286,3509242,EXPRESS ELEVATORS LTD,24/08/2015,Z6008,Expense AP Accrual,Bolton MBC Balance Sheet,Bolton MBC Balance Sheet,815.75
356286,3510754,EXPRESS ELEVATORS LTD,24/08/2015,Z6008,Expense AP Accrual,Bolton MBC Balance Sheet,Bolton MBC Balance Sheet,"3,962.75"
356286,3509235,EXPRESS ELEVATORS LTD,24/08/2015,Z6008,Expense AP Accrual,Bolton MBC Balance Sheet,Bolton MBC Balance Sheet,"1,375.00"
356286,3509250,EXPRESS ELEVATORS LTD,24/08/2015,Z6008,Expense AP Accrual,Bolton MBC Balance Sheet,Bolton MBC Balance Sheet,"1,111.00"
356286,3509252,EXPRESS ELEVATORS LTD,24/08/2015,Z6008,Expense AP Accrual,Bolton MBC Balance Sheet,Bolton MBC Balance Sheet,504.00
356286,3509253,EXPRESS ELEVATORS LTD,24/08/2015,Z6008,Expense AP Accrual,Bolton MBC Balance Sheet,Bolton MBC Balance Sheet,606.90
186916,3506939,GMS SERVICES LIMITED,20/08/2015,Z6008,Expense AP Accrual,Bolton MBC Balance Sheet,Bolton MBC Balance Sheet,"2,030.00"
2287325,3511752,GRAHAM ASSET MANAGEMENT LTD,27/08/2015,Z6008,Expense AP Accrual,Bolton MBC Balance Sheet,Bolton MBC Balance Sheet,"1,227.76"
2287325,3506842,GRAHAM ASSET MANAGEMENT LTD,20/08/2015,Z6008,Expense AP Accrual,Bolton MBC Balance Sheet,Bolton MBC Balance Sheet,730.74
2287325,3504727,GRAHAM ASSET MANAGEMENT LTD,17/08/2015,Z6008,Expense AP Accrual,Bolton MBC Balance Sheet,Bolton MBC Balance Sheet,616.00
2287325,3504733,GRAHAM ASSET MANAGEMENT LTD,17/08/2015,Z6008,Expense AP Accrual,Bolton MBC Balance Sheet,Bolton MBC Balance Sheet,544.50
2287325,3501555,GRAHAM ASSET MANAGEMENT LTD,10/08/2015,Z6008,Expense AP Accrual,Bolton MBC Balance Sheet,Bolton MBC Balance Sheet,605.00
2287325,3499261,GRAHAM ASSET MANAGEMENT LTD,06/08/2015,Z6008,Expense AP Accrual,Bolton MBC Balance Sheet,Bolton MBC Balance Sheet,616.00
2287325,3500968,GRAHAM ASSET MANAGEMENT LTD,06/08/2015,Z6008,Expense AP Accrual,Bolton MBC Balance Sheet,Bolton MBC Balance Sheet,"1,045.00"
15577,3506163,GROUNDWORK LANDSCAPES LIMITED,20/08/2015,Z6008,Expense AP Accrual,Bolton MBC Balance Sheet,Bolton MBC Balance Sheet,590.00
2284291,3504224,JACKSON JACKSON & SONS LTD,17/08/2015,Z6008,Expense AP Accrual,Bolton MBC Balance Sheet,Bolton MBC Balance Sheet,713.30
115484,3506459,KAYS TRAFFIC MANAGEMENT SYSTEMS LTD,20/08/2015,Z6008,Expense AP Accrual,Bolton MBC Balance Sheet,Bolton MBC Balance Sheet,800.00
2433402,3508790,LAFARGE TARMAC TRADING LIMITED,24/08/2015,Z6008,Expense AP Accrual,Bolton MBC Balance Sheet,Bolton MBC Balance Sheet,736.09
2433402,3507404,LAFARGE TARMAC TRADING LIMITED,24/08/2015,Z6008,Expense AP Accrual,Bolton MBC Balance Sheet,Bolton MBC Balance Sheet,"1,087.42"
2433402,3507424,LAFARGE TARMAC TRADING LIMITED,24/08/2015,Z6008,Expense AP Accrual,Bolton MBC Balance Sheet,Bolton MBC Balance Sheet,648.06
2433402,3507426,LAFARGE TARMAC TRADING LIMITED,24/08/2015,Z6008,Expense AP Accrual,Bolton MBC Balance Sheet,Bolton MBC Balance Sheet,657.42
2433402,3507409,LAFARGE TARMAC TRADING LIMITED,24/08/2015,Z6008,Expense AP Accrual,Bolton MBC Balance Sheet,Bolton MBC Balance Sheet,"1,279.49"
2433402,3507417,LAFARGE TARMAC TRADING LIMITED,24/08/2015,Z6008,Expense AP Accrual,Bolton MBC Balance Sheet,Bolton MBC Balance Sheet,"1,119.55"
2433402,3507420,LAFARGE TARMAC TRADING LIMITED,24/08/2015,Z6008,Expense AP Accrual,Bolton MBC Balance Sheet,Bolton MBC Balance Sheet,"1,061.28"
2433402,3508792,LAFARGE TARMAC TRADING LIMITED,24/08/2015,Z6008,Expense AP Accrual,Bolton MBC Balance Sheet,Bolton MBC Balance Sheet,923.39
6458,3501549,MARK MANGNALL & SON,10/08/2015,Z6008,Expense AP Accrual,Bolton MBC Balance Sheet,Bolton MBC Balance Sheet,"3,066.00"
6479,3512880,MEDWAY HEATING (BOLTON)  LTD,27/08/2015,Z6008,Expense AP Accrual,Bolton MBC Balance Sheet,Bolton MBC Balance Sheet,"1,981.25"
6479,3509358,MEDWAY HEATING (BOLTON)  LTD,24/08/2015,Z6008,Expense AP Accrual,Bolton MBC Balance Sheet,Bolton MBC Balance Sheet,"1,042.26"
6479,3506902,MEDWAY HEATING (BOLTON)  LTD,20/08/2015,Z6008,Expense AP Accrual,Bolton MBC Balance Sheet,Bolton MBC Balance Sheet,992.25
6479,3506169,MEDWAY HEATING (BOLTON)  LTD,20/08/2015,Z6008,Expense AP Accrual,Bolton MBC Balance Sheet,Bolton MBC Balance Sheet,"1,356.00"
6479,3504227,MEDWAY HEATING (BOLTON)  LTD,17/08/2015,Z6008,Expense AP Accrual,Bolton MBC Balance Sheet,Bolton MBC Balance Sheet,602.13
6479,3504232,MEDWAY HEATING (BOLTON)  LTD,17/08/2015,Z6008,Expense AP Accrual,Bolton MBC Balance Sheet,Bolton MBC Balance Sheet,538.75
6547,3501099,PEAK FABRICATIONS (BOLTON) LTD,13/08/2015,Z6008,Expense AP Accrual,Bolton MBC Balance Sheet,Bolton MBC Balance Sheet,570.00
2165294,3503958,PROTEK FENCING LTD,13/08/2015,Z6008,Expense AP Accrual,Bolton MBC Balance Sheet,Bolton MBC Balance Sheet,"1,950.00"
596,3506895,PSI (RESOURCES) LTD,20/08/2015,Z6008,Expense AP Accrual,Bolton MBC Balance Sheet,Bolton MBC Balance Sheet,781.00
596,3507040,PSI (RESOURCES) LTD,20/08/2015,Z6008,Expense AP Accrual,Bolton MBC Balance Sheet,Bolton MBC Balance Sheet,"1,481.00"
596,3502688,PSI (RESOURCES) LTD,10/08/2015,Z6008,Expense AP Accrual,Bolton MBC Balance Sheet,Bolton MBC Balance Sheet,"3,465.00"
2646318,3512687,Richard Burton Haulage Ltd,27/08/2015,Z6008,Expense AP Accrual,Bolton MBC Balance Sheet,Bolton MBC Balance Sheet,925.00
1556158,3508782,SHARP ASPHALT CO LTD,24/08/2015,Z6008,Expense AP Accrual,Bolton MBC Balance Sheet,Bolton MBC Balance Sheet,"1,430.00"
6675,3506014,SPECTRA SECURITY LTD,20/08/2015,Z6008,Expense AP Accrual,Bolton MBC Balance Sheet,Bolton MBC Balance Sheet,612.00
6675,3503129,SPECTRA SECURITY LTD,13/08/2015,Z6008,Expense AP Accrual,Bolton MBC Balance Sheet,Bolton MBC Balance Sheet,"1,143.00"
800,3511074,STONEPAVE J FLETCHER,27/08/2015,Z6008,Expense AP Accrual,Bolton MBC Balance Sheet,Bolton MBC Balance Sheet,625.00
6739,3513716,TREND CONTROL SYSTEMS LTD,27/08/2015,Z6008,Expense AP Accrual,Bolton MBC Balance Sheet,Bolton MBC Balance Sheet,"2,016.00"
6739,3516005,TREND CONTROL SYSTEMS LTD,27/08/2015,Z6008,Expense AP Accrual,Bolton MBC Balance Sheet,Bolton MBC Balance Sheet,"2,470.00"
6739,3501498,TREND CONTROL SYSTEMS LTD,10/08/2015,Z6008,Expense AP Accrual,Bolton MBC Balance Sheet,Bolton MBC Balance Sheet,536.00
6739,3501515,TREND CONTROL SYSTEMS LTD,10/08/2015,Z6008,Expense AP Accrual,Bolton MBC Balance Sheet,Bolton MBC Balance Sheet,"3,910.00"
6739,3501000,TREND CONTROL SYSTEMS LTD,06/08/2015,Z6008,Expense AP Accrual,Bolton MBC Balance Sheet,Bolton MBC Balance Sheet,"2,738.00"
1581918,3506338,TUDOR NORTHWEST LTD,20/08/2015,Z6008,Expense AP Accrual,Bolton MBC Balance Sheet,Bolton MBC Balance Sheet,"2,125.95"
1581918,3506324,TUDOR NORTHWEST LTD,20/08/2015,Z6008,Expense AP Accrual,Bolton MBC Balance Sheet,Bolton MBC Balance Sheet,"2,180.25"
2255291,3497882,HAPPY MUSIC LIMITED,06/08/2015,48517,Fees/Expenses Schools,Childrens Services,Music ServMusic Service general,980.00
503,3511685,PITNEY BOWES LTD,27/08/2015,45001,Franking Machine,Environmental Services,Civic Cleaning,"1,024.83"
503,3501628,PITNEY BOWES LTD,07/08/2015,45001,Franking Machine,Environmental Services,Couriers,"36,000.00"
3376,3503900,F R SHARROCK LTD#SHARROCKS,24/08/2015,20400,Garden Maintenance,Housing GRF,Property officers,570.49
20980,3503069,BRITISH GAS BUSINESS,13/08/2015,21200,Gas  General,Chief Executives,Admin Buildings Portfolio,"7,299.60"
20980,3503069,BRITISH GAS BUSINESS,13/08/2015,21200,Gas  General,Chief Executives,Adult Social Care Portfolio,"12,634.43"
20980,3503069,BRITISH GAS BUSINESS,13/08/2015,21200,Gas  General,Environmental Services,Bereavement Services,"4,753.43"
20980,3503069,BRITISH GAS BUSINESS,13/08/2015,21200,Gas  General,Chief Executives,Castle Hill,"1,467.96"
20980,3503069,BRITISH GAS BUSINESS,13/08/2015,21200,Gas  General,Environmental Services,Cobden Street Community Centre,"1,176.58"
20980,3503069,BRITISH GAS BUSINESS,13/08/2015,21200,Gas  General,Environmental Services,Community Centres  Sunnyside,"10,913.83"
20980,3503069,BRITISH GAS BUSINESS,13/08/2015,21200,Gas  General,Environmental Services,Depots,"3,036.36"
265470,3508891,AMIX RMC PLANT LTD,24/08/2015,40601,General Materials,Environmental Services,Activities and Operations,"1,720.77"
7530,3510774,BROXAP LIMITED,24/08/2015,40601,General Materials,Environmental Services,Activities and Operations,"2,196.00"
7530,3500554,BROXAP LIMITED,17/08/2015,40601,General Materials,Environmental Services,Activities and Operations,"3,734.80"
7530,3502501,BROXAP LIMITED,17/08/2015,40601,General Materials,Environmental Services,Activities and Operations,556.42
1600337,3503004,GENERATION HIRE & SALE STOCKPORT,13/08/2015,40601,General Materials,Environmental Services,Activities and Operations,"1,786.43"
2299326,3507682,HAGS-SMP LTD,24/08/2015,40601,General Materials,Environmental Services,Activities and Operations,"3,011.50"
6399,3507436,J DICKINSON & SONS (HORWICH) LTD#2,24/08/2015,40601,General Materials,Environmental Services,Activities and Operations,634.28
6399,3503962,J DICKINSON & SONS (HORWICH) LTD#2,13/08/2015,40601,General Materials,Environmental Services,Activities and Operations,924.73
6399,3503964,J DICKINSON & SONS (HORWICH) LTD#2,13/08/2015,40601,General Materials,Environmental Services,Activities and Operations,"1,559.64"
6399,3501909,J DICKINSON & SONS (HORWICH) LTD#2,10/08/2015,40601,General Materials,Environmental Services,Activities and Operations,"1,576.91"
6399,3501910,J DICKINSON & SONS (HORWICH) LTD#2,10/08/2015,40601,General Materials,Environmental Services,Activities and Operations,"2,069.18"
2207290,3501948,NOTTS SPORT LTD,13/08/2015,40601,General Materials,Environmental Services,Activities and Operations,"15,282.67"
3909,3512759,INFORMATION & DATA NETWORK SUPPLIES LTD#IDN,27/08/2015,40601,General Materials,Childrens Services,Admin IT (Schools),"1,233.93"
88184,3512887,THE COLUMBARIA COMPANY,27/08/2015,40601,General Materials,Environmental Services,Bereavement Services,665.00
2394295,3500804,BERENDSEN UK LTD#FORMERLY SUNLIGHT SERVICES GRP LTD,13/08/2015,40601,General Materials,Environmental Services,Depots,542.59
1637,3506985,SAFETY KLEEN UK  LTD,20/08/2015,40601,General Materials,Environmental Services,Transport Support Service,674.67
7514,3505813,BSI#BRITISH STANDARDS INSTITUTE,17/08/2015,47200,General Subscriptions,Chief Executives,Corporate Asset Planning,534.00
261782,3499306,FORTALICE LTD#BOLTON WOMENS AID,06/08/2015,55700,Grant Funded Expenditure,Environmental Services,Community Safety,"15,000.00"
6089,3506923,ARCO LIMITED,20/08/2015,20102,Health & Safety,Environmental Services,Markets  Rent Account,603.11
2675,3503536,COLOURS WHOLESALE FLOWERS,13/08/2015,40609,Horticultural Materials,Environmental Services,Heaton Fold,670.78
125827,3515144,TILLAGE 27292782 KNARESBOROUGH,28/08/2015,40609,Horticultural Materials,Environmental Services,Heaton Fold,546.54
3789,3507349,HENRY ALTY LIMITED,20/08/2015,40609,Horticultural Materials,Environmental Services,Heaton Fold,630.00
394,3506187,PARK LANE PLANTS LTD,20/08/2015,40609,Horticultural Materials,Environmental Services,Heaton Fold,601.90
190304,3506183,REX GREGSON LTD,20/08/2015,40609,Horticultural Materials,Environmental Services,Heaton Fold,506.15
6694,3506089,SUTTONS NURSERIES,20/08/2015,40609,Horticultural Materials,Environmental Services,Heaton Fold,690.30
49702,3511060,VANS DUTCH BULB COMPANY,27/08/2015,40609,Horticultural Materials,Environmental Services,Heaton Fold,726.20
1166814,3516030,TRAKM8 LIMITED,27/08/2015,45409,Information and Communication Technology,Environmental Services,Transport Support Service,"1,207.80"
205158,3500761,D A LANGUAGES LTD,17/08/2015,44062,Interpretation and Translation Services,Childrens Services,Childrens Centre  General,515.62
158742,3503876,THEBIGWORD#THE BIG WORD#THEBIGWORD INTERPRETING SERVICES LTD,13/08/2015,44062,Interpretation and Translation Services,Chief Executives,C.R.M. Operations,979.32
55590,3504167,PAUL DAVIES KITCHEN APPLIANCE CENTRE T/A P&S DOMESTICS,13/08/2015,40107,Kitchen Equipment,Housing GRF,Furnished Tenancies,576.96
195012,3499344,CMA SOLICITORS#3,05/08/2015,48502,Legal Fees,Environmental Services,Assets,"2,349.00"
319861,3506565,Mr Eric Owen,20/08/2015,48502,Legal Fees,Chief Executives,Estates & Property Management,"2,531.25"
2353311,3511656,EMMA GREENHALGH#1,27/08/2015,48502,Legal Fees,Childrens Services,Management Team,"1,800.00"
1845293,3511655,GRAHAM BAILEY,27/08/2015,48502,Legal Fees,Childrens Services,Management Team,"3,450.00"
1845293,3511577,GRAHAM BAILEY,27/08/2015,48502,Legal Fees,Childrens Services,Management Team,"4,000.00"
1845293,3503522,GRAHAM BAILEY,13/08/2015,48502,Legal Fees,Childrens Services,Management Team,"5,100.00"
466501,3511686,JAYNE CLARK,27/08/2015,48502,Legal Fees,Childrens Services,Management Team,"4,000.00"
250404,3506492,MISS JANE WALKER#1,20/08/2015,48502,Legal Fees,Childrens Services,Management Team,700.00
100133,3505227,MISS SASHA WATKINSON,17/08/2015,48502,Legal Fees,Childrens Services,Management Team,550.00
194008,3505226,MR PAUL HART,17/08/2015,48502,Legal Fees,Childrens Services,Management Team,650.00
89825,3511434,MR SIMON CRABTREE,27/08/2015,48502,Legal Fees,Childrens Services,Management Team,975.00
89825,3506534,MR SIMON CRABTREE,20/08/2015,48502,Legal Fees,Childrens Services,Management Team,"1,400.00"
89825,3505103,MR SIMON CRABTREE,17/08/2015,48502,Legal Fees,Childrens Services,Management Team,650.00
89825,3504118,MR SIMON CRABTREE,13/08/2015,48502,Legal Fees,Childrens Services,Management Team,725.00
1183830,3505222,PAUL GILLOTT,17/08/2015,48502,Legal Fees,Childrens Services,Management Team,700.00
2656338,3511569,John Waiting,27/08/2015,48502,Legal Fees,Chief Executives,Non-Domestic Rating,750.00
2938301,3509514,Shulmans LLP,27/08/2015,48502,Legal Fees,Environmental Services,Parking Services  Off Street,"1,772.00"
2938301,3511571,Shulmans LLP,27/08/2015,48502,Legal Fees,Environmental Services,Parking Services  Off Street,"2,801.00"
9175,3500733,CH Bolton Limited,06/08/2015,22002,Management Fee,Chief Executives,Castle Hill,"144,987.82"
9175,3503669,CH Bolton Limited,13/08/2015,48511,Management Fees,Chief Executives,Castle Hill,"9,964.87"
2926298,3497728,Mike Livingstone Associates Limited,06/08/2015,48511,Management Fees,Childrens Services,Quality Assurance and Improvement Team,981.80
2639300,3506405,Communicorp UK,27/08/2015,48203,Marketing,Chief Executives, Marketing - Holding Code,"2,600.00"
2532299,3503310,Demo-Station Ltd t/a The Cookery Theatre Company,13/08/2015,48203,Marketing,Chief Executives, Marketing - Holding Code,"3,000.00"
2103293,3505068,EVENT SERVICES NORTHWEST,27/08/2015,48203,Marketing,Chief Executives, Marketing - Holding Code,"1,650.00"
2103293,3511113,EVENT SERVICES NORTHWEST,27/08/2015,48203,Marketing,Chief Executives, Marketing - Holding Code,"2,200.80"
1381998,3500820,FENCELINE# NOT SAME CO AS 900305,06/08/2015,48203,Marketing,Chief Executives, Marketing - Holding Code,925.00
2284562,3511274,FOR LOVE PR AND COMMUNICATIONS LTD,27/08/2015,48203,Marketing,Chief Executives, Marketing - Holding Code,"3,500.00"
225501,3498058,ELYGRA MARKETING SERVICES#ELYGRA LIMITED,06/08/2015,48203,Marketing,Environmental Services,Catering,537.00
2501345,3499303,Primesight Ltd#1,06/08/2015,48203,Marketing,Chief Executives,Marketing - Holding Code,"1,100.00"
2691314,3511169,PW Hire Limited,27/08/2015,48203,Marketing,Chief Executives,Marketing - Holding Code,"1,025.00"
814640,3511582,REDACTED - PERSONAL DATA,27/08/2015,48203,Marketing,Chief Executives,Marketing - Holding Code,500.00
814640,3507186,REDACTED - PERSONAL DATA,20/08/2015,48203,Marketing,Chief Executives,Marketing - Holding Code,"1,650.00"
2932114,3511694,Rose Dummer t/a Rosie Cake-Diva,27/08/2015,48203,Marketing,Chief Executives,Marketing - Holding Code,"2,000.00"
266126,3499335,SKIBAND,06/08/2015,48203,Marketing,Chief Executives,Marketing - Holding Code,875.00
132304,3511275,Slattery Patissier & Chocolatier Ltd,27/08/2015,48203,Marketing,Chief Executives,Marketing - Holding Code,"1,600.00"
2582313,3504032,Talent4 Media Ltd,13/08/2015,48203,Marketing,Chief Executives,Marketing - Holding Code,"4,000.00"
226468,3510911,THE CORPORATE GROUP#CORPORATE PRODUCTS LTD,24/08/2015,48203,Marketing,Chief Executives,Marketing - Holding Code,"3,350.00"
2137424,3507696,THE MARKETING CLINIC#RICHARD LYNCH & ELAINE WILLCOX,24/08/2015,48203,Marketing,Chief Executives,Marketing - Holding Code,"3,375.00"
151359,3504298,THE NATIONAL LEAFLET COMPANY,17/08/2015,48203,Marketing,Chief Executives,Marketing - Holding Code,"7,605.93"
1487079,3507649,THE RICHARD STONE PARTNERSHIP,24/08/2015,48203,Marketing,Chief Executives,Marketing - Holding Code,"4,000.00"
6736,3506882,UTV MEDIA (GB) LTD#FACTOR TOWER FM,20/08/2015,48203,Marketing,Chief Executives,Marketing - Holding Code,"1,000.00"
1434057,3500825,WIGAN PIER PROMOTIONS,06/08/2015,48203,Marketing,Chief Executives,Marketing - Holding Code,750.00
1434057,3500829,WIGAN PIER PROMOTIONS,06/08/2015,48203,Marketing,Chief Executives,Marketing - Holding Code,600.00
1434057,3500826,WIGAN PIER PROMOTIONS,06/08/2015,48203,Marketing,Chief Executives,Marketing - Holding Code,600.00
1434057,3500828,WIGAN PIER PROMOTIONS,06/08/2015,48203,Marketing,Chief Executives,Marketing - Holding Code,500.00
1434057,3500823,WIGAN PIER PROMOTIONS,06/08/2015,48203,Marketing,Chief Executives,Marketing - Holding Code,550.00
1434057,3500834,WIGAN PIER PROMOTIONS,06/08/2015,48203,Marketing,Chief Executives,Marketing - Holding Code,600.00
2813346,3511623,WMG Management Europe Ltd,27/08/2015,48203,Marketing,Chief Executives,Marketing - Holding Code,"3,000.00"
18039,3504029,AQUILA SHELTERS LTD#1,13/08/2015,48203,Marketing,Chief Executives,Marketing - Holding Code,550.00
2246472,3506856,B & D PRINT SERVICES LTD,20/08/2015,48203,Marketing,Chief Executives,Marketing - Holding Code,608.00
213906,3505067,BOLTON COMMUNITY RADIO CIC#BOLTON FM CIC,17/08/2015,48203,Marketing,Chief Executives,Marketing - Holding Code,500.00
6182,3507045,C HORROCKS & SONS LTD,20/08/2015,48203,Marketing,Chief Executives,Marketing - Holding Code,612.30
2894328,3511621,Creative About Cuisine Limited,27/08/2015,48203,Marketing,Chief Executives,Marketing - Holding Code,"2,000.00"
125827,3515916,OLIVER HARVEY LTD 55693003 DUKINFIELD,28/08/2015,48203,Marketing,Chief Executives,Marketing - Holding Code,"6,048.00"
34345,3506394,FOOLS PARADISE LTD,20/08/2015,48203,Marketing,Chief Executives,Marketing - Holding Code,"8,856.75"
1194842,3511634,IMPRESSION (BOLTON) LIMITED#1,27/08/2015,48203,Marketing,Chief Executives,Marketing - Holding Code,"2,566.00"
1194842,3511698,IMPRESSION (BOLTON) LIMITED#1,27/08/2015,48203,Marketing,Chief Executives,Marketing - Holding Code,759.00
1194842,3506844,IMPRESSION (BOLTON) LIMITED#1,20/08/2015,48203,Marketing,Chief Executives,Marketing - Holding Code,921.00
1194842,3501942,IMPRESSION (BOLTON) LIMITED#1,10/08/2015,48203,Marketing,Chief Executives,Marketing - Holding Code,"9,450.00"
1194842,3501471,IMPRESSION (BOLTON) LIMITED#1,06/08/2015,48203,Marketing,Chief Executives,Marketing - Holding Code,"1,050.00"
1194842,3501469,IMPRESSION (BOLTON) LIMITED#1,06/08/2015,48203,Marketing,Chief Executives,Marketing - Holding Code,"1,680.00"
2930298,3507189,Jonny Cocktail Events Ltd,20/08/2015,48203,Marketing,Chief Executives,Marketing - Holding Code,975.00
2637316,3511624,Little Tiddles Softplay Limited,27/08/2015,48203,Marketing,Chief Executives,Marketing - Holding Code,640.00
2246441,3499315,NB COLOUR PRINT LIMITED,06/08/2015,48203,Marketing,Chief Executives,Marketing - Holding Code,"2,386.00"
2246441,3501192,NB COLOUR PRINT LIMITED,06/08/2015,48203,Marketing,Chief Executives,Marketing - Holding Code,623.00
2246441,3501193,NB COLOUR PRINT LIMITED,06/08/2015,48203,Marketing,Chief Executives,Marketing - Holding Code,"1,393.00"
2613325,3511631,Newsquest Media Group,27/08/2015,48203,Marketing,Chief Executives,Marketing - Holding Code,562.50
2613325,3504027,Newsquest Media Group,13/08/2015,48203,Marketing,Chief Executives,Marketing - Holding Code,873.62
22600,3501483,Bolton Sea Cadets,06/08/2015,48203,Marketing,Chief Executives,Mayoralty,"1,000.00"
2927299,3497730,Stay Sourced Ltd,06/08/2015,48203,Marketing,Public Health,Public Health - Centralised Budgets,987.50
216676,3506873,DRS DIRECT LTD#BIBBY FACTORS LEICESTER LIMITED,20/08/2015,55711,Medical Referees Fees,Chief Executives, Occ Health Holding Code,"3,052.50"
216676,3504787,DRS DIRECT LTD#BIBBY FACTORS LEICESTER LIMITED,17/08/2015,55711,Medical Referees Fees,Chief Executives, Occ Health Holding Code,"2,887.50"
216676,3504788,DRS DIRECT LTD#BIBBY FACTORS LEICESTER LIMITED,17/08/2015,55711,Medical Referees Fees,Chief Executives, Occ Health Holding Code,"2,280.00"
213806,3504797,JO HOSSLE-STANDRING T/A JORCHID,17/08/2015,55711,Medical Referees Fees,Chief Executives,Occ Health Holding Code,665.78
125827,3515688,JUSTARTIFICIAL.CO.UK 010030003 MORECAMBE,28/08/2015,48629,Miscellaneous Expenses,Childrens Services, Financial Admin,861.70
43938,3500776,BOLTON AT HOME#137,06/08/2015,48629,Miscellaneous Expenses,Adult Services,ASC External Funded Schemes,"4,140.50"
520,3510975,PORTABLE CONVENIENCES LTD# (DARWEN),27/08/2015,48629,Miscellaneous Expenses,Chief Executives,Registrars/Civil Funerals,595.00
241124,3510717,JD SPORTS FASHION PLC,24/08/2015,47103,Miscellaneous Grants,Childrens Services,Corporate Parenting,600.00
290616,3505058,REDACTED - PERSONAL DATA,17/08/2015,44110,Music Service,Childrens Services,Gtr Manchester Music Education Hub,875.00
2678366,3502994,Peter Elmes#Elmes Joinery,13/08/2015,20405,NonScheduled Work,Environmental Services,Activities and Operations,"1,248.00"
2387309,3498219,BERKELEY HOUSE,04/08/2015,54302,Nursing Provision,Adult Services,LD Purchaser Residential Care,"12,327.60"
6169,3498152,BROTHERS OF CHARITY SERVICES,04/08/2015,54302,Nursing Provision,Adult Services,LD Purchaser Residential Care,"3,617.20"
10133,3498160,MILLVIEW NURSING HOME,04/08/2015,54302,Nursing Provision,Adult Services,LD Purchaser Residential Care,"1,625.96"
6617,3498124,RIVINGTON VIEW NURSING HOME,04/08/2015,54302,Nursing Provision,Adult Services,LD Purchaser Residential Care,"1,603.00"
6064,3498140,AINSWORTH NURSING HOME,04/08/2015,54302,Nursing Provision,Adult Services,MH Residential External Provision,"3,367.52"
1552722,3498195,BELONG ATHERTON#EPH,04/08/2015,54302,Nursing Provision,Adult Services,MH Residential External Provision,"2,487.12"
6454,3498121,HOLLANDS NURSING HOME,04/08/2015,54302,Nursing Provision,Adult Services,MH Residential External Provision,"9,004.76"
4856,3498151,MEADOWBANK HOUSE,04/08/2015,54302,Nursing Provision,Adult Services,MH Residential External Provision,"1,647.08"
2147302,3498205,MOSTON GRANGE NURSING HOME,04/08/2015,54302,Nursing Provision,Adult Services,MH Residential External Provision,"3,700.00"
6595,3498123,RANDOMLIGHT LTD#HEIGHTSIDE HOUSE,04/08/2015,54302,Nursing Provision,Adult Services,MH Residential External Provision,"13,648.52"
6659,3498126,SHANNON COURT NURSING HOME,04/08/2015,54302,Nursing Provision,Adult Services,MH Residential External Provision,"1,647.08"
2348298,3498217,ABBEY HEALTHCARE (FARNWORTH) LIMITED,04/08/2015,54302,Nursing Provision,Adult Services,OA  External Provision Residential,"26,635.07"
959,3498135,ACORNS CARE CENTRE,04/08/2015,54302,Nursing Provision,Adult Services,OA  External Provision Residential,"1,520.00"
2221292,3498208,ADLINGTON MANOR,04/08/2015,54302,Nursing Provision,Adult Services,OA  External Provision Residential,"1,868.40"
2515336,3498230,ASTLEY GRANGE HOMES LIMITED,04/08/2015,54302,Nursing Provision,Adult Services,OA  External Provision Residential,"15,979.69"
39733,3498169,BEDFORD RESIDENTIAL NURSING CARE HOME,04/08/2015,54302,Nursing Provision,Adult Services,OA  External Provision Residential,"3,472.00"
1552722,3498195,BELONG ATHERTON#EPH,04/08/2015,54302,Nursing Provision,Adult Services,OA  External Provision Residential,"3,472.00"
2438298,3498224,Birch Hall Care Centre,04/08/2015,54302,Nursing Provision,Adult Services,OA  External Provision Residential,"1,954.00"
241487,3498184,DOUGLAS BANK NURSING HOME#TUDOR BANK LTD,04/08/2015,54302,Nursing Provision,Adult Services,OA  External Provision Residential,"1,906.60"
231808,3498182,DOWNSHAW LODGE,04/08/2015,54302,Nursing Provision,Adult Services,OA  External Provision Residential,"1,960.92"
6320,3498114,FOUR SEASONS NURSING HOME,04/08/2015,54302,Nursing Provision,Adult Services,OA  External Provision Residential,"23,804.31"
2212300,3498207,GLENROYD CARE HOME,04/08/2015,54302,Nursing Provision,Adult Services,OA  External Provision Residential,"1,674.96"
6342,3498116,GORSEY CLOUGH NURSING HOME LTD,04/08/2015,54302,Nursing Provision,Adult Services,OA  External Provision Residential,"5,051.28"
6367,3498141,HAZELBROOK CHRISTIAN NURSING HOME,04/08/2015,54302,Nursing Provision,Adult Services,OA  External Provision Residential,"11,970.75"
15740,3498163,HIGH PEAK LODGE#FACTOR EUROPEAN CARE GROUP,04/08/2015,54302,Nursing Provision,Adult Services,OA  External Provision Residential,"1,684.00"
34422,3498164,Ingleborough Nursing Home LLP,04/08/2015,54302,Nursing Provision,Adult Services,OA  External Provision Residential,"1,769.25"
4856,3498151,MEADOWBANK HOUSE,04/08/2015,54302,Nursing Provision,Adult Services,OA  External Provision Residential,"9,882.48"
10133,3498160,MILLVIEW NURSING HOME,04/08/2015,54302,Nursing Provision,Adult Services,OA  External Provision Residential,"63,197.47"
132953,3498173,OLD GATES NURSING HOME,04/08/2015,54302,Nursing Provision,Adult Services,OA  External Provision Residential,"1,726.40"
2509317,3498229,RIVERVIEW NURSING HOME,04/08/2015,54302,Nursing Provision,Adult Services,OA  External Provision Residential,"1,821.40"
6617,3498124,RIVINGTON VIEW NURSING HOME,04/08/2015,54302,Nursing Provision,Adult Services,OA  External Provision Residential,"3,330.00"
6623,3498125,ROSE COURT NURSING HOME,04/08/2015,54302,Nursing Provision,Adult Services,OA  External Provision Residential,"16,236.26"
35,3498139,ROSEBRIDGE COURT,04/08/2015,54302,Nursing Provision,Adult Services,OA  External Provision Residential,"1,736.00"
6659,3498126,SHANNON COURT NURSING HOME,04/08/2015,54302,Nursing Provision,Adult Services,OA  External Provision Residential,"35,548.60"
6679,3498127,ST CATHERINES CARE HOME,04/08/2015,54302,Nursing Provision,Adult Services,OA  External Provision Residential,"31,653.83"
6691,3498146,STRATHMORE NURSING HOME#WHITEHILL HOMES LTD,04/08/2015,54302,Nursing Provision,Adult Services,OA  External Provision Residential,"12,334.74"
6776,3498155,Westleigh Lodge#Westleigh Lodge Care Home,04/08/2015,54302,Nursing Provision,Adult Services,OA  External Provision Residential,"6,076.00"
2348298,3498217,ABBEY HEALTHCARE (FARNWORTH) LIMITED,04/08/2015,54302,Nursing Provision,Adult Services,PD Purchaser Residential Care,"1,647.08"
6454,3498121,HOLLANDS NURSING HOME,04/08/2015,54302,Nursing Provision,Adult Services,PD Purchaser Residential Care,"9,545.60"
10133,3498160,MILLVIEW NURSING HOME,04/08/2015,54302,Nursing Provision,Adult Services,PD Purchaser Residential Care,"1,625.96"
35,3498139,ROSEBRIDGE COURT,04/08/2015,54302,Nursing Provision,Adult Services,PD Purchaser Residential Care,"3,732.00"
6679,3498127,ST CATHERINES CARE HOME,04/08/2015,54302,Nursing Provision,Adult Services,PD Purchaser Residential Care,"1,545.00"
15866,3497751,APEX DIGITAL GRAPHICS LTD,03/08/2015,40141,Office Equipment Maintenance,Chief Executives,Printing Services,"1,950.00"
419270,3502333,REDACTED - PERSONAL DATA T/A OVER THE BREAK,10/08/2015,40151,Office Furniture Maintenance,Childrens Services,Music ServInstru & Vocal Teach,669.00
814638,3500725,BIRKDALE DESIGN LTD,06/08/2015,40150,Office Furniture Purchase,Housing GRF,Furnished Tenancies,760.00
814638,3500775,BIRKDALE DESIGN LTD,06/08/2015,40150,Office Furniture Purchase,Housing GRF,Furnished Tenancies,760.00
814638,3500805,BIRKDALE DESIGN LTD,06/08/2015,40150,Office Furniture Purchase,Housing GRF,Furnished Tenancies,667.00
814638,3501100,BIRKDALE DESIGN LTD,06/08/2015,40150,Office Furniture Purchase,Housing GRF,Furnished Tenancies,760.00
814638,3500772,BIRKDALE DESIGN LTD,06/08/2015,40150,Office Furniture Purchase,Housing GRF,Furnished Tenancies,948.00
814638,3500767,BIRKDALE DESIGN LTD,06/08/2015,40150,Office Furniture Purchase,Housing GRF,Furnished Tenancies,667.00
814638,3500698,BIRKDALE DESIGN LTD,06/08/2015,40150,Office Furniture Purchase,Housing GRF,Furnished Tenancies,609.00
814638,3501090,BIRKDALE DESIGN LTD,06/08/2015,40150,Office Furniture Purchase,Housing GRF,Furnished Tenancies,554.00
814638,3501086,BIRKDALE DESIGN LTD,06/08/2015,40150,Office Furniture Purchase,Housing GRF,Furnished Tenancies,713.00
8990,3506843,BOLTON CARPET WAREHOUSE,20/08/2015,40150,Office Furniture Purchase,Housing GRF,Furnished Tenancies,625.50
8990,3497760,BOLTON CARPET WAREHOUSE,03/08/2015,40150,Office Furniture Purchase,Housing GRF,Furnished Tenancies,625.50
8990,3497764,BOLTON CARPET WAREHOUSE,03/08/2015,40150,Office Furniture Purchase,Housing GRF,Furnished Tenancies,751.59
8990,3502847,BOLTON CARPET WAREHOUSE,13/08/2015,40150,Office Furniture Purchase,Housing GRF,Local Welfare Provision Pilot,625.50
8990,3502849,BOLTON CARPET WAREHOUSE,13/08/2015,40150,Office Furniture Purchase,Housing GRF,Local Welfare Provision Pilot,625.50
8990,3497770,BOLTON CARPET WAREHOUSE,03/08/2015,40150,Office Furniture Purchase,Housing GRF,Local Welfare Provision Pilot,508.89
8990,3497778,BOLTON CARPET WAREHOUSE,03/08/2015,40150,Office Furniture Purchase,Housing GRF,Local Welfare Provision Pilot,625.50
8990,3497782,BOLTON CARPET WAREHOUSE,03/08/2015,40150,Office Furniture Purchase,Housing GRF,Local Welfare Provision Pilot,625.50
8990,3497787,BOLTON CARPET WAREHOUSE,03/08/2015,40150,Office Furniture Purchase,Housing GRF,Local Welfare Provision Pilot,751.59
547,3512890,PREFS LTD,27/08/2015,43032,Office Stationery,Childrens Services,Business Support  Children Social Care,"2,190.00"
16647,3506583,GROSVENOR PRINT & DESIGN#GROSVENOR STATIONERY CO (PRESTON) LTD,20/08/2015,43032,Office Stationery,Chief Executives,Council Tax,"2,639.00"
6572,3503683,PREMIER PAPER GROUP LIMITED,13/08/2015,43032,Office Stationery,Chief Executives,Printing Services,826.22
6572,3502248,PREMIER PAPER GROUP LIMITED,10/08/2015,43032,Office Stationery,Chief Executives,Printing Services,530.91
6692,3511020,SUPPLIES TEAM LIMITED,27/08/2015,43032,Office Stationery,Chief Executives, Operational Facilities Management,657.90
6692,3503987,SUPPLIES TEAM LIMITED,13/08/2015,43032,Office Stationery,Chief Executives, Operational Facilities Management,574.82
6692,3503032,SUPPLIES TEAM LIMITED,13/08/2015,43032,Office Stationery,Chief Executives, Operational Facilities Management,581.50
6692,3504011,SUPPLIES TEAM LIMITED,17/08/2015,43032,Office Stationery,Chief Executives,Town Hall Stationery,787.95
7865,3506831,YORKSHIRE PURCHASING ORGANISATION,28/08/2015,43032,Office Stationery,Childrens Services,Gt Lever CC,552.00
7865,3506833,YORKSHIRE PURCHASING ORGANISATION,28/08/2015,43032,Office Stationery,Childrens Services,Gt Lever CC,"1,935.74"
16647,3506583,GROSVENOR PRINT & DESIGN#GROSVENOR STATIONERY CO (PRESTON) LTD,20/08/2015,43032,Office Stationery,Chief Executives,Housing Benefits,"2,789.00"
6572,3506813,PREMIER PAPER GROUP LIMITED,20/08/2015,43032,Office Stationery,Chief Executives,Text & Reprographics,536.40
125827,3514009,Furniture/Home Furn/Equip Stores - Excep,28/08/2015,40110,Op Equip Furniture Purchase,Childrens Services,Admin Strategic Finance Unit,"1,000.00"
814638,3510861,BIRKDALE DESIGN LTD,24/08/2015,40110,Op Equip Furniture Purchase,Housing GRF,Furnished Tenancies,760.00
814638,3509347,BIRKDALE DESIGN LTD,24/08/2015,40110,Op Equip Furniture Purchase,Housing GRF,Furnished Tenancies,685.00
814638,3509342,BIRKDALE DESIGN LTD,24/08/2015,40110,Op Equip Furniture Purchase,Housing GRF,Furnished Tenancies,665.00
814638,3509320,BIRKDALE DESIGN LTD,24/08/2015,40110,Op Equip Furniture Purchase,Housing GRF,Furnished Tenancies,760.00
814638,3509325,BIRKDALE DESIGN LTD,24/08/2015,40110,Op Equip Furniture Purchase,Housing GRF,Furnished Tenancies,760.00
814638,3510873,BIRKDALE DESIGN LTD,24/08/2015,40110,Op Equip Furniture Purchase,Housing GRF,Furnished Tenancies,534.00
814638,3509328,BIRKDALE DESIGN LTD,24/08/2015,40110,Op Equip Furniture Purchase,Housing GRF,Furnished Tenancies,667.00
125827,3515430,PAUL DAVIES KITCHENS & 18414333 BOLTON,28/08/2015,40110,Op Equip Furniture Purchase,Housing GRF,Local Welfare Provision Pilot,576.96
125827,3515431,PAUL DAVIES KITCHENS & 18414333 BOLTON,28/08/2015,40110,Op Equip Furniture Purchase,Housing GRF,Local Welfare Provision Pilot,576.96
125827,3515452,PAUL DAVIES KITCHENS & 18414333 BOLTON,28/08/2015,40110,Op Equip Furniture Purchase,Housing GRF,Local Welfare Provision Pilot,576.96
125827,3515451,PAUL DAVIES KITCHENS & 18414333 BOLTON,28/08/2015,40110,Op Equip Furniture Purchase,Housing GRF,Local Welfare Provision Pilot,576.96
125827,3515462,PAUL DAVIES KITCHENS & 18414333 BOLTON,28/08/2015,40110,Op Equip Furniture Purchase,Housing GRF,Local Welfare Provision Pilot,576.96
2133,3504223,EVAC & CHAIR INTERNATIONAL LTD,17/08/2015,40106,Op Equip Health & Safety,Chief Executives,Operational Facilities Management,"1,950.00"
3376,3503760,F R SHARROCK LTD#SHARROCKS,13/08/2015,40101,Operational Equipment Maint,Environmental Services,Activities and Operations,"2,809.90"
6612,3503697,RIGBY TAYLOR LTD,13/08/2015,40101,Operational Equipment Maint,Environmental Services,Activities and Operations,597.16
6259,3503098,DELL CORPORATION LTD,13/08/2015,40101,Operational Equipment Maint,Childrens Services,Admin IT (Schools),"6,433.00"
2678499,3506709,DSL Comms Limited,20/08/2015,40101,Operational Equipment Maint,Childrens Services,Admin IT (Schools),"6,877.00"
3909,3512757,INFORMATION & DATA NETWORK SUPPLIES LTD#IDN,27/08/2015,40101,Operational Equipment Maint,Childrens Services,Admin IT (Schools),"9,945.00"
3909,3512758,INFORMATION & DATA NETWORK SUPPLIES LTD#IDN,27/08/2015,40101,Operational Equipment Maint,Childrens Services,Admin IT (Schools),"2,300.00"
3909,3499466,INFORMATION & DATA NETWORK SUPPLIES LTD#IDN,06/08/2015,40101,Operational Equipment Maint,Childrens Services,Admin IT (Schools),"2,616.00"
537,3504103,POWERCARE,13/08/2015,40100,Operational Equipment Purchase,Environmental Services,Building Cleaning,"2,495.00"
2931301,3502234,Llaborate Limited,13/08/2015,40100,Operational Equipment Purchase,Childrens Services,Castle Hill Youth Club (Yth Srv),"15,146.39"
2931301,3502324,Llaborate Limited,13/08/2015,40100,Operational Equipment Purchase,Childrens Services,Castle Hill Youth Club (Yth Srv),990.00
2931301,3502865,Llaborate Limited,13/08/2015,40100,Operational Equipment Purchase,Childrens Services,Castle Hill Youth Club (Yth Srv),"3,307.37"
2931301,3502996,Llaborate Limited,13/08/2015,40100,Operational Equipment Purchase,Childrens Services,Castle Hill Youth Club (Yth Srv),"3,548.56"
503,3506484,PITNEY BOWES LTD,20/08/2015,40100,Operational Equipment Purchase,Environmental Services,Couriers,"1,868.88"
8990,3512708,BOLTON CARPET WAREHOUSE,27/08/2015,40100,Operational Equipment Purchase,Housing GRF,Furnished Tenancies,777.90
8990,3512727,BOLTON CARPET WAREHOUSE,27/08/2015,40100,Operational Equipment Purchase,Housing GRF,Furnished Tenancies,625.50
8990,3512731,BOLTON CARPET WAREHOUSE,27/08/2015,40100,Operational Equipment Purchase,Housing GRF,Furnished Tenancies,625.50
8990,3512732,BOLTON CARPET WAREHOUSE,27/08/2015,40100,Operational Equipment Purchase,Housing GRF,Furnished Tenancies,508.89
871655,3510995,AGILISYS LIMITED,27/08/2015,40100,Operational Equipment Purchase,Environmental Services,Highway Regulation & Inspection,"2,025.00"
8407,3497888,APETITO LTD,06/08/2015,40100,Operational Equipment Purchase,Adult Services,OA  Community Meals,"1,085.51"
2927300,3497729,DMG Contracts Ltd,10/08/2015,40100,Operational Equipment Purchase,Childrens Services,Res Serv Maintenance,"2,530.00"
3376,3506557,F R SHARROCK LTD#SHARROCKS,20/08/2015,40102,Operational Equipment Rental,Environmental Services,Activities and Operations,"7,397.09"
13252,3503440,CHALLENGER SITE SERVICES,13/08/2015,40102,Operational Equipment Rental,Environmental Services,Assets,590.00
13252,3503442,CHALLENGER SITE SERVICES,13/08/2015,40102,Operational Equipment Rental,Environmental Services,Assets,590.00
6107,3509451,B & M DAVIES (PLANT HIRE) LTD,24/08/2015,40102,Operational Equipment Rental,Environmental Services,Bereavement Services,647.00
6107,3503225,B & M DAVIES (PLANT HIRE) LTD,13/08/2015,40102,Operational Equipment Rental,Environmental Services,Bereavement Services,917.50
2610303,3506757,Pitney Bowes Finance Limited,19/08/2015,40102,Operational Equipment Rental,Environmental Services,Couriers,"4,743.80"
1839290,3503015,GT CLEANING MACHINES LTD,13/08/2015,40102,Operational Equipment Rental,Environmental Services,Markets  Rent Account,"6,384.00"
871655,3511243,AGILISYS LIMITED,27/08/2015,45434,Oracle Support,Chief Executives, Agilysis Refreshed Assets,"32,031.95"
871655,3504287,AGILISYS LIMITED,17/08/2015,45434,Oracle Support,Chief Executives,Agilysis Transition,"9,900.00"
55590,3504187,PAUL DAVIES KITCHEN APPLIANCE CENTRE T/A P&S DOMESTICS,17/08/2015,44054,Other Clients Services,Adult Services,MH Residential Crisis & Short Term Breaks,694.15
94608,3504435,UNIGLOBE DIAMOND TRAVEL#CRESTA WORLD TRAVEL LTD T/A NORTHENDEN,17/08/2015,44054,Other Clients Services,Childrens Services,Referral & Assmt Team West,813.66
2011291,3504317,Eagley School House Nursery 2,17/08/2015,44054,Other Clients Services,Childrens Services,Safeguarding Team North,537.50
110901,3501047,ALLPAY.NET LTD,06/08/2015,48509,Other Fees,Chief Executives, CSD Cashiers,"5,186.16"
110901,3501048,ALLPAY.NET LTD,06/08/2015,48509,Other Fees,Chief Executives, CSD Cashiers,"3,324.36"
7436,3503802,Bolton College#Was Community College,13/08/2015,48509,Other Fees,Childrens Services, Educational Improvement - Sec,"3,189.24"
7436,3503803,Bolton College#Was Community College,13/08/2015,48509,Other Fees,Childrens Services, Educational Improvement - Sec,"3,189.24"
7436,3503806,Bolton College#Was Community College,13/08/2015,48509,Other Fees,Childrens Services, Educational Improvement - Sec,"3,189.24"
4682,3502260,M&G TRANSPORT & TECHNICAL SERVICES LTD,20/08/2015,48509,Other Fees,Development & Regeneration, Libraries Info. Services,"4,969.00"
1854290,3502733,GREENHALGH KERR,10/08/2015,48509,Other Fees,Chief Executives, Non-Domestic Rating,786.00
63440,3507711,REDACTED - PERSONAL DATA #Interpreting & Translating Services,24/08/2015,48509,Other Fees,Adult Services,ACM  North,"1,260.00"
63440,3507163,REDACTED - PERSONAL DATA #Interpreting & Translating Services,20/08/2015,48509,Other Fees,Adult Services,ACM  North,"2,730.00"
125827,3514833,Microsoft Cour/Bibit 00123410 www.arvato.de,28/08/2015,48509,Other Fees,Childrens Services,Admin IT (Schools),953.00
22407,3503730,ADULT LEARNERS GROUP,13/08/2015,48509,Other Fees,Development & Regeneration,Adult Education,750.00
871655,3504291,AGILISYS LIMITED,17/08/2015,48509,Other Fees,Chief Executives,Agilysis Transition,"36,541.00"
6162,3512697,BRADSHAW GASS & HOPE#1,27/08/2015,48509,Other Fees,Chief Executives,Annual Charge Holding Account,"2,004.15"
1543148,3502331,TREETOPS NURSERIES,10/08/2015,48509,Other Fees,Childrens Services,Children and Family Supp Svs West,572.00
16692,3502863,SOLON SECURITY LTD,13/08/2015,48509,Other Fees,Environmental Services,Community Safety,"1,730.00"
110901,3501060,ALLPAY.NET LTD,06/08/2015,48509,Other Fees,Chief Executives,CSD Cashiers,581.52
2910325,3504262,REDACTED - PERSONAL DATA,17/08/2015,48509,Other Fees,Chief Executives,Financial Management,"2,700.00"
2779299,3506618,Turner Parkinson LLP Solicitors,20/08/2015,48509,Other Fees,Chief Executives,Financial Management,"5,060.00"
871655,3503653,AGILISYS LIMITED,13/08/2015,48509,Other Fees,Environmental Services,DMT,"1,680.00"
514522,3503879,LIFELINE PROJECT LTD,13/08/2015,48509,Other Fees,Adult Services,Drugs Pooled Treatment Budget,"1,700.00"
2694363,3504030,The Cheshire & Gtr M/C Community Rehabilitation Co Ltd,13/08/2015,48509,Other Fees,Adult Services,Drugs Pooled Treatment Budget,"12,275.50"
146379,3503836,HEARTLIFT#ANDREA WOOD,13/08/2015,48509,Other Fees,Childrens Services,Early Intervention Team,780.00
73940,3503911,FACILITATING CHANGE LTD,13/08/2015,48509,Other Fees,Childrens Services,Education Psychology Service,880.00
2932318,3503210,A & Z Investment Properties Ltd,13/08/2015,48509,Other Fees,Chief Executives,Energy Payments Account,"1,300.00"
313,3505971,Oldham Council,17/08/2015,48509,Other Fees,Chief Executives,Financing & Investing Activities,"2,888.00"
2284331,3504047,REDACTED - PERSONAL DATA,13/08/2015,48509,Other Fees,Public Health,Get Active,"1,688.00"
16299,3512865,SYMOLOGY LTD,27/08/2015,48509,Other Fees,Environmental Services,Highway Regulation & Inspection,"1,720.00"
1568137,3511318,arc4 Limited,27/08/2015,48509,Other Fees,Housing GRF,Housing Contingency,"9,124.65"
203434,3508904,NORTHERN EDUCATION,24/08/2015,48509,Other Fees,Childrens Services,Lifelong Learning Unit,"2,135.00"
2939326,3512689,Innov8 Training Solutions Ltd,27/08/2015,48509,Other Fees,Development & Regeneration,LMA External Funded Projects,500.00
653573,3506531,APPLIED PSYCHOLOGY SERVICES,20/08/2015,48509,Other Fees,Childrens Services,Management Team,"1,822.00"
2838305,3506513,Chavasse Court Chambers,20/08/2015,48509,Other Fees,Childrens Services,Management Team,750.00
2838305,3506514,Chavasse Court Chambers,20/08/2015,48509,Other Fees,Childrens Services,Management Team,650.00
2712300,3511753,Dean Langhorn,27/08/2015,48509,Other Fees,Childrens Services,Management Team,521.15
125827,3514933,COUNTY COURT 6681860 MANCHESTER,28/08/2015,48509,Other Fees,Childrens Services,Management Team,"6,165.00"
125827,3514932,COUNTY COURT 6681860 MANCHESTER,28/08/2015,48509,Other Fees,Childrens Services,Management Team,"4,495.00"
250404,3511761,MISS JANE WALKER#1,27/08/2015,48509,Other Fees,Childrens Services,Management Team,750.00
187283,3511693,MISS V HAMILTON,27/08/2015,48509,Other Fees,Childrens Services,Management Team,717.84
1037742,3505225,MRS PRUDENCE BEEVER,17/08/2015,48509,Other Fees,Childrens Services,Management Team,750.00
350350,3508928,PIPS COURIER SERVICES#MR D BROWN,24/08/2015,48509,Other Fees,Childrens Services,Management Team,654.00
2928306,3497813,REDACTED - PERSONAL DATA#NW Sexual Abuse Consultancy,06/08/2015,48509,Other Fees,Childrens Services,Management Team,"3,700.00"
38711,3501943,HALLE CONCERTS SOCIETY,10/08/2015,48509,Other Fees,Childrens Services,Music ServInstru & Vocal Teach,"11,500.00"
2925331,3507065,REDACTED - PERSONAL DATA,20/08/2015,48509,Other Fees,Childrens Services,Quality & inclusion,"1,200.00"
2929299,3497811,Adamsons Law Solicitors,06/08/2015,48509,Other Fees,Environmental Services,Regulatory Services Licensing,700.00
2755299,3502228,Hasta La Vista Limited,10/08/2015,48509,Other Fees,Development & Regeneration,Town Centre Development Fund,"19,653.39"
2328312,3506134,ANNI POOLE,20/08/2015,48509,Other Fees,Childrens Services,,900.00
146502,3501926,ALLIANCE DISPOSABLES LTD,10/08/2015,26002,Other Materials,Environmental Services,Building Cleaning,815.00
6307,3500587,FIBRELITE (NORTH WEST) LTD,06/08/2015,25105,Other Security,Environmental Services,NCP CCTV,"11,485.00"
6307,3500595,FIBRELITE (NORTH WEST) LTD,06/08/2015,25105,Other Security,Environmental Services,NCP CCTV,"9,645.00"
9982,3511314,NATIONAL CAR PARKS LTD#NCP,27/08/2015,25105,Other Security,Environmental Services,NCP CCTV,"7,000.00"
265233,3510941,QUADRANT SECURITY GROUP LTD,24/08/2015,25105,Other Security,Environmental Services,NCP CCTV,"2,135.00"
265233,3501111,QUADRANT SECURITY GROUP LTD,17/08/2015,25105,Other Security,Environmental Services,Security Services,"1,662.00"
123269,3506133,COLE SECURITY SERVICES LTD#FACTOR BIBBY,20/08/2015,44401,Other Security Expenses,Chief Executives, C.R.M. Operations,900.48
1579359,3502359,EXCLUSEC SECURITY SOLUTIONS LTD,10/08/2015,44401,Other Security Expenses,Environmental Services,Activities and Operations,606.00
123269,3510950,COLE SECURITY SERVICES LTD#FACTOR BIBBY,27/08/2015,44401,Other Security Expenses,Chief Executives,C.R.M. Operations,905.00
123269,3502864,COLE SECURITY SERVICES LTD#FACTOR BIBBY,13/08/2015,44401,Other Security Expenses,Chief Executives,C.R.M. Operations,905.00
123269,3502866,COLE SECURITY SERVICES LTD#FACTOR BIBBY,13/08/2015,44401,Other Security Expenses,Chief Executives,C.R.M. Operations,905.00
2613299,3506921,Sector Security Services Limited,20/08/2015,44401,Other Security Expenses,Adult Services,LD Purchaser Supported Housing,"1,586.23"
2613299,3506927,Sector Security Services Limited,20/08/2015,44401,Other Security Expenses,Adult Services,LD Purchaser Supported Housing,"1,657.25"
2613299,3504041,Sector Security Services Limited,13/08/2015,44401,Other Security Expenses,Adult Services,LD Purchaser Supported Housing,"1,590.96"
2613299,3502357,Sector Security Services Limited,10/08/2015,44401,Other Security Expenses,Adult Services,LD Purchaser Supported Housing,"1,590.96"
2613299,3502356,Sector Security Services Limited,10/08/2015,44401,Other Security Expenses,Adult Services,LD Purchaser Supported Housing,"1,590.96"
6270,3509228,DUVAL SECURITY,24/08/2015,44401,Other Security Expenses,Environmental Services,Markets  Rent Account,"2,482.58"
10146,3501441,RICOH UK LIMITED,06/08/2015,43030,Photocopying Lease/Maintenance,Chief Executives, Text & Reprographics,"2,125.00"
10146,3499248,RICOH UK LIMITED,06/08/2015,43030,Photocopying Lease/Maintenance,Chief Executives, Text & Reprographics,"6,036.79"
6619,3511030,ROBINSON PLANT HIRE,27/08/2015,33202,Plant Hire,Environmental Services,Activities and Operations,661.78
6619,3507708,ROBINSON PLANT HIRE,24/08/2015,33202,Plant Hire,Environmental Services,Activities and Operations,661.78
6619,3505096,ROBINSON PLANT HIRE,17/08/2015,33202,Plant Hire,Environmental Services,Activities and Operations,661.78
6107,3509454,B & M DAVIES (PLANT HIRE) LTD,24/08/2015,33202,Plant Hire,Environmental Services,Bereavement Services,935.50
6107,3503231,B & M DAVIES (PLANT HIRE) LTD,13/08/2015,33202,Plant Hire,Environmental Services,Bereavement Services,696.00
6107,3503754,B & M DAVIES (PLANT HIRE) LTD,13/08/2015,33202,Plant Hire,Environmental Services,Bereavement Services,732.00
6107,3503226,B & M DAVIES (PLANT HIRE) LTD,13/08/2015,33202,Plant Hire,Environmental Services,Bereavement Services,870.00
6107,3503766,B & M DAVIES (PLANT HIRE) LTD,13/08/2015,33202,Plant Hire,Environmental Services,Bereavement Services,935.50
6107,3503007,B & M DAVIES (PLANT HIRE) LTD,13/08/2015,33202,Plant Hire,Environmental Services,Bereavement Services,870.50
6629,3511092,ROYAL MAIL GROUP LTD,27/08/2015,45000,Postages Direct Costs,Chief Executives,Housing Benefits,"1,291.99"
6629,3506478,ROYAL MAIL GROUP LTD,20/08/2015,45000,Postages Direct Costs,Chief Executives,Housing Benefits,"2,167.72"
6629,3497873,ROYAL MAIL GROUP LTD,06/08/2015,45000,Postages Direct Costs,Chief Executives,Housing Benefits,"1,002.13"
6629,3501401,ROYAL MAIL GROUP LTD,06/08/2015,45000,Postages Direct Costs,Chief Executives,Housing Benefits,"1,029.71"
6629,3511092,ROYAL MAIL GROUP LTD,27/08/2015,45000,Postages Direct Costs,Chief Executives,Council Tax,909.80
6629,3506478,ROYAL MAIL GROUP LTD,20/08/2015,45000,Postages Direct Costs,Chief Executives,Council Tax,"1,280.86"
6629,3504428,ROYAL MAIL GROUP LTD,17/08/2015,45000,Postages Direct Costs,Chief Executives,Council Tax,"1,358.25"
6629,3497873,ROYAL MAIL GROUP LTD,06/08/2015,45000,Postages Direct Costs,Chief Executives,Council Tax,"1,142.66"
6629,3501401,ROYAL MAIL GROUP LTD,06/08/2015,45000,Postages Direct Costs,Chief Executives,Council Tax,"1,633.47"
6629,3506478,ROYAL MAIL GROUP LTD,20/08/2015,45000,Postages Direct Costs,Chief Executives,Accounts Receivable (R & B),806.51
6629,3504428,ROYAL MAIL GROUP LTD,17/08/2015,45000,Postages Direct Costs,Chief Executives,Accounts Receivable (R & B),"1,206.54"
2130290,3501592,BSM PRINT LTD,10/08/2015,43001,Printing General,Chief Executives,#NAME?,"1,135.00"
2694364,3505082,A P Broome Landscapes Ltd,17/08/2015,53000,Private Contracted Services,Environmental Services,Activities and Operations,977.00
2694363,3504295,The Cheshire & Gtr M/C Community Rehabilitation Co Ltd,17/08/2015,53000,Private Contracted Services,Environmental Services,Activities and Operations,"8,750.00"
798634,3502721,EDUCATION SUPPORT PROFESSIONALS,13/08/2015,53000,Private Contracted Services,Childrens Services,Admin IT (Schools),"3,682.50"
2441353,3511374,OSMIS EDUCATION LIMITED,27/08/2015,53000,Private Contracted Services,Childrens Services,Admin IT (Schools),"8,410.00"
10419,3501945,HALTON CONTAINER SERVICES LTD,10/08/2015,53000,Private Contracted Services,Environmental Services,Trade Waste,"4,379.60"
10419,3504755,HALTON CONTAINER SERVICES LTD,17/08/2015,53000,Private Contracted Services,Environmental Services,Waste,682.50
871655,3504285,AGILISYS LIMITED,17/08/2015,20101,Programmed Maint. Work,Chief Executives, Accomm Rationalisation Strategy,"12,600.00"
6122,3504311,BCL,24/08/2015,20101,Programmed Maint. Work,Chief Executives, Accomm Rationalisation Strategy,"1,302.00"
871655,3504289,AGILISYS LIMITED,17/08/2015,20101,Programmed Maint. Work,Chief Executives,Accomm Rationalisation Strategy,"9,450.00"
2021,3504270,ANCHOR REMOVALS LTD,24/08/2015,20101,Programmed Maint. Work,Chief Executives,Accomm Rationalisation Strategy,"1,537.59"
4682,3498049,M&G TRANSPORT & TECHNICAL SERVICES LTD,06/08/2015,20101,Programmed Maint. Work,Chief Executives,Accomm Rationalisation Strategy,"5,209.05"
1564046,3506978,OJT COMMUNICATIONS LTD,20/08/2015,20101,Programmed Maint. Work,Chief Executives,Accomm Rationalisation Strategy,575.00
6399,3507220,J DICKINSON & SONS (HORWICH) LTD#2,20/08/2015,20101,Programmed Maint. Work,Environmental Services,Activities and Operations,961.04
132270,3503013,FINE TURF SERVICES#FTS,13/08/2015,20101,Programmed Maint. Work,Environmental Services,Assets,"6,605.00"
132270,3503014,FINE TURF SERVICES#FTS,13/08/2015,20101,Programmed Maint. Work,Environmental Services,Assets,"4,400.00"
485511,3506610,PELL & BALDWIN (FABRICATIONS) LTD,20/08/2015,20101,Programmed Maint. Work,Environmental Services,Highway Management,"4,340.00"
3674,3509306,H & C (Plant Hire) Ltd,24/08/2015,20101,Programmed Maint. Work,Environmental Services,Highway Services,684.50
3674,3509304,H & C (Plant Hire) Ltd,24/08/2015,20101,Programmed Maint. Work,Environmental Services,Highway Services,684.50
3674,3507232,H & C (Plant Hire) Ltd,20/08/2015,20101,Programmed Maint. Work,Environmental Services,Highway Services,684.50
3674,3507234,H & C (Plant Hire) Ltd,20/08/2015,20101,Programmed Maint. Work,Environmental Services,Highway Services,684.50
6399,3507211,J DICKINSON & SONS (HORWICH) LTD#2,20/08/2015,20101,Programmed Maint. Work,Environmental Services,Highways Managers,768.29
6399,3507216,J DICKINSON & SONS (HORWICH) LTD#2,20/08/2015,20101,Programmed Maint. Work,Environmental Services,Highways Managers,948.85
6399,3507225,J DICKINSON & SONS (HORWICH) LTD#2,20/08/2015,20101,Programmed Maint. Work,Environmental Services,Highways Managers,730.48
6399,3507212,J DICKINSON & SONS (HORWICH) LTD#2,20/08/2015,20101,Programmed Maint. Work,Environmental Services,Highways Managers,560.42
2703315,3507478,IRONMAN Ltd,24/08/2015,48204,Promoting Events,Development & Regeneration,D&R Departmental Account,"25,000.00"
2703315,3507481,IRONMAN Ltd,24/08/2015,48204,Promoting Events,Development & Regeneration,D&R Departmental Account,"21,651.90"
7446,3511057,BOLTON LOCK COMPANY LTD,27/08/2015,25103,Purchases  Keys Etc.,Environmental Services,Assets,"1,406.08"
10232,3509277,ECE CONSULTANCY LTD,24/08/2015,20500,R & M Cremators,Environmental Services,Bereavement Services,"1,054.30"
6326,3503540,G & K REFRACTORIES LTD,13/08/2015,20500,R & M Cremators,Environmental Services,Bereavement Services,"1,680.00"
6151,3506494,URBAN OUTREACH (BOLTON),20/08/2015,20000,R&M Clerk Of Works,Housing GRF,Strat. Housing Unit Other Funding,"45,000.00"
302830,3506580,DATASPACE,20/08/2015,48506,Records Storage,Chief Executives,Legal Services Trading Account,826.26
2937307,3506731,Planet Circus,20/08/2015,93120,Refunds,Environmental Services,Activities and Operations,"1,748.22"
43938,3499240,BOLTON AT HOME#137,06/08/2015,93120,Refunds,Chief Executives,Legal Services Holding Code,"30,434.76"
6619,3502339,ROBINSON PLANT HIRE,10/08/2015,26106,Refuse Collection,Environmental Services,Activities and Operations,661.78
230664,3511283,VIRIDOR WASTE MANAGEMENT LIMITED,27/08/2015,26106,Refuse Collection,Environmental Services,Markets  Rent Account,"4,928.00"
230664,3509260,VIRIDOR WASTE MANAGEMENT LIMITED,24/08/2015,26106,Refuse Collection,Environmental Services,Markets  Rent Account,900.00
101393,3508893,ADAMS SELFSTORE,24/08/2015,22006,Rent of Storage Facilities,Development & Regeneration,Museum Premises,624.00
205423,3511021,PHOENIX FUTURES#PHOENIX HOUSE,27/08/2015,54301,Residential Provision,Adult Services,Drugs Pooled Treatment Budget,"3,489.11"
123583,3497796,THERAPEUTIC ENVIRONMENTS LTD,06/08/2015,54301,Residential Provision,Adult Services,Drugs Pooled Treatment Budget,"1,059.00"
123583,3497785,THERAPEUTIC ENVIRONMENTS LTD,03/08/2015,54301,Residential Provision,Adult Services,Drugs Pooled Treatment Budget,"2,188.60"
2109299,3498203,62 Wright Street#Mencap,04/08/2015,54301,Residential Provision,Adult Services,LD Purchaser Residential Care,"23,244.00"
2109302,3498204,7 Crawford Street#Mencap,04/08/2015,54301,Residential Provision,Adult Services,LD Purchaser Residential Care,"29,664.00"
6055,3498112,ABAFIELDS RESIDENTIAL HOME,04/08/2015,54301,Residential Provision,Adult Services,LD Purchaser Residential Care,"1,625.96"
2709325,3498092,Bannister Farm Cottage,04/08/2015,54301,Residential Provision,Adult Services,LD Purchaser Residential Care,"22,478.16"
7524,3498156,BROOKVALE,04/08/2015,54301,Residential Provision,Adult Services,LD Purchaser Residential Care,"7,138.64"
6227,3498153,CORNERSTONE TRUST,04/08/2015,54301,Residential Provision,Adult Services,LD Purchaser Residential Care,"15,910.40"
6635,3498144,ELLERSHAW HOUSE LTD,04/08/2015,54301,Residential Provision,Adult Services,LD Purchaser Residential Care,"9,098.36"
236248,3498183,HILLCREST VERNON,04/08/2015,54301,Residential Provision,Adult Services,LD Purchaser Residential Care,"4,870.72"
6454,3498121,HOLLANDS NURSING HOME,04/08/2015,54301,Residential Provision,Adult Services,LD Purchaser Residential Care,"5,420.40"
1989355,3498199,KINGARTH,04/08/2015,54301,Residential Provision,Adult Services,LD Purchaser Residential Care,"33,575.20"
2497291,3498227,MAX POTENTIAL UK LTD,04/08/2015,54301,Residential Provision,Adult Services,LD Purchaser Residential Care,"2,662.50"
2794559,3498097,Melling Acres,04/08/2015,54301,Residential Provision,Adult Services,LD Purchaser Residential Care,"17,343.20"
2845300,3498102,Radcliffe Meadows Nursing Home,04/08/2015,54301,Residential Provision,Adult Services,LD Purchaser Residential Care,"5,000.00"
42398,3498170,REDBANK CARE HOME#PAYEE VOYAGE NORTH,04/08/2015,54301,Residential Provision,Adult Services,LD Purchaser Residential Care,"4,692.20"
42398,3498170,REDBANK CARE HOME#PAYEE VOYAGE NORTH,04/08/2015,93258,Residential Provision,Adult Services,LD Purchaser Residential Care,781.40
2397424,3498220,STANLEY GRANGE,04/08/2015,54301,Residential Provision,Adult Services,LD Purchaser Residential Care,"4,867.96"
6713,3498154,THE DAVID LEWIS CENTRE,04/08/2015,54301,Residential Provision,Adult Services,LD Purchaser Residential Care,"15,182.76"
2697311,3498091,The Dukes House,04/08/2015,54301,Residential Provision,Adult Services,LD Purchaser Residential Care,"22,187.04"
2348298,3498217,ABBEY HEALTHCARE (FARNWORTH) LIMITED,04/08/2015,54301,Residential Provision,Adult Services,MH Residential External Provision,"1,647.08"
6064,3498140,AINSWORTH NURSING HOME,04/08/2015,54301,Residential Provision,Adult Services,MH Residential External Provision,"5,051.28"
2564295,3498082,Almond Villas Ltd,04/08/2015,54301,Residential Provision,Adult Services,MH Residential External Provision,"5,040.00"
2246414,3498210,ANSAR PROJECTS,04/08/2015,54301,Residential Provision,Adult Services,MH Residential External Provision,"4,536.00"
2906298,3498107,Blackrod House#1,04/08/2015,54301,Residential Provision,Adult Services,MH Residential External Provision,"1,625.96"
264233,3498188,BROOKFIELD RESIDENTIAL CARE HOME LTD,04/08/2015,54301,Residential Provision,Adult Services,MH Residential External Provision,"2,200.00"
7529,3498131,BROWFIELD RESIDENTIAL CARE HOME,04/08/2015,54301,Residential Provision,Adult Services,MH Residential External Provision,"5,208.32"
2794563,3498098,Burger Court,04/08/2015,54301,Residential Provision,Adult Services,MH Residential External Provision,"3,200.00"
252578,3498186,CARR BANK HOUSE#PAULINE JONES,04/08/2015,54301,Residential Provision,Adult Services,MH Residential External Provision,"1,568.68"
2278295,3498211,FOSSE BANK HOUSE,04/08/2015,54301,Residential Provision,Adult Services,MH Residential External Provision,"4,545.88"
178960,3498179,Hartington House,04/08/2015,54301,Residential Provision,Adult Services,MH Residential External Provision,"3,180.00"
6454,3498121,HOLLANDS NURSING HOME,04/08/2015,54301,Residential Provision,Adult Services,MH Residential External Provision,"13,463.36"
1015735,3498191,LEVER EDGE CARE HOME,04/08/2015,54301,Residential Provision,Adult Services,MH Residential External Provision,"1,647.08"
4808,3498132,MARY & JOSEPH HOUSE,04/08/2015,54301,Residential Provision,Adult Services,MH Residential External Provision,"3,898.00"
2497291,3498228,MAX POTENTIAL UK LTD,04/08/2015,54301,Residential Provision,Adult Services,MH Residential External Provision,"4,500.00"
10133,3498160,MILLVIEW NURSING HOME,04/08/2015,54301,Residential Provision,Adult Services,MH Residential External Provision,"1,625.96"
168404,3498178,QUEENS PARK VIEW#INTELLIGENT CARE,04/08/2015,54301,Residential Provision,Adult Services,MH Residential External Provision,"6,659.48"
6595,3498123,RANDOMLIGHT LTD#HEIGHTSIDE HOUSE,04/08/2015,54301,Residential Provision,Adult Services,MH Residential External Provision,"2,270.12"
10140,3498162,SOUTHLEA RESIDENTIAL CARE HOME,04/08/2015,54301,Residential Provision,Adult Services,MH Residential External Provision,"1,683.76"
7857,3498147,SUNNYSIDE RESIDENTIAL HOME,04/08/2015,54301,Residential Provision,Adult Services,MH Residential External Provision,"1,545.00"
2288290,3498212,THE BIRCHES,04/08/2015,54301,Residential Provision,Adult Services,MH Residential External Provision,"4,997.84"
972,3498136,THE BRANDLES,04/08/2015,54301,Residential Provision,Adult Services,MH Residential External Provision,"3,401.20"
6438,3498119,THE BUNGALOW RESIDENTIAL HOME,04/08/2015,54301,Residential Provision,Adult Services,MH Residential External Provision,"1,858.00"
1604381,3498196,THE LIMES#MAKING SPACES,04/08/2015,54301,Residential Provision,Adult Services,MH Residential External Provision,"2,100.00"
6055,3498112,ABAFIELDS RESIDENTIAL HOME,04/08/2015,54301,Residential Provision,Adult Services,OA  External Provision Residential,"25,945.52"
2348298,3498217,ABBEY HEALTHCARE (FARNWORTH) LIMITED,04/08/2015,54301,Residential Provision,Adult Services,OA  External Provision Residential,"56,059.53"
2341303,3498215,ABBEYCLIFFE RESIDENTIAL CARE HOME,04/08/2015,54301,Residential Provision,Adult Services,OA  External Provision Residential,"6,735.04"
6894,3498148,ABBEYDALE RESIDENTIAL CARE HOME,04/08/2015,54301,Residential Provision,Adult Services,OA  External Provision Residential,"5,051.28"
6895,3498133,ABBEYWOOD TOTTINGTON LTD,04/08/2015,54301,Residential Provision,Adult Services,OA  External Provision Residential,"5,051.28"
2794304,3498096,Abermad Nursing Home Ltd,04/08/2015,54301,Residential Provision,Adult Services,OA  External Provision Residential,"1,932.00"
959,3498135,ACORNS CARE CENTRE,04/08/2015,54301,Residential Provision,Adult Services,OA  External Provision Residential,"3,286.00"
2845302,3498103,Ambleside Bank Care Home,04/08/2015,54301,Residential Provision,Adult Services,OA  External Provision Residential,"1,736.00"
2338498,3498214,ASHTREE HOUSE,04/08/2015,54301,Residential Provision,Adult Services,OA  External Provision Residential,"3,256.00"
39733,3498169,BEDFORD RESIDENTIAL NURSING CARE HOME,04/08/2015,54301,Residential Provision,Adult Services,OA  External Provision Residential,"3,472.00"
1544379,3498193,BEECHFIELD LODGE#ANCHOR TRUST,04/08/2015,54301,Residential Provision,Adult Services,OA  External Provision Residential,"3,230.64"
247279,3498185,BEECHVILLE CARE HOME,04/08/2015,54301,Residential Provision,Adult Services,OA  External Provision Residential,"8,843.96"
2906298,3498107,Blackrod House#1,04/08/2015,54301,Residential Provision,Adult Services,OA  External Provision Residential,"25,173.77"
2855311,3498105,Bradley House Care Home,04/08/2015,54301,Residential Provision,Adult Services,OA  External Provision Residential,"1,640.00"
1548543,3498194,BRIDEOAKE CARE HOME,04/08/2015,54301,Residential Provision,Adult Services,OA  External Provision Residential,"1,736.00"
2590306,3498084,Brookside Care Home#1,04/08/2015,54301,Residential Provision,Adult Services,OA  External Provision Residential,"1,712.00"
1270916,3498192,BURRSWOOD HOUSE,04/08/2015,54301,Residential Provision,Adult Services,OA  External Provision Residential,"1,864.16"
2719307,3498093,Cambrian House,04/08/2015,54301,Residential Provision,Adult Services,OA  External Provision Residential,"1,668.00"
7612,3498149,CAMERON HOUSE CARE HOME,04/08/2015,54301,Residential Provision,Adult Services,OA  External Provision Residential,"1,683.76"
2620304,3498086,Castle Mount,04/08/2015,54301,Residential Provision,Adult Services,OA  External Provision Residential,"2,252.00"
191679,3498181,CHORLEY LODGE#ORCHARD CARE HOMES.COM LIMITED,04/08/2015,54301,Residential Provision,Adult Services,OA  External Provision Residential,"1,824.00"
2566295,3498083,Claremont Lodge,04/08/2015,54301,Residential Provision,Adult Services,OA  External Provision Residential,"1,615.32"
1862301,3498198,CONISTON HOUSE CARE HOME,04/08/2015,54301,Residential Provision,Adult Services,OA  External Provision Residential,"3,232.00"
72100,3498171,DOVE COURT RESIDENTIAL & NURSING HOME,04/08/2015,54301,Residential Provision,Adult Services,OA  External Provision Residential,"1,484.00"
9564,3498159,ECCLESHOLME,04/08/2015,54301,Residential Provision,Adult Services,OA  External Provision Residential,"1,615.32"
6320,3498114,FOUR SEASONS NURSING HOME,04/08/2015,54301,Residential Provision,Adult Services,OA  External Provision Residential,"32,529.83"
1779291,3498197,GHS BROOKDALE,04/08/2015,54301,Residential Provision,Adult Services,OA  External Provision Residential,"1,683.76"
6338,3498115,GLENBANK CARE HOME LTD,04/08/2015,54301,Residential Provision,Adult Services,OA  External Provision Residential,"24,425.40"
2906299,3498108,Glenhomes Care Home,04/08/2015,54301,Residential Provision,Adult Services,OA  External Provision Residential,"11,423.96"
6342,3498116,GORSEY CLOUGH NURSING HOME LTD,04/08/2015,54301,Residential Provision,Adult Services,OA  External Provision Residential,"1,683.76"
6344,3498117,GRANGE LEA RESIDENTIAL CARE HOME LTD,04/08/2015,54301,Residential Provision,Adult Services,OA  External Provision Residential,"27,789.16"
2194290,3498206,GREENLANDS RESIDENTIAL HOME LTD,04/08/2015,54301,Residential Provision,Adult Services,OA  External Provision Residential,"27,852.40"
2345384,3498216,GROVE HOUSE,04/08/2015,54301,Residential Provision,Adult Services,OA  External Provision Residential,"4,148.20"
38584,3498167,HALF ACRE CARE HOME,04/08/2015,54301,Residential Provision,Adult Services,OA  External Provision Residential,"8,418.80"
6367,3498141,HAZELBROOK CHRISTIAN NURSING HOME,04/08/2015,54301,Residential Provision,Adult Services,OA  External Provision Residential,"9,818.58"
2845307,3498104,Heath Cottage Care Home Ltd,04/08/2015,54301,Residential Provision,Adult Services,OA  External Provision Residential,"1,526.96"
2754301,3498094,Heywood Court Care Home,04/08/2015,54301,Residential Provision,Adult Services,OA  External Provision Residential,"1,750.72"
2544302,3498231,High Brake House,04/08/2015,54301,Residential Provision,Adult Services,OA  External Provision Residential,"1,712.00"
258947,3498187,HIGHCLIFFE RESIDENTIAL HOME#TEAMCARE LTD,04/08/2015,54301,Residential Provision,Adult Services,OA  External Provision Residential,"1,712.00"
2013321,3498200,HILLVIEW CARE HOME,04/08/2015,54301,Residential Provision,Adult Services,OA  External Provision Residential,"1,712.00"
6138,3498113,HYDE  LEA,04/08/2015,54301,Residential Provision,Adult Services,OA  External Provision Residential,"14,705.06"
34422,3498164,Ingleborough Nursing Home LLP,04/08/2015,54301,Residential Provision,Adult Services,OA  External Provision Residential,"2,173.57"
4060,3498150,JAH-JIREH (BLACKPOOL),04/08/2015,54301,Residential Provision,Adult Services,OA  External Provision Residential,"3,390.08"
7747,3498138,KENYON LODGE,04/08/2015,54301,Residential Provision,Adult Services,OA  External Provision Residential,"5,481.43"
6434,3498142,KNIGHTSWOOD RESIDENTIAL HOME,04/08/2015,54301,Residential Provision,Adult Services,OA  External Provision Residential,"17,121.68"
4457,3498157,LAKESIDE CARE HOME,04/08/2015,54301,Residential Provision,Adult Services,OA  External Provision Residential,"1,520.00"
1015735,3498191,LEVER EDGE CARE HOME,04/08/2015,54301,Residential Provision,Adult Services,OA  External Provision Residential,"98,314.11"
363536,3498189,LITTLE SISTERS OF THE POOR,04/08/2015,54301,Residential Provision,Adult Services,OA  External Provision Residential,"1,661.68"
6449,3498120,LYNGATE RESIDENTIAL HOME,04/08/2015,54301,Residential Provision,Adult Services,OA  External Provision Residential,"35,104.49"
2672328,3498089,Madison Court,04/08/2015,54301,Residential Provision,Adult Services,OA  External Provision Residential,"1,832.00"
6470,3498143,MARLEY COURT  NURSING & RESIDENTAIL HOME,04/08/2015,54301,Residential Provision,Adult Services,OA  External Provision Residential,"4,944.00"
2434291,3498223,MAYBANK HOUSE,04/08/2015,54301,Residential Provision,Adult Services,OA  External Provision Residential,"1,593.40"
38107,3498165,MEADOW BANK NURSING HOME,04/08/2015,54301,Residential Provision,Adult Services,OA  External Provision Residential,"1,588.00"
4856,3498151,MEADOWBANK HOUSE,04/08/2015,54301,Residential Provision,Adult Services,OA  External Provision Residential,"13,176.64"
10133,3498160,MILLVIEW NURSING HOME,04/08/2015,54301,Residential Provision,Adult Services,OA  External Provision Residential,"93,826.20"
2620330,3498087,Moorfields Care Home,04/08/2015,54301,Residential Provision,Adult Services,OA  External Provision Residential,"1,641.24"
2626324,3498088,Morgan Care Ltd,04/08/2015,54301,Residential Provision,Adult Services,OA  External Provision Residential,"23,599.30"
2794565,3498099,Napier Lodge Limited,04/08/2015,54301,Residential Provision,Adult Services,OA  External Provision Residential,"1,674.96"
2397427,3498222,ORCHARD COURT,04/08/2015,54301,Residential Provision,Adult Services,OA  External Provision Residential,"1,671.88"
7907,3498122,PARKVIEW NURSING & RESIDENTIAL HOME,04/08/2015,54301,Residential Provision,Adult Services,OA  External Provision Residential,"32,346.49"
2678357,3498090,Redbricks Care Home,04/08/2015,54301,Residential Provision,Adult Services,OA  External Provision Residential,"1,607.20"
2924495,3498111,Ringway Mews Care Home,04/08/2015,54301,Residential Provision,Adult Services,OA  External Provision Residential,"1,644.38"
2596318,3498085,Rivington Park Care Home,04/08/2015,54301,Residential Provision,Adult Services,OA  External Provision Residential,"1,790.00"
6617,3498124,RIVINGTON VIEW NURSING HOME,04/08/2015,54301,Residential Provision,Adult Services,OA  External Provision Residential,"6,140.48"
6623,3498125,ROSE COURT NURSING HOME,04/08/2015,54301,Residential Provision,Adult Services,OA  External Provision Residential,"10,824.17"
2845299,3498101,Roseacre,04/08/2015,54301,Residential Provision,Adult Services,OA  External Provision Residential,"1,596.00"
2806437,3498100,Rosemary Care Home Limited,04/08/2015,54301,Residential Provision,Adult Services,OA  External Provision Residential,"1,573.48"
2013332,3498201,ROUNDHAM COURT#EPH,04/08/2015,54301,Residential Provision,Adult Services,OA  External Provision Residential,"1,724.00"
6659,3498126,SHANNON COURT NURSING HOME,04/08/2015,54301,Residential Provision,Adult Services,OA  External Provision Residential,"36,431.68"
6673,3498145,SOUTHLANDS RESIDENTIAL HOME#SOUTHLANDS,04/08/2015,54301,Residential Provision,Adult Services,OA  External Provision Residential,"13,187.36"
991723,3498190,SOUTHVIEW LODGE RESIDENTIAL CARE HOME,04/08/2015,54301,Residential Provision,Adult Services,OA  External Provision Residential,"1,444.00"
2338384,3498213,SPECIALITY CARE (REIT HOMES) LTD T/A HOUNDSWOOD HOUSE CARE HOME,04/08/2015,54301,Residential Provision,Adult Services,OA  External Provision Residential,"4,052.40"
113123,3498172,SPENNYMOOR CARE HOME LTD,04/08/2015,54301,Residential Provision,Adult Services,OA  External Provision Residential,"10,568.86"
6679,3498127,ST CATHERINES CARE HOME,04/08/2015,54301,Residential Provision,Adult Services,OA  External Provision Residential,"4,809.00"
6686,3498128,STARMOUNT VILLA RESIDENTIAL CARE HOME,04/08/2015,54301,Residential Provision,Adult Services,OA  External Provision Residential,"4,797.20"
6691,3498146,STRATHMORE NURSING HOME#WHITEHILL HOMES LTD,04/08/2015,54301,Residential Provision,Adult Services,OA  External Provision Residential,"6,271.56"
2906300,3498109,Summerhill Nursing & Residential Home,04/08/2015,54301,Residential Provision,Adult Services,OA  External Provision Residential,"1,840.00"
7857,3498147,SUNNYSIDE RESIDENTIAL HOME,04/08/2015,54301,Residential Provision,Adult Services,OA  External Provision Residential,"28,953.49"
6438,3498119,THE BUNGALOW RESIDENTIAL HOME,04/08/2015,54301,Residential Provision,Adult Services,OA  External Provision Residential,"17,943.39"
2236315,3498209,THE CHANTERS CARE HOME,04/08/2015,54301,Residential Provision,Adult Services,OA  External Provision Residential,"1,520.00"
10139,3498161,THE CLOUGH RESIDENTIAL HOME,04/08/2015,54301,Residential Provision,Adult Services,OA  External Provision Residential,"25,166.93"
2876386,3498106,The Lakes Care Centre,04/08/2015,54301,Residential Provision,Adult Services,OA  External Provision Residential,"1,992.00"
38184,3498166,THE OAKS,04/08/2015,54301,Residential Provision,Adult Services,OA  External Provision Residential,"1,736.00"
9243,3498158,THE OLD VICARAGE,04/08/2015,54301,Residential Provision,Adult Services,OA  External Provision Residential,"3,091.36"
2036306,3498202,THE OLD VICARAGE#1,04/08/2015,54301,Residential Provision,Adult Services,OA  External Provision Residential,"2,040.00"
39372,3498168,THORLEY HOUSE,04/08/2015,54301,Residential Provision,Adult Services,OA  External Provision Residential,"1,736.00"
2918298,3498110,Urmston Manor,04/08/2015,54301,Residential Provision,Adult Services,OA  External Provision Residential,"2,416.26"
135042,3498174,WALKDEN MANOR CARE HOME LTD,04/08/2015,54301,Residential Provision,Adult Services,OA  External Provision Residential,818.01
2774303,3498095,Westy Hall,04/08/2015,54301,Residential Provision,Adult Services,OA  External Provision Residential,"1,796.00"
2379296,3498218,WHITEFIELD HOUSE,04/08/2015,54301,Residential Provision,Adult Services,OA  External Provision Residential,"1,683.76"
6780,3498129,WINGATES RESIDENTIAL HOME,04/08/2015,54301,Residential Provision,Adult Services,OA  External Provision Residential,"44,141.45"
1402,3498137,WITHINS RESIDENTIAL HOME,04/08/2015,54301,Residential Provision,Adult Services,OA  External Provision Residential,"88,415.26"
162685,3498177,Woodlands Court,04/08/2015,54301,Residential Provision,Adult Services,OA  External Provision Residential,"1,736.00"
6783,3498130,WOODLANDS HOUSE RESIDENTIAL HOME LTD,04/08/2015,54301,Residential Provision,Adult Services,OA  External Provision Residential,"26,724.60"
2397426,3498221,WYNNE CREST RESIDENTIAL CARE HOME,04/08/2015,54301,Residential Provision,Adult Services,OA  External Provision Residential,"1,960.00"
2438298,3498224,Birch Hall Care Centre,04/08/2015,54301,Residential Provision,Adult Services,PD Purchaser Residential Care,"2,236.00"
7612,3498149,CAMERON HOUSE CARE HOME,04/08/2015,54301,Residential Provision,Adult Services,PD Purchaser Residential Care,"1,683.76"
186816,3498180,ELLERSLIE COURT#VITALISE,04/08/2015,54301,Residential Provision,Adult Services,PD Purchaser Residential Care,"2,722.32"
6320,3498114,FOUR SEASONS NURSING HOME,04/08/2015,54301,Residential Provision,Adult Services,PD Purchaser Residential Care,"4,941.24"
148023,3498176,HARBOUR CLOSE,04/08/2015,54301,Residential Provision,Adult Services,PD Purchaser Residential Care,"3,877.88"
6369,3498118,HENSHAWS SOCIETY FOR THE BLIND,04/08/2015,54301,Residential Provision,Adult Services,PD Purchaser Residential Care,"2,946.72"
6454,3498121,HOLLANDS NURSING HOME,04/08/2015,54301,Residential Provision,Adult Services,PD Purchaser Residential Care,"10,401.85"
6138,3498113,HYDE  LEA,04/08/2015,54301,Residential Provision,Adult Services,PD Purchaser Residential Care,"1,705.90"
7907,3498122,PARKVIEW NURSING & RESIDENTIAL HOME,04/08/2015,54301,Residential Provision,Adult Services,PD Purchaser Residential Care,"1,647.08"
6679,3498127,ST CATHERINES CARE HOME,04/08/2015,54301,Residential Provision,Adult Services,PD Purchaser Residential Care,629.75
6438,3498119,THE BUNGALOW RESIDENTIAL HOME,04/08/2015,54301,Residential Provision,Adult Services,PD Purchaser Residential Care,"1,625.96"
1912,3498134,THE SPINAL UNIT ACTION GROUP,04/08/2015,54301,Residential Provision,Adult Services,PD Purchaser Residential Care,"2,192.40"
6461,3502330,Manchester Metropolitan University,10/08/2015,22004,Room Hire,Childrens Services,Gtr Manchester Music Education Hub,"2,233.00"
120894,3497950,Kearsley Mount Methodist Church,06/08/2015,22004,Room Hire,Childrens Services,Music ServInstru & Vocal Teach,670.00
6675,3511161,SPECTRA SECURITY LTD,27/08/2015,25107,Secure Doors,Chief Executives, Operational Facilities Management,"1,346.00"
1100818,3511355,G4S CASH SOLUTIONS,27/08/2015,44402,Security Cash Collection,Chief Executives, CSD Cashiers,"6,655.92"
1100818,3500730,G4S CASH SOLUTIONS,06/08/2015,44402,Security Cash Collection,Chief Executives, CSD Cashiers,"9,696.55"
1100818,3504012,G4S CASH SOLUTIONS,13/08/2015,44402,Security Cash Collection,Chief Executives,CSD Cashiers,"6,906.22"
7446,3500799,BOLTON LOCK COMPANY LTD,06/08/2015,25100,Security Systems  Purchases,Chief Executives,Operational Facilities Management,"1,195.00"
36812,3511740,SERVICOM (HIGH TECH) LTD,27/08/2015,25102,Security Systems  Rental,Development & Regeneration,TC Leadership Board Projects,"2,699.37"
94608,3506030,UNIGLOBE DIAMOND TRAVEL#CRESTA WORLD TRAVEL LTD T/A NORTHENDEN,20/08/2015,34100,Staff/Officers  Air Fares,Chief Executives,Mayoralty,853.20
871655,3506472,AGILISYS LIMITED,20/08/2015,45100,Telephones Direct Rental,Chief Executives, Agilysis Transformation,"27,108.46"
6172,3513478,BT PLC#NOT GLOBAL SERVICES,27/08/2015,45100,Telephones Direct Rental,Adult Services,Independent,854.11
2913298,3510853,Arden Telecom Ltd,24/08/2015,45100,Telephones Direct Rental,Environmental Services,Markets  Rent Account,912.92
10208,3506752,CIEH#CHARTERED INSTITUTE OF ENVIRONMENTAL HEALTH,20/08/2015,19105,Training Exp  Books Etc,Environmental Services,Catering,605.25
2923330,3503202,Skillsoft UK T/A Skillsoft Direct,13/08/2015,19105,Training Exp  Books Etc,Environmental Services,Catering,"3,538.02"
1383004,3504758,CATALYST CONSULTING LTD,17/08/2015,19100,Training Exps Tuition Fees,Childrens Services, WPD Project Link,"1,449.00"
6720,3513748,The University Of Manchester,27/08/2015,19100,Training Exps Tuition Fees,Environmental Services,Community Safety,585.00
43099,3503726,SOLACE#NOT ENTERPRISES,13/08/2015,19100,Training Exps Tuition Fees,Chief Executives,Organisational Development,500.00
25022,3508915,MANAGEMENT LEARNING RESOURCES LTD,24/08/2015,19100,Training Exps Tuition Fees,Chief Executives,Organisational Development,"1,370.00"
72200,3503513,LAST DROP VILLAGE HOTEL AND SPA#MERCURE,13/08/2015,19100,Training Exps Tuition Fees,Chief Executives,Workforce Development Team,"2,306.04"
2052,3503880,Bolton Under Fives Forum#BUFF,13/08/2015,19100,Training Exps Tuition Fees,Childrens Services,WPD Project Link,600.00
2623,3508769,CITY & GUILDS OF LONDON INSTITUTE,24/08/2015,19100,Training Exps Tuition Fees,Childrens Services,WPD Project Link,742.00
2623,3508776,CITY & GUILDS OF LONDON INSTITUTE,24/08/2015,19100,Training Exps Tuition Fees,Childrens Services,WPD Project Link,880.00
6179,3507017,BURNT TREE GROUP,20/08/2015,33201,Transport Hire,Environmental Services,Transport Support Service,556.60
6179,3507011,BURNT TREE GROUP,20/08/2015,33201,Transport Hire,Environmental Services,Transport Support Service,556.60
6179,3506005,BURNT TREE GROUP,20/08/2015,33201,Transport Hire,Environmental Services,Transport Support Service,538.20
6179,3507014,BURNT TREE GROUP,20/08/2015,33201,Transport Hire,Environmental Services,Transport Support Service,708.40
6179,3507020,BURNT TREE GROUP,20/08/2015,33201,Transport Hire,Environmental Services,Transport Support Service,708.40
6179,3507023,BURNT TREE GROUP,20/08/2015,33201,Transport Hire,Environmental Services,Transport Support Service,"1,026.00"
6179,3507025,BURNT TREE GROUP,20/08/2015,33201,Transport Hire,Environmental Services,Transport Support Service,"1,026.00"
2719314,3507034,Fleet Dynamic,20/08/2015,33201,Transport Hire,Environmental Services,Transport Support Service,"1,134.00"
1919290,3511121,LEEDS COMMERCIAL LIMITED,27/08/2015,33201,Transport Hire,Environmental Services,Transport Support Service,805.00
1919290,3507039,LEEDS COMMERCIAL LIMITED,20/08/2015,33201,Transport Hire,Environmental Services,Transport Support Service,770.00
1838318,3506543,NORTHGATE VEHICLE HIRE LTD,20/08/2015,33201,Transport Hire,Environmental Services,Transport Support Service,"9,611.58"
22610,3507042,PETER DOUGLASS PLATFORMS,20/08/2015,33201,Transport Hire,Environmental Services,Transport Support Service,"1,242.00"
22610,3497800,PETER DOUGLASS PLATFORMS,06/08/2015,33201,Transport Hire,Environmental Services,Transport Support Service,"1,050.00"
2822312,3501944,Trash UK Ltd,10/08/2015,33201,Transport Hire,Environmental Services,Transport Support Service,575.00
267154,3512707,J A TYRE SERVICE LTD,27/08/2015,31303,Tyres,Environmental Services,Transport Support Service,659.50
267154,3506339,J A TYRE SERVICE LTD,20/08/2015,31303,Tyres,Environmental Services,Transport Support Service,505.00
267154,3497845,J A TYRE SERVICE LTD,06/08/2015,31303,Tyres,Environmental Services,Transport Support Service,"1,193.40"
6700,3509199,TJS HIRE CO (HUMBERSIDE) LTD#TJD SELF DRIVE BOLTON,24/08/2015,36200,Uninsured Losses  Vehicles,Environmental Services,Transport Support Service,"1,493.62"
1671329,3506308,ALLSTAR BUSINESS SOLUTIONS,20/08/2015,31301,Vehicle Fuel,Environmental Services,Activities and Operations,"8,801.01"
1671329,3501042,ALLSTAR BUSINESS SOLUTIONS,06/08/2015,31301,Vehicle Fuel,Environmental Services,Activities and Operations,"10,150.11"
1671329,3506308,ALLSTAR BUSINESS SOLUTIONS,20/08/2015,31301,Vehicle Fuel,Environmental Services,Highway Works  Unallocated Costs,"1,848.06"
1671329,3501042,ALLSTAR BUSINESS SOLUTIONS,06/08/2015,31301,Vehicle Fuel,Childrens Services,Positive Activities Transport,512.03
1671329,3506308,ALLSTAR BUSINESS SOLUTIONS,20/08/2015,31301,Vehicle Fuel,Environmental Services,SNT Childrens Servs,577.47
1671329,3501042,ALLSTAR BUSINESS SOLUTIONS,06/08/2015,31301,Vehicle Fuel,Environmental Services,SNT Childrens Servs,"1,240.62"
1671329,3506308,ALLSTAR BUSINESS SOLUTIONS,20/08/2015,31301,Vehicle Fuel,Environmental Services,Vulnerable Persons Transport,"2,283.68"
1671329,3501042,ALLSTAR BUSINESS SOLUTIONS,06/08/2015,31301,Vehicle Fuel,Environmental Services,Vulnerable Persons Transport,"3,244.58"
1671329,3506308,ALLSTAR BUSINESS SOLUTIONS,20/08/2015,31301,Vehicle Fuel,Environmental Services,Waste,"17,342.87"
1671329,3501042,ALLSTAR BUSINESS SOLUTIONS,06/08/2015,31301,Vehicle Fuel,Environmental Services,Waste,"23,538.62"
2532340,3506421,Tusker,20/08/2015,31100,Vehicle Purchase,Chief Executives,Car Salary Sacrifice Scheme,"37,209.75"
7481,3506463,BRADSHAW SHEET METAL WORKS LTD,20/08/2015,31305,Vehicle Servicing,Environmental Services,Transport Support Service,530.00
125827,3513997,CICELEY COMMERCIAL 000000009797081 BLACKBURN,28/08/2015,31305,Vehicle Servicing,Environmental Services,Transport Support Service,696.38
125827,3513984,CICELEY COMMERCIAL 000000009797081 BLACKBURN,28/08/2015,31305,Vehicle Servicing,Environmental Services,Transport Support Service,788.27
125827,3514003,CICELEY COMMERCIAL 000000009797081 BLACKBURN,28/08/2015,31305,Vehicle Servicing,Environmental Services,Transport Support Service,953.78
1555984,3513853,FAUN ZOELLER (UK) LTD,27/08/2015,31305,Vehicle Servicing,Environmental Services,Transport Support Service,971.00
1555984,3506342,FAUN ZOELLER (UK) LTD,20/08/2015,31305,Vehicle Servicing,Environmental Services,Transport Support Service,577.28
524532,3503928,LPW (EUROPE) LTD,13/08/2015,31305,Vehicle Servicing,Environmental Services,Transport Support Service,787.50
125827,3515568,WWW.DVLA.GOV.UK 5124581 VEHICLE LICEN,28/08/2015,31300,Vehicle Tax,Environmental Services,Transport Support Service,652.50
125827,3515567,WWW.DVLA.GOV.UK 5124581 VEHICLE LICEN,28/08/2015,31300,Vehicle Tax,Environmental Services,Transport Support Service,652.50
247297,3507227,BOLTON BULLETS,20/08/2015,52000,Vol Assoc Grants  General,Childrens Services,Admin Commissioning,"1,250.00"
2934,3502505,DAYTRIPPERS,10/08/2015,52000,Vol Assoc Grants  General,Childrens Services,Admin Commissioning,"2,500.00"
2156,3500792,HARMONY YOUTH PROJECT,06/08/2015,52000,Vol Assoc Grants  General,Childrens Services,Admin Commissioning,"3,600.00"
1223,3507603,URBAN SOLUTIONS NORTHWEST LTD,24/08/2015,52000,Vol Assoc Grants  General,Childrens Services,Admin Commissioning,"6,000.00"
7411,3506693,BOLTON LADS & GIRLS CLUB,20/08/2015,52000,Vol Assoc Grants  General,Childrens Services,Business Support    South District,"41,623.00"
2610465,3506645,Beacon Reach Limited,20/08/2015,52000,Vol Assoc Grants  General,Childrens Services,Disability Serv External Provision,"7,625.00"
6131,3508767,CHILD ACTION NORTHWEST,24/08/2015,52000,Vol Assoc Grants  General,Childrens Services,Disability Serv External Provision,"4,448.19"
2124292,3511077,CRYSTAL CARE SOLUTIONS LTD,27/08/2015,52000,Vol Assoc Grants  General,Childrens Services,Disability Serv External Provision,"3,895.00"
2124292,3511075,CRYSTAL CARE SOLUTIONS LTD,27/08/2015,52000,Vol Assoc Grants  General,Childrens Services,Disability Serv External Provision,"3,895.00"
2124292,3504066,CRYSTAL CARE SOLUTIONS LTD,13/08/2015,52000,Vol Assoc Grants  General,Childrens Services,Disability Serv External Provision,"3,895.00"
2124292,3504071,CRYSTAL CARE SOLUTIONS LTD,13/08/2015,52000,Vol Assoc Grants  General,Childrens Services,Disability Serv External Provision,"3,895.00"
2124292,3504067,CRYSTAL CARE SOLUTIONS LTD,13/08/2015,52000,Vol Assoc Grants  General,Childrens Services,Disability Serv External Provision,"3,895.00"
1237875,3502239,NEW START CHILDCARE,10/08/2015,52000,Vol Assoc Grants  General,Childrens Services,Disability Serv External Provision,"17,650.00"
39704,3504024,THE TOGETHER TRUST,13/08/2015,52000,Vol Assoc Grants  General,Childrens Services,Disability Serv External Provision,"15,322.99"
156135,3505125,ACCESS TO CARE LTD,17/08/2015,52000,Vol Assoc Grants  General,Childrens Services,Res Serv Agency Placements,850.00
156135,3505123,ACCESS TO CARE LTD,17/08/2015,52000,Vol Assoc Grants  General,Childrens Services,Res Serv Agency Placements,850.00
156135,3505127,ACCESS TO CARE LTD,17/08/2015,52000,Vol Assoc Grants  General,Childrens Services,Res Serv Agency Placements,850.00
156135,3505126,ACCESS TO CARE LTD,17/08/2015,52000,Vol Assoc Grants  General,Childrens Services,Res Serv Agency Placements,850.00
156135,3505118,ACCESS TO CARE LTD,17/08/2015,52000,Vol Assoc Grants  General,Childrens Services,Res Serv Agency Placements,850.00
156135,3505128,ACCESS TO CARE LTD,17/08/2015,52000,Vol Assoc Grants  General,Childrens Services,Res Serv Agency Placements,850.00
156135,3497827,ACCESS TO CARE LTD,06/08/2015,52000,Vol Assoc Grants  General,Childrens Services,Res Serv Agency Placements,850.00
156135,3497822,ACCESS TO CARE LTD,06/08/2015,52000,Vol Assoc Grants  General,Childrens Services,Res Serv Agency Placements,850.00
156135,3497825,ACCESS TO CARE LTD,06/08/2015,52000,Vol Assoc Grants  General,Childrens Services,Res Serv Agency Placements,850.00
156135,3497828,ACCESS TO CARE LTD,06/08/2015,52000,Vol Assoc Grants  General,Childrens Services,Res Serv Agency Placements,850.00
156135,3497824,ACCESS TO CARE LTD,06/08/2015,52000,Vol Assoc Grants  General,Childrens Services,Res Serv Agency Placements,850.00
1951294,3511084,ACORN HOUSE FOSTERING SERVICES,27/08/2015,52000,Vol Assoc Grants  General,Childrens Services,Res Serv Agency Placements,"3,808.66"
6063,3502240,AGR CARE SERVICES,10/08/2015,52000,Vol Assoc Grants  General,Childrens Services,Res Serv Agency Placements,"8,370.00"
6063,3502241,AGR CARE SERVICES,10/08/2015,52000,Vol Assoc Grants  General,Childrens Services,Res Serv Agency Placements,"11,935.00"
6063,3502243,AGR CARE SERVICES,10/08/2015,52000,Vol Assoc Grants  General,Childrens Services,Res Serv Agency Placements,"11,532.00"
6063,3502244,AGR CARE SERVICES,10/08/2015,52000,Vol Assoc Grants  General,Childrens Services,Res Serv Agency Placements,"11,935.00"
7298,3504073,BARNARDOS,13/08/2015,52000,Vol Assoc Grants  General,Childrens Services,Res Serv Agency Placements,"3,542.86"
7298,3504075,BARNARDOS,13/08/2015,52000,Vol Assoc Grants  General,Childrens Services,Res Serv Agency Placements,"3,380.86"
7298,3502256,BARNARDOS,10/08/2015,52000,Vol Assoc Grants  General,Childrens Services,Res Serv Agency Placements,"7,542.86"
7465,3508907,BOLTON YOUNG PERSONS HOUSING SCHEME#BYPHS,24/08/2015,52000,Vol Assoc Grants  General,Childrens Services,Res Serv Agency Placements,929.45
7465,3508905,BOLTON YOUNG PERSONS HOUSING SCHEME#BYPHS,24/08/2015,52000,Vol Assoc Grants  General,Childrens Services,Res Serv Agency Placements,"1,929.55"
7465,3505132,BOLTON YOUNG PERSONS HOUSING SCHEME#BYPHS,17/08/2015,52000,Vol Assoc Grants  General,Childrens Services,Res Serv Agency Placements,791.20
2775307,3511396,Bryn Melyn Care Ltd,27/08/2015,52000,Vol Assoc Grants  General,Childrens Services,Res Serv Agency Placements,"7,085.71"
2775307,3506530,Bryn Melyn Care Ltd,20/08/2015,52000,Vol Assoc Grants  General,Childrens Services,Res Serv Agency Placements,"20,778.86"
1551594,3508912,BY THE BRIDGE NORTH WEST,24/08/2015,52000,Vol Assoc Grants  General,Childrens Services,Res Serv Agency Placements,"3,826.29"
1551594,3508910,BY THE BRIDGE NORTH WEST,24/08/2015,52000,Vol Assoc Grants  General,Childrens Services,Res Serv Agency Placements,"4,101.30"
266353,3508777,CARITAS CARE LIMITED T/A CATHOLIC CARING SERVICES,24/08/2015,52000,Vol Assoc Grants  General,Childrens Services,Res Serv Agency Placements,"2,214.29"
266353,3497954,CARITAS CARE LIMITED T/A CATHOLIC CARING SERVICES,06/08/2015,52000,Vol Assoc Grants  General,Childrens Services,Res Serv Agency Placements,"2,142.86"
6131,3508751,CHILD ACTION NORTHWEST,24/08/2015,52000,Vol Assoc Grants  General,Childrens Services,Res Serv Agency Placements,"3,100.00"
2588314,3511080,Compass Fostering North West Ltd,27/08/2015,52000,Vol Assoc Grants  General,Childrens Services,Res Serv Agency Placements,"2,117.17"
2588314,3508880,Compass Fostering North West Ltd,24/08/2015,52000,Vol Assoc Grants  General,Childrens Services,Res Serv Agency Placements,"3,830.67"
2876322,3506528,Courtyard Care Ltd#1,20/08/2015,52000,Vol Assoc Grants  General,Childrens Services,Res Serv Agency Placements,"16,319.64"
2124292,3511073,CRYSTAL CARE SOLUTIONS LTD,27/08/2015,52000,Vol Assoc Grants  General,Childrens Services,Res Serv Agency Placements,"2,895.00"
2124292,3511070,CRYSTAL CARE SOLUTIONS LTD,27/08/2015,52000,Vol Assoc Grants  General,Childrens Services,Res Serv Agency Placements,"2,895.00"
3463,3512824,FOSTER CARE ASSOCIATES LTD,27/08/2015,52000,Vol Assoc Grants  General,Childrens Services,Res Serv Agency Placements,"4,380.30"
3463,3512827,FOSTER CARE ASSOCIATES LTD,27/08/2015,52000,Vol Assoc Grants  General,Childrens Services,Res Serv Agency Placements,"3,317.00"
3463,3497832,FOSTER CARE ASSOCIATES LTD,06/08/2015,52000,Vol Assoc Grants  General,Childrens Services,Res Serv Agency Placements,"3,317.00"
3463,3497835,FOSTER CARE ASSOCIATES LTD,06/08/2015,52000,Vol Assoc Grants  General,Childrens Services,Res Serv Agency Placements,"4,380.30"
3603,3505131,G-MAP SERVICES LTD,17/08/2015,52000,Vol Assoc Grants  General,Childrens Services,Res Serv Agency Placements,"3,025.00"
2729316,3506521,Hexagon Care Services Ltd,20/08/2015,52000,Vol Assoc Grants  General,Childrens Services,Res Serv Agency Placements,"11,049.29"
2729316,3506522,Hexagon Care Services Ltd,20/08/2015,52000,Vol Assoc Grants  General,Childrens Services,Res Serv Agency Placements,"13,263.57"
2729316,3502250,Hexagon Care Services Ltd,10/08/2015,52000,Vol Assoc Grants  General,Childrens Services,Res Serv Agency Placements,"10,872.14"
2729316,3502252,Hexagon Care Services Ltd,10/08/2015,52000,Vol Assoc Grants  General,Childrens Services,Res Serv Agency Placements,"13,263.57"
2729316,3502254,Hexagon Care Services Ltd,10/08/2015,52000,Vol Assoc Grants  General,Childrens Services,Res Serv Agency Placements,"11,049.29"
2854299,3511390,Inspire Childrens Services,27/08/2015,52000,Vol Assoc Grants  General,Childrens Services,Res Serv Agency Placements,"6,160.00"
2854299,3504016,Inspire Childrens Services,13/08/2015,52000,Vol Assoc Grants  General,Childrens Services,Res Serv Agency Placements,"5,775.00"
2822310,3507704,Inspire Community Services Ltd,24/08/2015,52000,Vol Assoc Grants  General,Childrens Services,Res Serv Agency Placements,"3,479.63"
2822310,3506090,Inspire Community Services Ltd,20/08/2015,52000,Vol Assoc Grants  General,Childrens Services,Res Serv Agency Placements,"4,314.45"
2822310,3497955,Inspire Community Services Ltd,06/08/2015,52000,Vol Assoc Grants  General,Childrens Services,Res Serv Agency Placements,"4,602.08"
58799,3508774,JAY FOSTERING LIMITED,24/08/2015,52000,Vol Assoc Grants  General,Childrens Services,Res Serv Agency Placements,"3,500.83"
58799,3508882,JAY FOSTERING LIMITED,24/08/2015,52000,Vol Assoc Grants  General,Childrens Services,Res Serv Agency Placements,"3,500.83"
2921302,3506500,Keys Education & Care Limited,20/08/2015,52000,Vol Assoc Grants  General,Childrens Services,Res Serv Agency Placements,"7,440.00"
2921302,3506501,Keys Education & Care Limited,20/08/2015,52000,Vol Assoc Grants  General,Childrens Services,Res Serv Agency Placements,"15,057.01"
1237875,3507498,NEW START CHILDCARE,24/08/2015,52000,Vol Assoc Grants  General,Childrens Services,Res Serv Agency Placements,"11,600.00"
2535411,3506096,Next Stage 4 Life,20/08/2015,52000,Vol Assoc Grants  General,Childrens Services,Res Serv Agency Placements,"3,800.00"
2535411,3506532,Next Stage 4 Life,20/08/2015,52000,Vol Assoc Grants  General,Childrens Services,Res Serv Agency Placements,"23,000.00"
2535411,3504017,Next Stage 4 Life,13/08/2015,52000,Vol Assoc Grants  General,Childrens Services,Res Serv Agency Placements,"10,800.00"
2781367,3511394,Pathway to Prospects Ltd,27/08/2015,52000,Vol Assoc Grants  General,Childrens Services,Res Serv Agency Placements,"5,297.40"
111260,3508918,PERPETUAL FOSTERING LTD,24/08/2015,52000,Vol Assoc Grants  General,Childrens Services,Res Serv Agency Placements,"3,538.34"
111260,3508913,PERPETUAL FOSTERING LTD,24/08/2015,52000,Vol Assoc Grants  General,Childrens Services,Res Serv Agency Placements,"3,308.01"
152595,3502238,SHARED CARE#MAPLE LEAF CARE LIMITED,10/08/2015,52000,Vol Assoc Grants  General,Childrens Services,Res Serv Agency Placements,"7,320.00"
1556141,3506525,SOCIAL CARE SERVICES GROUP,20/08/2015,52000,Vol Assoc Grants  General,Childrens Services,Res Serv Agency Placements,"8,525.00"
2370349,3508936,STEP AHEAD RESOURCE SERVICES LTD,24/08/2015,52000,Vol Assoc Grants  General,Childrens Services,Res Serv Agency Placements,850.00
2370349,3506099,STEP AHEAD RESOURCE SERVICES LTD,20/08/2015,52000,Vol Assoc Grants  General,Childrens Services,Res Serv Agency Placements,850.00
2370349,3505133,STEP AHEAD RESOURCE SERVICES LTD,17/08/2015,52000,Vol Assoc Grants  General,Childrens Services,Res Serv Agency Placements,850.00
2370349,3497963,STEP AHEAD RESOURCE SERVICES LTD,10/08/2015,52000,Vol Assoc Grants  General,Childrens Services,Res Serv Agency Placements,850.00
2370349,3497964,STEP AHEAD RESOURCE SERVICES LTD,10/08/2015,52000,Vol Assoc Grants  General,Childrens Services,Res Serv Agency Placements,850.00
2370349,3497722,STEP AHEAD RESOURCE SERVICES LTD,03/08/2015,52000,Vol Assoc Grants  General,Childrens Services,Res Serv Agency Placements,850.00
2370349,3497721,STEP AHEAD RESOURCE SERVICES LTD,03/08/2015,52000,Vol Assoc Grants  General,Childrens Services,Res Serv Agency Placements,850.00
882,3511016,SWIIS FOSTER CARE LTD,27/08/2015,52000,Vol Assoc Grants  General,Childrens Services,Res Serv Agency Placements,780.01
882,3512820,SWIIS FOSTER CARE LTD,27/08/2015,52000,Vol Assoc Grants  General,Childrens Services,Res Serv Agency Placements,780.01
882,3506080,SWIIS FOSTER CARE LTD,20/08/2015,52000,Vol Assoc Grants  General,Childrens Services,Res Serv Agency Placements,780.01
882,3505129,SWIIS FOSTER CARE LTD,17/08/2015,52000,Vol Assoc Grants  General,Childrens Services,Res Serv Agency Placements,780.01
882,3505130,SWIIS FOSTER CARE LTD,17/08/2015,52000,Vol Assoc Grants  General,Childrens Services,Res Serv Agency Placements,780.01
882,3497837,SWIIS FOSTER CARE LTD,06/08/2015,52000,Vol Assoc Grants  General,Childrens Services,Res Serv Agency Placements,780.01
995,3506086,THE NATIONAL FOSTERING AGENCY,20/08/2015,52000,Vol Assoc Grants  General,Childrens Services,Res Serv Agency Placements,"2,988.40"
78749,3508992,THE YOUTH JUSTICE BOARD,24/08/2015,52000,Vol Assoc Grants  General,Childrens Services,Res Serv Agency Placements,"1,947.00"
16302,3506496,BOLTON COMMUNITY TRANSPORT & FURNITURE SERVICES#BCT & FS,20/08/2015,52000,Vol Assoc Grants  General,Housing GRF,Strat. Housing Unit Other Funding,"10,000.00"
7432,3506495,THE BOND BOARD LTD,20/08/2015,52000,Vol Assoc Grants  General,Housing GRF,Strat. Housing Unit Other Funding,"50,000.00"
6131,3508793,CHILD ACTION NORTHWEST,24/08/2015,52000,Vol Assoc Grants  General,Childrens Services,Youth Offending Team,"1,587.50"
2418,3511700,UNITED UTILITIES WATER PLC#1,27/08/2015,22200,Water Charges  Metered,Housing GRF,Access & Advice Caravan Sites,714.20
2418,3497701,UNITED UTILITIES WATER PLC#1,03/08/2015,22200,Water Charges  Metered,Housing GRF,Access & Advice Caravan Sites,506.08
2418,3511700,UNITED UTILITIES WATER PLC#1,27/08/2015,22200,Water Charges  Metered,Environmental Services,Assets,"1,969.86"
2418,3497701,UNITED UTILITIES WATER PLC#1,03/08/2015,22200,Water Charges  Metered,Environmental Services,Assets,"6,210.24"
2418,3511700,UNITED UTILITIES WATER PLC#1,27/08/2015,22200,Water Charges  Metered,Housing GRF,Benjamin Court Accommodation,"4,913.31"
2418,3497701,UNITED UTILITIES WATER PLC#1,03/08/2015,22200,Water Charges  Metered,Environmental Services,Community Centres  Blackrod,926.76
2418,3511700,UNITED UTILITIES WATER PLC#1,27/08/2015,22200,Water Charges  Metered,Chief Executives,Land and Property Portfolios,"1,314.29"
2418,3511700,UNITED UTILITIES WATER PLC#1,27/08/2015,22200,Water Charges  Metered,Chief Executives,Admin Buildings Portfolio,"21,898.48"
2418,3511700,UNITED UTILITIES WATER PLC#1,27/08/2015,22200,Water Charges  Metered,Chief Executives,Other Buildings Portfolio,"1,198.14"
2418,3511700,UNITED UTILITIES WATER PLC#1,27/08/2015,22200,Water Charges  Metered,Chief Executives,Adult Social Care Portfolio,"5,113.45"
2418,3497701,UNITED UTILITIES WATER PLC#1,03/08/2015,22200,Water Charges  Metered,Chief Executives,Adult Social Care Portfolio,"5,746.51"
2418,3511700,UNITED UTILITIES WATER PLC#1,27/08/2015,22200,Water Charges  Metered,Chief Executives,Energy Payments Account,"2,454.45"
2418,3511700,UNITED UTILITIES WATER PLC#1,27/08/2015,22200,Water Charges  Metered,Childrens Services,Farnworth Youth Centre (Yth Srv),714.76
2418,3511700,UNITED UTILITIES WATER PLC#1,27/08/2015,22200,Water Charges  Metered,Environmental Services,Heaton Fold,883.86
2418,3511700,UNITED UTILITIES WATER PLC#1,27/08/2015,22200,Water Charges  Metered,Childrens Services,Lord Street and Grosvenor CC,"2,222.86"
2418,3511700,UNITED UTILITIES WATER PLC#1,27/08/2015,22200,Water Charges  Metered,Environmental Services,Markets  Rent Account,"10,078.28"
6100,3499244,ASSOCIATED CLEANING CONTRACTORS,06/08/2015,26100,Window Cleaning,Chief Executives, Annual Charge Holding Account,688.00
6100,3510668,ASSOCIATED CLEANING CONTRACTORS,24/08/2015,26100,Window Cleaning,Chief Executives,Annual Charge Holding Account,520.00
6100,3506136,ASSOCIATED CLEANING CONTRACTORS,20/08/2015,26100,Window Cleaning,Chief Executives,Annual Charge Holding Account,"2,057.00"
2178306,3497666,ISG CONSTRUCTION LTD,03/08/2015,Z1051,Work in Progress Additions,Chief Executives, Chief Execs Balance Sheet,"240,897.00"
111640,3499253,DBD MECHANICAL & ELECTRICAL BUILDING SERVICES,06/08/2015,Z1051,Work in Progress Additions,Adult Services,Adult Services Balance Sheet,"22,808.32"
178961,3504320,GREAT PLACES HOUSING ASSOCIATION,17/08/2015,Z1051,Work in Progress Additions,Adult Services,Adult Services Balance Sheet,"5,775.09"
1573321,3500721,LIQUIDLOGIC LIMITED,06/08/2015,Z1051,Work in Progress Additions,Adult Services,Adult Services Balance Sheet,"146,704.50"
1573321,3500713,LIQUIDLOGIC LIMITED,06/08/2015,Z1051,Work in Progress Additions,Adult Services,Adult Services Balance Sheet,"4,500.00"
2576374,3500703,Renray Healthcare Ltd,06/08/2015,Z1051,Work in Progress Additions,Adult Services,Adult Services Balance Sheet,"9,633.50"
43938,3499238,BOLTON AT HOME#137,06/08/2015,Z1051,Work in Progress Additions,Housing GRF,Capital  General Fund,"750,000.00"
43938,3499237,BOLTON AT HOME#137,06/08/2015,Z1051,Work in Progress Additions,Housing GRF,Capital  General Fund,"342,200.00"
43938,3499239,BOLTON AT HOME#137,06/08/2015,Z1051,Work in Progress Additions,Housing GRF,Capital  General Fund,"11,499.00"
871655,3504286,AGILISYS LIMITED,17/08/2015,Z1051,Work in Progress Additions,Chief Executives,Chief Execs Balance Sheet,"418,308.90"
871655,3504245,AGILISYS LIMITED,17/08/2015,Z1051,Work in Progress Additions,Chief Executives,Chief Execs Balance Sheet,"13,124.02"
6104,3511418,AUTOMATIC ALARMS LIMITED,27/08/2015,Z1051,Work in Progress Additions,Chief Executives,Chief Execs Balance Sheet,727.11
6403,3501188,J PHILLIPS & SONS LTD#1,06/08/2015,Z1051,Work in Progress Additions,Development & Regeneration,Development & Regeneration Capital,700.00
13477,3506552,MILLER METCALFE LTD#3,20/08/2015,Z1051,Work in Progress Additions,Development & Regeneration,Development & Regeneration Capital,"10,134.00"
155974,3506318,GEM ARBORICULTURAL SERVICES,20/08/2015,Z1051,Work in Progress Additions,Environmental Services,Environmental Services Balance sheet,570.00
9982,3511265,NATIONAL CAR PARKS LTD#NCP,27/08/2015,Z1051,Work in Progress Additions,Environmental Services,Environmental Services Balance sheet,"20,498.51"
251543,3497875,T LOWE & SON LIMITED,06/08/2015,Z1051,Work in Progress Additions,Environmental Services,Environmental Services Balance sheet,"1,325.00"
66705,3503764,WILKINSON COWAN PARTNERSHIP,24/08/2015,Z1051,Work in Progress Additions,Property Services,Property Services Balance Sheet,717.83
2684316,3506006,4way Consulting Ltd,20/08/2015,Z1051,Work in Progress Additions,Highways,Stores,739.20
6050,3511293,A E YATES LTD,27/08/2015,Z1051,Work in Progress Additions,Highways,Stores,"20,547.73"
6050,3511288,A E YATES LTD,27/08/2015,Z1051,Work in Progress Additions,Highways,Stores,"37,259.09"
2052291,3506646,AGGREGATE INDUSTRIES UK LIMITED,20/08/2015,Z1051,Work in Progress Additions,Highways,Stores,"28,302.75"
6126,3511704,BETHELL CONSTRUCTION LTD,27/08/2015,Z1051,Work in Progress Additions,Highways,Stores,"109,218.58"
6126,3511837,BETHELL CONSTRUCTION LTD,27/08/2015,Z1051,Work in Progress Additions,Highways,Stores,"2,877.70"
6126,3506613,BETHELL CONSTRUCTION LTD,20/08/2015,Z1051,Work in Progress Additions,Highways,Stores,"38,959.70"
6126,3506620,BETHELL CONSTRUCTION LTD,20/08/2015,Z1051,Work in Progress Additions,Highways,Stores,"282,515.90"
6126,3501071,BETHELL CONSTRUCTION LTD,06/08/2015,Z1051,Work in Progress Additions,Highways,Stores,"2,391.47"
15858,3507170,ELITE INDUSTRIAL SUPPLIES LIMITED,20/08/2015,Z1051,Work in Progress Additions,Highways,Stores,"2,402.50"
2775304,3506655,Eric Wright Civil Engineering Ltd,20/08/2015,Z1051,Work in Progress Additions,Highways,Stores,"6,888.07"
2775304,3506656,Eric Wright Civil Engineering Ltd,20/08/2015,Z1051,Work in Progress Additions,Highways,Stores,"29,255.49"
6401,3507447,J HOPKINS (CONTRACTORS) LTD,24/08/2015,Z1051,Work in Progress Additions,Highways,Stores,"18,278.96"
1122809,3511376,JONES LIGHTING LTD,27/08/2015,Z1051,Work in Progress Additions,Highways,Stores,"5,001.10"
1122809,3511384,JONES LIGHTING LTD,27/08/2015,Z1051,Work in Progress Additions,Highways,Stores,"5,001.10"
1122809,3513876,JONES LIGHTING LTD,27/08/2015,Z1051,Work in Progress Additions,Highways,Stores,500.11
1122809,3509278,JONES LIGHTING LTD,24/08/2015,Z1051,Work in Progress Additions,Highways,Stores,"1,419.78"
1122809,3506566,JONES LIGHTING LTD,20/08/2015,Z1051,Work in Progress Additions,Highways,Stores,"5,001.10"
1122809,3506562,JONES LIGHTING LTD,20/08/2015,Z1051,Work in Progress Additions,Highways,Stores,"5,447.50"
1122809,3504310,JONES LIGHTING LTD,17/08/2015,Z1051,Work in Progress Additions,Highways,Stores,"5,447.50"
1122809,3504313,JONES LIGHTING LTD,17/08/2015,Z1051,Work in Progress Additions,Highways,Stores,"5,447.50"
1122809,3500697,JONES LIGHTING LTD,06/08/2015,Z1051,Work in Progress Additions,Highways,Stores,"5,356.07"
6188,3500582,LUCY ZODION LIMITED,06/08/2015,Z1051,Work in Progress Additions,Highways,Stores,"4,900.87"
6472,3511273,MARWOOD ELECTRICAL COMPANY LTD,27/08/2015,Z1051,Work in Progress Additions,Highways,Stores,"30,518.85"
6472,3511267,MARWOOD ELECTRICAL COMPANY LTD,27/08/2015,Z1051,Work in Progress Additions,Highways,Stores,"46,689.00"
6472,3511270,MARWOOD ELECTRICAL COMPANY LTD,27/08/2015,Z1051,Work in Progress Additions,Highways,Stores,"68,389.92"
6652,3501198,SEDDONS (PLANT & ENGINEERS) LTD,06/08/2015,Z1051,Work in Progress Additions,Highways,Stores,669.00
1603302,3511428,THE GREATER MANCHESTER COMBINED AUTHORITY,27/08/2015,Z1051,Work in Progress Additions,Highways,Stores,"3,549.23"
1603302,3510770,THE GREATER MANCHESTER COMBINED AUTHORITY,24/08/2015,Z1051,Work in Progress Additions,Highways,Stores,"1,683.15"
1603302,3506050,THE GREATER MANCHESTER COMBINED AUTHORITY,20/08/2015,Z1051,Work in Progress Additions,Highways,Stores,906.97
2780298,3501918,UK Electric Limited T/A BEI Lighting,10/08/2015,Z1051,Work in Progress Additions,Highways,Stores,"3,515.40"
2780298,3499280,UK Electric Limited T/A BEI Lighting,06/08/2015,Z1051,Work in Progress Additions,Highways,Stores,"38,220.00"
2780298,3499278,UK Electric Limited T/A BEI Lighting,06/08/2015,Z1051,Work in Progress Additions,Highways,Stores,"20,384.00"
871655,3511343,AGILISYS LIMITED,27/08/2015,Z5211,Debit Bal Holding A/c Exp,Chief Executives, Agilisys Costs,"20,347.22"
871655,3511346,AGILISYS LIMITED,27/08/2015,Z5211,Debit Bal Holding A/c Exp,Chief Executives, Agilisys Costs,"23,559.64"
871655,3506374,AGILISYS LIMITED,20/08/2015,Z5211,Debit Bal Holding A/c Exp,Chief Executives, Eclipse Broadband Suspense,"5,301.59"
6673,3498145,SOUTHLANDS RESIDENTIAL HOME#SOUTHLANDS,04/08/2015,Z5211,Debit Bal Holding A/c Exp,Adult Services, Client Property Top Ups,"1,023.00"
871655,3511344,AGILISYS LIMITED,27/08/2015,Z5211,Debit Bal Holding A/c Exp,Chief Executives,Agilisys Costs,"12,698.65"
871655,3506359,AGILISYS LIMITED,20/08/2015,Z5211,Debit Bal Holding A/c Exp,Chief Executives,Eclipse Broadband Suspense,"9,988.91"
871655,3503651,AGILISYS LIMITED,13/08/2015,Z5211,Debit Bal Holding A/c Exp,Chief Executives,KCOM Suspense,"2,540.24"
871655,3503649,AGILISYS LIMITED,13/08/2015,Z5211,Debit Bal Holding A/c Exp,Chief Executives,KCOM Suspense,"1,948.55"
6649,3506576,SEAN JENNINGS BUILDING CONTRACTORS,20/08/2015,Z5211,Debit Bal Holding A/c Exp,Property Services,Bolton at Home Holding Account,511.63
6104,3505060,AUTOMATIC ALARMS LIMITED,20/08/2015,Z6007,Inventory AP Accrual,Property Services,EAM Holding,"1,559.08"
356286,3506316,EXPRESS ELEVATORS LTD,20/08/2015,Z6007,Inventory AP Accrual,Property Services,EAM Holding,720.00
186916,3511737,GMS SERVICES LIMITED,27/08/2015,Z6007,Inventory AP Accrual,Property Services,EAM Holding,"2,401.20"
2287325,3510740,GRAHAM ASSET MANAGEMENT LTD,24/08/2015,Z6007,Inventory AP Accrual,Property Services,EAM Holding,"16,742.67"
6479,3511559,MEDWAY HEATING (BOLTON)  LTD,27/08/2015,Z6007,Inventory AP Accrual,Property Services,EAM Holding,"9,650.00"
596,3505869,PSI (RESOURCES) LTD,20/08/2015,Z6007,Inventory AP Accrual,Property Services,EAM Holding,"5,170.00"
6739,3506468,TREND CONTROL SYSTEMS LTD,20/08/2015,Z6007,Inventory AP Accrual,Property Services,EAM Holding,"5,890.75"
6089,3506917,ARCO LIMITED,20/08/2015,Z6007,Inventory AP Accrual,Highways,Stores,684.00
2270301,3504165,Burwood Supply Ltd,13/08/2015,Z6007,Inventory AP Accrual,Highways,Stores,"1,150.00"
75516,3511677,CEMEX UK MATERIALS LTD,27/08/2015,Z6007,Inventory AP Accrual,Highways,Stores,977.40
75516,3511680,CEMEX UK MATERIALS LTD,27/08/2015,Z6007,Inventory AP Accrual,Highways,Stores,675.75
75516,3511673,CEMEX UK MATERIALS LTD,27/08/2015,Z6007,Inventory AP Accrual,Highways,Stores,658.58
75516,3511670,CEMEX UK MATERIALS LTD,27/08/2015,Z6007,Inventory AP Accrual,Highways,Stores,655.47
75516,3509517,CEMEX UK MATERIALS LTD,24/08/2015,Z6007,Inventory AP Accrual,Highways,Stores,935.32
75516,3506848,CEMEX UK MATERIALS LTD,20/08/2015,Z6007,Inventory AP Accrual,Highways,Stores,999.27
75516,3507218,CEMEX UK MATERIALS LTD,20/08/2015,Z6007,Inventory AP Accrual,Highways,Stores,"1,648.20"
75516,3507224,CEMEX UK MATERIALS LTD,20/08/2015,Z6007,Inventory AP Accrual,Highways,Stores,927.28
75516,3507221,CEMEX UK MATERIALS LTD,20/08/2015,Z6007,Inventory AP Accrual,Highways,Stores,"1,003.66"
75516,3503860,CEMEX UK MATERIALS LTD,13/08/2015,Z6007,Inventory AP Accrual,Highways,Stores,775.06
75516,3503864,CEMEX UK MATERIALS LTD,13/08/2015,Z6007,Inventory AP Accrual,Highways,Stores,"1,021.08"
75516,3503865,CEMEX UK MATERIALS LTD,13/08/2015,Z6007,Inventory AP Accrual,Highways,Stores,745.03
75516,3503862,CEMEX UK MATERIALS LTD,13/08/2015,Z6007,Inventory AP Accrual,Highways,Stores,937.48
75516,3501575,CEMEX UK MATERIALS LTD,10/08/2015,Z6007,Inventory AP Accrual,Highways,Stores,"1,026.44"
75516,3501581,CEMEX UK MATERIALS LTD,10/08/2015,Z6007,Inventory AP Accrual,Highways,Stores,694.98
75516,3501577,CEMEX UK MATERIALS LTD,10/08/2015,Z6007,Inventory AP Accrual,Highways,Stores,726.44
2658351,3507169,Compass Minerals UK Ltd,20/08/2015,Z6007,Inventory AP Accrual,Highways,Stores,"3,580.78"
2658351,3506542,Compass Minerals UK Ltd,20/08/2015,Z6007,Inventory AP Accrual,Highways,Stores,"15,612.82"
2658351,3507178,Compass Minerals UK Ltd,20/08/2015,Z6007,Inventory AP Accrual,Highways,Stores,"3,628.14"
2658351,3506639,Compass Minerals UK Ltd,20/08/2015,Z6007,Inventory AP Accrual,Highways,Stores,"8,338.26"
2658351,3507173,Compass Minerals UK Ltd,20/08/2015,Z6007,Inventory AP Accrual,Highways,Stores,"1,203.29"
2658351,3504407,Compass Minerals UK Ltd,17/08/2015,Z6007,Inventory AP Accrual,Highways,Stores,"7,315.30"
2658351,3504410,Compass Minerals UK Ltd,17/08/2015,Z6007,Inventory AP Accrual,Highways,Stores,"6,102.03"
2658351,3504409,Compass Minerals UK Ltd,17/08/2015,Z6007,Inventory AP Accrual,Highways,Stores,"4,808.17"
2658351,3504403,Compass Minerals UK Ltd,17/08/2015,Z6007,Inventory AP Accrual,Highways,Stores,"6,037.21"
2658351,3504406,Compass Minerals UK Ltd,17/08/2015,Z6007,Inventory AP Accrual,Highways,Stores,"8,446.28"
2658351,3504770,Compass Minerals UK Ltd,17/08/2015,Z6007,Inventory AP Accrual,Highways,Stores,"2,434.83"
2658351,3504401,Compass Minerals UK Ltd,17/08/2015,Z6007,Inventory AP Accrual,Highways,Stores,"8,334.11"
2658351,3503929,Compass Minerals UK Ltd,13/08/2015,Z6007,Inventory AP Accrual,Highways,Stores,"1,224.17"
8412,3509520,EMO OIL LTD#WAS SHELL OIL,24/08/2015,Z6007,Inventory AP Accrual,Highways,Stores,"1,727.04"
8412,3501646,EMO OIL LTD#WAS SHELL OIL,10/08/2015,Z6007,Inventory AP Accrual,Highways,Stores,"1,641.93"
1330970,3503413,EXPRESS ELECTRICAL DISTRIBUTORS LTD#NEW COMPANY,13/08/2015,Z6007,Inventory AP Accrual,Highways,Stores,"1,185.00"
6391,3507222,INSTARMAC GROUP PLC,20/08/2015,Z6007,Inventory AP Accrual,Highways,Stores,"1,377.60"
6585,3503751,PUDSEY DIAMOND ENGINEERING LTD,13/08/2015,Z6007,Inventory AP Accrual,Highways,Stores,664.39
6055,3498112,ABAFIELDS RESIDENTIAL HOME,04/08/2015,Z6011,CR Bal Hold A/c Exp,Adult Services, 3rd Party Social Care Contributions,"1,563.76"
2906298,3498107,Blackrod House#1,04/08/2015,Z6011,CR Bal Hold A/c Exp,Adult Services, 3rd Party Social Care Contributions,"1,439.82"
191679,3498181,CHORLEY LODGE#ORCHARD CARE HOMES.COM LIMITED,04/08/2015,Z6011,CR Bal Hold A/c Exp,Adult Services, 3rd Party Social Care Contributions,600.00
6338,3498115,GLENBANK CARE HOME LTD,04/08/2015,Z6011,CR Bal Hold A/c Exp,Adult Services, 3rd Party Social Care Contributions,"1,603.08"
2906299,3498108,Glenhomes Care Home,04/08/2015,Z6011,CR Bal Hold A/c Exp,Adult Services, 3rd Party Social Care Contributions,568.88
6434,3498142,KNIGHTSWOOD RESIDENTIAL HOME,04/08/2015,Z6011,CR Bal Hold A/c Exp,Adult Services, 3rd Party Social Care Contributions,"3,258.90"
2348298,3498217,ABBEY HEALTHCARE (FARNWORTH) LIMITED,04/08/2015,Z6011,CR Bal Hold A/c Exp,Adult Services, Health - Funded Nursing Care,"7,668.00"
6454,3498121,HOLLANDS NURSING HOME,04/08/2015,Z6011,CR Bal Hold A/c Exp,Adult Services, Health - Funded Nursing Care,"4,080.00"
2348298,3498217,ABBEY HEALTHCARE (FARNWORTH) LIMITED,04/08/2015,Z6011,CR Bal Hold A/c Exp,Adult Services,3rd Party Social Care Contributions,545.71
247279,3498185,BEECHVILLE CARE HOME,04/08/2015,Z6011,CR Bal Hold A/c Exp,Adult Services,3rd Party Social Care Contributions,"1,935.88"
1552722,3498195,BELONG ATHERTON#EPH,04/08/2015,Z6011,CR Bal Hold A/c Exp,Adult Services,3rd Party Social Care Contributions,"2,756.44"
6367,3498141,HAZELBROOK CHRISTIAN NURSING HOME,04/08/2015,Z6011,CR Bal Hold A/c Exp,Adult Services,3rd Party Social Care Contributions,"2,000.00"
2626324,3498088,Morgan Care Ltd,04/08/2015,Z6011,CR Bal Hold A/c Exp,Adult Services,3rd Party Social Care Contributions,"4,786.70"
6617,3498124,RIVINGTON VIEW NURSING HOME,04/08/2015,Z6011,CR Bal Hold A/c Exp,Adult Services,Health - Funded Nursing Care,"1,484.57"
6623,3498125,ROSE COURT NURSING HOME,04/08/2015,Z6011,CR Bal Hold A/c Exp,Adult Services,Health - Funded Nursing Care,920.00
6659,3498126,SHANNON COURT NURSING HOME,04/08/2015,Z6011,CR Bal Hold A/c Exp,Adult Services,Health - Funded Nursing Care,"9,200.00"
6679,3498127,ST CATHERINES CARE HOME,04/08/2015,Z6011,CR Bal Hold A/c Exp,Adult Services,Health - Funded Nursing Care,"8,158.00"
6691,3498146,STRATHMORE NURSING HOME#WHITEHILL HOMES LTD,04/08/2015,Z6011,CR Bal Hold A/c Exp,Adult Services,Health - Funded Nursing Care,"3,464.00"
6673,3498145,SOUTHLANDS RESIDENTIAL HOME#SOUTHLANDS,04/08/2015,Z6011,CR Bal Hold A/c Exp,Adult Services,3rd Party Social Care Contributions,"1,500.00"
113123,3498172,SPENNYMOOR CARE HOME LTD,04/08/2015,Z6011,CR Bal Hold A/c Exp,Adult Services,3rd Party Social Care Contributions,"1,552.00"
2906300,3498109,Summerhill Nursing & Residential Home,04/08/2015,Z6011,CR Bal Hold A/c Exp,Adult Services,3rd Party Social Care Contributions,"1,600.00"
10139,3498161,THE CLOUGH RESIDENTIAL HOME,04/08/2015,Z6011,CR Bal Hold A/c Exp,Adult Services,3rd Party Social Care Contributions,"1,040.00"
9243,3498158,THE OLD VICARAGE,04/08/2015,Z6011,CR Bal Hold A/c Exp,Adult Services,3rd Party Social Care Contributions,"1,336.64"
6780,3498129,WINGATES RESIDENTIAL HOME,04/08/2015,Z6011,CR Bal Hold A/c Exp,Adult Services,3rd Party Social Care Contributions,"1,307.14"
1402,3498137,WITHINS RESIDENTIAL HOME,04/08/2015,Z6011,CR Bal Hold A/c Exp,Adult Services,3rd Party Social Care Contributions,"1,341.42"
6325,3505859,GEORGE COX & SONS LTD,17/08/2015,Z6011,CR Bal Hold A/c Exp,Environmental Services,Environmental Services Balance sheet,"2,437.63"
2706298,3506144,Jeremy Benn Associates Limited T/A JBA Consulting,20/08/2015,Z6011,CR Bal Hold A/c Exp,Environmental Services,Environmental Services Balance sheet,"1,000.00"
1122809,3509274,JONES LIGHTING LTD,24/08/2015,Z6011,CR Bal Hold A/c Exp,Environmental Services,Environmental Services Balance sheet,500.11
1122809,3503897,JONES LIGHTING LTD,13/08/2015,Z6011,CR Bal Hold A/c Exp,Environmental Services,Environmental Services Balance sheet,610.42
2515336,3498230,ASTLEY GRANGE HOMES LIMITED,04/08/2015,Z6011,CR Bal Hold A/c Exp,Adult Services,Health - Funded Nursing Care,"4,523.43"
6320,3498114,FOUR SEASONS NURSING HOME,04/08/2015,Z6011,CR Bal Hold A/c Exp,Adult Services,Health - Funded Nursing Care,"6,104.00"
6367,3498141,HAZELBROOK CHRISTIAN NURSING HOME,04/08/2015,Z6011,CR Bal Hold A/c Exp,Adult Services,Health - Funded Nursing Care,"3,336.00"
4856,3498151,MEADOWBANK HOUSE,04/08/2015,Z6011,CR Bal Hold A/c Exp,Adult Services,Health - Funded Nursing Care,"7,217.71"
10133,3498160,MILLVIEW NURSING HOME,04/08/2015,Z6011,CR Bal Hold A/c Exp,Adult Services,Health - Funded Nursing Care,"18,498.00"
,,,,,,,,"11,373,204.05"
